Body name,Service Area,Dept,Expenses Type,Capital/Revenue,Detailed Expenses Type,Transaction number,Expense Code,Date,Amount,Supplier Name,Supplier ID
WANDSWORTH COUNCIL,CS,ENVIRONMENT & COMMUNITY,OTH LA,Revenue,CONTRIBUTION - WESTMINSTER,522597,100044500,11-Nov-14,"118,716.00",CITY OF WESTMINSTER,SP0000345
WANDSWORTH COUNCIL,CS,FINANCE,"REPAIRS, ALTERATIONS & MTCE",Revenue,"REPS, ALTS & MTCE-BUILDINGS",537239,100410000,27-Nov-14,723.82,DH CROFTS LTD,SP0000076
WANDSWORTH COUNCIL,CS,FINANCE,"REPAIRS, ALTERATIONS & MTCE",Revenue,"REPS, ALTS & MTCE-BUILDINGS",537049,100410000,27-Nov-14,"1,799.62",T BROWN GROUP LTD,SP0001050
WANDSWORTH COUNCIL,CS,ENVIRONMENT & COMMUNITY,"REPAIRS, ALTERATIONS & MTCE",Revenue,"REPS, ALTS & MTCE-BUILDINGS",536569,10051000K0002P,28-Nov-14,"12,468.50",WSP UK LTD,SP0002451
WANDSWORTH COUNCIL,CS,ENVIRONMENT & COMMUNITY,SERVICES,Revenue,CONSULTANTS FEES,521289,100534200,07-Nov-14,880.00,ALAN BAXTER INTEGRATED DESIGN,SP0008118
WANDSWORTH COUNCIL,CS,ENVIRONMENT & COMMUNITY,SERVICES,Revenue,CONSULTANTS FEES,530163,100534200,21-Nov-14,"16,879.29",BOYER PLANNING LTD,SP0007822
WANDSWORTH COUNCIL,CS,ENVIRONMENT & COMMUNITY,SERVICES,Revenue,CONSULTANTS FEES,528706,100534200,20-Nov-14,950.00,J S LEWIS,SP0007427
WANDSWORTH COUNCIL,CS,ENVIRONMENT & COMMUNITY,SERVICES,Revenue,CONSULTANTS FEES,523121,100534200,11-Nov-14,"4,100.00",ROYAL HASKONING DHV,SP0008612
WANDSWORTH COUNCIL,CS,ENVIRONMENT & COMMUNITY,SERVICES,Revenue,CONSULTANTS FEES,530160,100534200,21-Nov-14,"5,456.20",TTP CONSULTING,SP0008628
WANDSWORTH COUNCIL,CS,ADMINISTRATION,PRIVATE,Revenue,GENERAL CONTRACT WORK,20295265,100645370,03-Nov-14,321.74,BT PAYMENT SERVICES LTD,2009138
WANDSWORTH COUNCIL,CS,ENVIRONMENT & COMMUNITY,OTHER AGENCIES,Revenue,HEALTHWATCH CONTRACT,525637,102043830,14-Nov-14,"3,211.25",WANDSWORTH CARE ALLIANCE,SP0008176
WANDSWORTH COUNCIL,CS,ENVIRONMENT & COMMUNITY,PRINTING STAT & GEN OFFICE EXP,Revenue,PRINTING REGISTRATION A FORM,534169,103033440,27-Nov-14,720.00,BANNER MANAGED COMMUNICATION,SP0003555
WANDSWORTH COUNCIL,CS,ENVIRONMENT & COMMUNITY,PRINTING STAT & GEN OFFICE EXP,Revenue,PRINTING REGISTRATION A FORM,534170,103033440,27-Nov-14,"1,146.00",BANNER MANAGED COMMUNICATION,SP0003555
WANDSWORTH COUNCIL,CS,ENVIRONMENT & COMMUNITY,COMMUNICATIONS & COMP,Revenue,COMMUNICATIONS - POSTAGE,520579,103036000,05-Nov-14,784.45,ROYAL MAIL,SP0001067
WANDSWORTH COUNCIL,CS,ADMINISTRATION,COMMUNICATIONS & COMP,Revenue,COMMUNICATIONS - POSTAGE,20296898,103036000,28-Nov-14,"1,732.85",WHISTL LONDON LIMITED,2011033
WANDSWORTH COUNCIL,CS,ENVIRONMENT & COMMUNITY,"EQUIPMENT, FURNITURE & MATS",Revenue,FLOWERS,521131,103130170,11-Nov-14,640.00,PATRICIA WONG,SP0002085
WANDSWORTH COUNCIL,CS,ENVIRONMENT & COMMUNITY,"EQUIPMENT, FURNITURE & MATS",Revenue,FLOWERS,534210,103130170,27-Nov-14,640.00,PATRICIA WONG,SP0002085
WANDSWORTH COUNCIL,CS,ADMINISTRATION,MISC,Revenue,MISCELLANEOUS EXPENSES,20296033,103138500,21-Nov-14,40.00,VODAFONE CORPORATE,2009219
WANDSWORTH COUNCIL,PH,ADMINISTRATION,HEALTH,Revenue,PRESCRIBING SERVICES,20296168,106340550,21-Nov-14,465.10,NSK LTD,2001684
WANDSWORTH COUNCIL,PH,ADMINISTRATION,HEALTH,Revenue,PRESCRIBING SERVICES,20296168,106340550,21-Nov-14,46.00,NSK LTD,2001684
WANDSWORTH COUNCIL,PH,ADMINISTRATION,HEALTH,Revenue,PRESCRIBING SERVICES,20296176,106340550,21-Nov-14,822.15,PEARL CHEMIST LTD  FDC47,2015428
WANDSWORTH COUNCIL,PH,ADMINISTRATION,HEALTH,Revenue,PRESCRIBING SERVICES,20296176,106340550,21-Nov-14,72.00,PEARL CHEMIST LTD  FDC47,2015428
WANDSWORTH COUNCIL,PH,ADMINISTRATION,HEALTH,Revenue,PRESCRIBING SERVICES,20296177,106340550,21-Nov-14,915.52,PEARL CHEMIST LTD  FDC47,2015428
WANDSWORTH COUNCIL,PH,ADMINISTRATION,HEALTH,Revenue,PRESCRIBING SERVICES,20296177,106340550,21-Nov-14,78.00,PEARL CHEMIST LTD  FDC47,2015428
WANDSWORTH COUNCIL,PH,ADMINISTRATION,HEALTH,Revenue,PRESCRIBING SERVICES,20296155,106340550,21-Nov-14,461.15,SALASJI LTD FG443 T/A DUMLERS PHARMACY,2015434
WANDSWORTH COUNCIL,PH,ADMINISTRATION,HEALTH,Revenue,PRESCRIBING SERVICES,20296155,106340550,21-Nov-14,38.00,SALASJI LTD FG443 T/A DUMLERS PHARMACY,2015434
WANDSWORTH COUNCIL,PH,ENVIRONMENT & COMMUNITY,VOL ASS,Revenue,THIRD PARTY PYMT - VOL ASS,520598,106948090,05-Nov-14,"13,986.00",SUPRA UK,SP0008710
WANDSWORTH COUNCIL,PH,ENVIRONMENT & COMMUNITY,"EQUIPMENT, FURNITURE & MATS",Revenue,"EQUIPMENT, FURNITURE & MATS",521213,107830000,11-Nov-14,826.00,WAGSTAFF INTERIORS GROUP,SP0005775
WANDSWORTH COUNCIL,PH,ADMINISTRATION,COMMUNICATIONS & COMP,Revenue,I.T. EQUIPMENT & MAINTENANCE,20293936,107836210,21-Nov-14,50.00,VODAFONE CORPORATE,2009219
WANDSWORTH COUNCIL,PH,ENVIRONMENT & COMMUNITY,GRANTS & SUBSCRIPTIONS,Revenue,SUBSCRIPTIONS,520197,107837640,05-Nov-14,"9,000.00",LONDON BOROUGH OF HARINGEY,SP0007909
WANDSWORTH COUNCIL,PH,ENVIRONMENT & COMMUNITY,SERVICES,Revenue,PROJECT WORK,530052,108034800,21-Nov-14,"1,900.00",EASTWOOD NURSERY SCHOOL,SP0000163
WANDSWORTH COUNCIL,PH,ENVIRONMENT & COMMUNITY,SERVICES,Revenue,PROJECT WORK,527238,108034800,19-Nov-14,"2,500.00",ST MARY'S UNIVERSITY COLLEGE,SP0007269
WANDSWORTH COUNCIL,PH,ENVIRONMENT & COMMUNITY,HEALTH,Revenue,AWARENESS TRAINING,520576,108141210,05-Nov-14,"1,391.00",FORWARD,SP0008353
WANDSWORTH COUNCIL,NGF HS,ADMINISTRATION,SERVICES,Revenue,HIPS,20296682,110034460,28-Nov-14,480.00,GORDON BROWN,2001802
WANDSWORTH COUNCIL,NGF CS,ADMINISTRATION,PRIVATE,Revenue,REFUSE COLLECTN & PEST CONTROL,20296737,111045500,28-Nov-14,497.21,SITA UK LTD,2003271
WANDSWORTH COUNCIL,NGF CS,ADMINISTRATION,PRIVATE,Revenue,REFUSE COLLECTN & PEST CONTROL,20296739,111045500,28-Nov-14,"1,202.69",SITA UK LTD,2003271
WANDSWORTH COUNCIL,NGF CS,ADMINISTRATION,PRIVATE,Revenue,REFUSE COLLECTN & PEST CONTROL,20296745,111545500,28-Nov-14,670.91,SITA UK LTD,2003271
WANDSWORTH COUNCIL,NGF CS,FINANCE,"REPAIRS, ALTERATIONS & MTCE",Revenue,"REPS, ALTS & MTCE-BUILDINGS",527675,11181000L08301,19-Nov-14,445.04,DH CROFTS LTD,SP0000076
WANDSWORTH COUNCIL,NGF CS,FINANCE,"REPAIRS, ALTERATIONS & MTCE",Revenue,"REPS, ALTS & MTCE-BUILDINGS",527859,11181000L08301,17-Nov-14,"1,476.60",T BROWN GROUP LTD,SP0001050
WANDSWORTH COUNCIL,NGF CS,FINANCE,"REPAIRS, ALTERATIONS & MTCE",Revenue,"REPS, ALTS & MTCE-BUILDINGS",527885,11181000L08301,17-Nov-14,"1,831.28",T BROWN GROUP LTD,SP0001050
WANDSWORTH COUNCIL,NGF CS,FINANCE,"REPAIRS, ALTERATIONS & MTCE",Revenue,"REPS, ALTS & MTCE-BUILDINGS",537223,11181000L08304,27-Nov-14,735.03,ACR LONDON LTD,SP0000193
WANDSWORTH COUNCIL,NGF CS,FINANCE,"REPAIRS, ALTERATIONS & MTCE",Revenue,"REPS, ALTS & MTCE-BUILDINGS",537163,11181000L0830A,27-Nov-14,660.70,ACRE LIFTS LTD,SP0000610
WANDSWORTH COUNCIL,NGF CS,FINANCE,"REPAIRS, ALTERATIONS & MTCE",Revenue,"REPS, ALTS & MTCE-BUILDINGS",527764,11181000L0830A,17-Nov-14,504.60,WESTMINSTER BUILDING SERVICES LTD,SP0000543
WANDSWORTH COUNCIL,NGF CS,FINANCE,"REPAIRS, ALTERATIONS & MTCE",Revenue,"REPS, ALTS & MTCE-BUILDINGS",527713,11181000L0830K,17-Nov-14,688.27,ACR LONDON LTD,SP0000193
WANDSWORTH COUNCIL,NGF CS,FINANCE,"REPAIRS, ALTERATIONS & MTCE",Revenue,"REPS, ALTS & MTCE-BUILDINGS",527649,11181000L0830K,19-Nov-14,608.78,DH CROFTS LTD,SP0000076
WANDSWORTH COUNCIL,NGF CS,FINANCE,"REPAIRS, ALTERATIONS & MTCE",Revenue,"REPS, ALTS & MTCE-BUILDINGS",527816,11181000L0830K,17-Nov-14,"5,051.21",T BROWN GROUP LTD,SP0001050
WANDSWORTH COUNCIL,NGF CS,FINANCE,"REPAIRS, ALTERATIONS & MTCE",Revenue,"REPS, ALTS & MTCE-BUILDINGS",537248,11181000L0830V,27-Nov-14,"1,368.32",DH CROFTS LTD,SP0000076
WANDSWORTH COUNCIL,NGF CS,FINANCE,"REPAIRS, ALTERATIONS & MTCE",Revenue,"REPS, ALTS & MTCE-BUILDINGS",527647,11181000L08331,19-Nov-14,"2,655.93",DH CROFTS LTD,SP0000076
WANDSWORTH COUNCIL,NGF CS,FINANCE,"REPAIRS, ALTERATIONS & MTCE",Revenue,"REPS, ALTS & MTCE-BUILDINGS",537095,11181000L08331,27-Nov-14,"1,232.40",T BROWN GROUP LTD,SP0001050
WANDSWORTH COUNCIL,NGF CS,FINANCE,"REPAIRS, ALTERATIONS & MTCE",Revenue,"REPS, ALTS & MTCE-BUILDINGS",537267,11181000L08331,27-Nov-14,"1,079.29",T BROWN GROUP LTD,SP0001050
WANDSWORTH COUNCIL,NGF CS,FINANCE,"REPAIRS, ALTERATIONS & MTCE",Revenue,"REPS, ALTS & MTCE-BUILDINGS",527763,11181000L08335,17-Nov-14,"2,242.68",WESTMINSTER BUILDING SERVICES LTD,SP0000543
WANDSWORTH COUNCIL,NGF CS,FINANCE,"REPAIRS, ALTERATIONS & MTCE",Revenue,"REPS, ALTS & MTCE-BUILDINGS",528030,11181000L0833X,17-Nov-14,"2,674.64",T BROWN GROUP LTD,SP0001050
WANDSWORTH COUNCIL,NGF CS,ADMINISTRATION,PRIVATE,Revenue,REFUSE COLLECTN & PEST CONTROL,20296746,112045500,28-Nov-14,169.57,SITA UK LTD,2003271
WANDSWORTH COUNCIL,NGF CS,ADMINISTRATION,PRIVATE,Revenue,REFUSE COLLECTN & PEST CONTROL,20296746,112145500,28-Nov-14,169.58,SITA UK LTD,2003271
WANDSWORTH COUNCIL,NGF CS,ADMINISTRATION,PRIVATE,Revenue,REFUSE COLLECTN & PEST CONTROL,20296746,112245500,28-Nov-14,169.58,SITA UK LTD,2003271
WANDSWORTH COUNCIL,NGF CS,ADMINISTRATION,PRIVATE,Revenue,REFUSE COLLECTN & PEST CONTROL,20296746,112345500,28-Nov-14,-0.01,SITA UK LTD,2003271
WANDSWORTH COUNCIL,NGF CS,ADMINISTRATION,PRIVATE,Revenue,REFUSE COLLECTN & PEST CONTROL,20296746,112345500,28-Nov-14,169.58,SITA UK LTD,2003271
WANDSWORTH COUNCIL,NGF CS,ADMINISTRATION,PRIVATE,Revenue,REFUSE COLLECTN & PEST CONTROL,20296747,112945500,28-Nov-14,678.31,SITA UK LTD,2003271
WANDSWORTH COUNCIL,NGF CS,ADMINISTRATION,CLEANING & DOMESTIC SUPPLIES,Revenue,CLEANING CONTRACT,20296736,113813020,28-Nov-14,"45,880.31",OCEAN INTEGRATED SERVICES LTD,2009026
WANDSWORTH COUNCIL,NGF CS,ADMINISTRATION,COMMUNICATIONS & COMP,Revenue,MOBILE PHONES,20293936,114136380,21-Nov-14,29.16,VODAFONE CORPORATE,2009219
WANDSWORTH COUNCIL,NGF CDC,ADMINISTRATION,"REPAIRS, ALTERATIONS & MTCE",Revenue,REMOVALS & REORGANISATIONS,20295260,114210140,03-Nov-14,288.00,SUNA COMMUNICATION LTD,2003083
WANDSWORTH COUNCIL,NGF CDC,ENVIRONMENT & COMMUNITY,"REPAIRS, ALTERATIONS & MTCE",Revenue,REMOVALS & REORGANISATIONS,521170,114210140,06-Nov-14,"1,850.00",UNIQUE OFFICE SOLUTIONS LTD,SP0001010
WANDSWORTH COUNCIL,NGF CDC,ADMINISTRATION,"REPAIRS, ALTERATIONS & MTCE",Revenue,REMOVALS & REORGANISATIONS,20295747,11421014K07287,17-Nov-14,118.50,JT ENTERPRISES,2002022
WANDSWORTH COUNCIL,NGF CDC,ADMINISTRATION,"REPAIRS, ALTERATIONS & MTCE",Revenue,REMOVALS & REORGANISATIONS,20295747,11421014K07287,17-Nov-14,"1,185.00",JT ENTERPRISES,2002022
WANDSWORTH COUNCIL,NGF CDC,ADMINISTRATION,"REPAIRS, ALTERATIONS & MTCE",Revenue,REMOVALS & REORGANISATIONS,20295749,11421014K07287,17-Nov-14,525.00,JT ENTERPRISES,2002022
WANDSWORTH COUNCIL,NGF CDC,ADMINISTRATION,"REPAIRS, ALTERATIONS & MTCE",Revenue,REMOVALS & REORGANISATIONS,20295749,11421014K07287,17-Nov-14,52.50,JT ENTERPRISES,2002022
WANDSWORTH COUNCIL,NGF CDC,ADMINISTRATION,"REPAIRS, ALTERATIONS & MTCE",Revenue,REMOVALS & REORGANISATIONS,20295750,11421014K07287,17-Nov-14,135.00,JT ENTERPRISES,2002022
WANDSWORTH COUNCIL,NGF CDC,ADMINISTRATION,"REPAIRS, ALTERATIONS & MTCE",Revenue,REMOVALS & REORGANISATIONS,20295750,11421014K07287,17-Nov-14,"1,350.00",JT ENTERPRISES,2002022
WANDSWORTH COUNCIL,NGF CDC,FINANCE,COMMUNICATIONS & COMP,Revenue,I.T. EQUIPMENT & MAINTENANCE,537251,114236210,27-Nov-14,958.21,DH CROFTS LTD,SP0000076
WANDSWORTH COUNCIL,NGF CDC,ADMINISTRATION,COMMUNICATIONS & COMP,Revenue,TELECOMMUNICATIONS SLA,20295260,11423652K07205,03-Nov-14,42.00,SUNA COMMUNICATION LTD,2003083
WANDSWORTH COUNCIL,NGF CDC,ADMINISTRATION,COMMUNICATIONS & COMP,Revenue,TELECOMMUNICATIONS SLA,20295260,11423652K07235,03-Nov-14,528.00,SUNA COMMUNICATION LTD,2003083
WANDSWORTH COUNCIL,NGF CDC,ADMINISTRATION,COMMUNICATIONS & COMP,Revenue,TELECOMMUNICATIONS SLA,20296032,11423652K07245,19-Nov-14,288.80,SUNA COMMUNICATION LTD,2003083
WANDSWORTH COUNCIL,NGF CDC,ADMINISTRATION,COMMUNICATIONS & COMP,Revenue,TELECOMMUNICATIONS SLA,20295260,11423652K07255,03-Nov-14,"1,280.00",SUNA COMMUNICATION LTD,2003083
WANDSWORTH COUNCIL,NGF CDC,ADMINISTRATION,COMMUNICATIONS & COMP,Revenue,TELECOMMUNICATIONS SLA,20296032,11423652K07255,19-Nov-14,225.80,SUNA COMMUNICATION LTD,2003083
WANDSWORTH COUNCIL,NGF CDC,ADMINISTRATION,COMMUNICATIONS & COMP,Revenue,TELECOMMUNICATIONS SLA,20295260,11423652K07275,03-Nov-14,640.60,SUNA COMMUNICATION LTD,2003083
WANDSWORTH COUNCIL,NGF CDC,ADMINISTRATION,COMMUNICATIONS & COMP,Revenue,TELECOMMUNICATIONS SLA,20295260,11423652K07275,03-Nov-14,126.00,SUNA COMMUNICATION LTD,2003083
WANDSWORTH COUNCIL,NGF CDC,ADMINISTRATION,COMMUNICATIONS & COMP,Revenue,TELECOMMUNICATIONS SLA,20295260,11423652K07285,03-Nov-14,20.00,SUNA COMMUNICATION LTD,2003083
WANDSWORTH COUNCIL,NGF CDC,ADMINISTRATION,COMMUNICATIONS & COMP,Revenue,TELECOMMUNICATIONS SLA,20295260,11423652K07295,03-Nov-14,20.00,SUNA COMMUNICATION LTD,2003083
WANDSWORTH COUNCIL,NGF CDC,ADMINISTRATION,COMMUNICATIONS & COMP,Revenue,TELECOMMUNICATIONS SLA,20295260,11423652K07295,03-Nov-14,585.00,SUNA COMMUNICATION LTD,2003083
WANDSWORTH COUNCIL,NGF CDC,ADMINISTRATION,COMMUNICATIONS & COMP,Revenue,TELECOMMUNICATIONS SLA,20296032,11423652K07295,19-Nov-14,692.00,SUNA COMMUNICATION LTD,2003083
WANDSWORTH COUNCIL,NGF CDC,ADMINISTRATION,COMMUNICATIONS & COMP,Revenue,TELECOMMUNICATIONS SLA,20296032,11423652K07335,19-Nov-14,"2,250.80",SUNA COMMUNICATION LTD,2003083
WANDSWORTH COUNCIL,NGF CDC,ADMINISTRATION,COMMUNICATIONS & COMP,Revenue,TELECOMMUNICATIONS SLA,20296032,11423652K07335,19-Nov-14,84.00,SUNA COMMUNICATION LTD,2003083
WANDSWORTH COUNCIL,NGF CDC,FINANCE,PRIVATE,Revenue,GENERAL CONTRACT WORK,537050,11424537K07061,27-Nov-14,"9,711.79",DH CROFTS LTD,SP0000076
WANDSWORTH COUNCIL,NGF CDC,FINANCE,PRIVATE,Revenue,GENERAL CONTRACT WORK,537051,11424537K07061,27-Nov-14,"5,456.33",DH CROFTS LTD,SP0000076
WANDSWORTH COUNCIL,NGF CDC,FINANCE,PRIVATE,Revenue,GENERAL CONTRACT WORK,537052,11424537K07061,27-Nov-14,"6,271.37",DH CROFTS LTD,SP0000076
WANDSWORTH COUNCIL,NGF CDC,FINANCE,PRIVATE,Revenue,GENERAL CONTRACT WORK,537078,11424537K07071,27-Nov-14,"1,626.09",T BROWN GROUP LTD,SP0001050
WANDSWORTH COUNCIL,NGF CDC,FINANCE,PRIVATE,Revenue,GENERAL CONTRACT WORK,527775,11424537K07091,19-Nov-14,996.67,DH CROFTS LTD,SP0000076
WANDSWORTH COUNCIL,NGF CDC,FINANCE,PRIVATE,Revenue,GENERAL CONTRACT WORK,527776,11424537K07091,19-Nov-14,"4,681.26",DH CROFTS LTD,SP0000076
WANDSWORTH COUNCIL,NGF CDC,FINANCE,PRIVATE,Revenue,GENERAL CONTRACT WORK,537020,11424537K07171,27-Nov-14,728.09,DH CROFTS LTD,SP0000076
WANDSWORTH COUNCIL,NGF CDC,FINANCE,PRIVATE,Revenue,GENERAL CONTRACT WORK,537084,11424537K07231,27-Nov-14,664.10,T BROWN GROUP LTD,SP0001050
WANDSWORTH COUNCIL,NGF CDC,FINANCE,PRIVATE,Revenue,GENERAL CONTRACT WORK,537290,11424537K07241,27-Nov-14,"1,857.55",DH CROFTS LTD,SP0000076
WANDSWORTH COUNCIL,NGF CDC,FINANCE,PRIVATE,Revenue,GENERAL CONTRACT WORK,527774,11424537K07271,19-Nov-14,"4,282.97",DH CROFTS LTD,SP0000076
WANDSWORTH COUNCIL,NGF CDC,FINANCE,PRIVATE,Revenue,GENERAL CONTRACT WORK,527777,11424537K07271,19-Nov-14,"4,742.89",DH CROFTS LTD,SP0000076
WANDSWORTH COUNCIL,NGF CDC,FINANCE,PRIVATE,Revenue,GENERAL CONTRACT WORK,537279,11424537K07291,27-Nov-14,"4,754.19",DH CROFTS LTD,SP0000076
WANDSWORTH COUNCIL,NGF CDC,FINANCE,PRIVATE,Revenue,GENERAL CONTRACT WORK,527641,11424537K07301,19-Nov-14,"8,606.40",DH CROFTS LTD,SP0000076
WANDSWORTH COUNCIL,NGF CDC,FINANCE,PRIVATE,Revenue,GENERAL CONTRACT WORK,527644,11424537K07301,19-Nov-14,"2,523.00",DH CROFTS LTD,SP0000076
WANDSWORTH COUNCIL,NGF CDC,FINANCE,PRIVATE,Revenue,GENERAL CONTRACT WORK,527645,11424537K07301,19-Nov-14,"3,051.00",DH CROFTS LTD,SP0000076
WANDSWORTH COUNCIL,NGF CDC,FINANCE,PRIVATE,Revenue,GENERAL CONTRACT WORK,537249,11424537K07301,27-Nov-14,968.07,DH CROFTS LTD,SP0000076
WANDSWORTH COUNCIL,NGF CDC,FINANCE,PRIVATE,Revenue,GENERAL CONTRACT WORK,537281,11424537K07301,27-Nov-14,"9,999.97",DH CROFTS LTD,SP0000076
WANDSWORTH COUNCIL,NGF CDC,FINANCE,PRIVATE,Revenue,GENERAL CONTRACT WORK,537282,11424537K07301,27-Nov-14,"1,047.20",DH CROFTS LTD,SP0000076
WANDSWORTH COUNCIL,NGF CDC,FINANCE,PRIVATE,Revenue,GENERAL CONTRACT WORK,537283,11424537K07301,27-Nov-14,988.30,DH CROFTS LTD,SP0000076
WANDSWORTH COUNCIL,NGF CDC,FINANCE,PRIVATE,Revenue,GENERAL CONTRACT WORK,537286,11424537K07301,27-Nov-14,"7,933.14",DH CROFTS LTD,SP0000076
WANDSWORTH COUNCIL,NGF CDC,FINANCE,PRIVATE,Revenue,GENERAL CONTRACT WORK,537287,11424537K07301,27-Nov-14,"7,317.36",DH CROFTS LTD,SP0000076
WANDSWORTH COUNCIL,NGF CDC,FINANCE,PRIVATE,Revenue,GENERAL CONTRACT WORK,537288,11424537K07301,27-Nov-14,"4,395.63",DH CROFTS LTD,SP0000076
WANDSWORTH COUNCIL,NGF CDC,FINANCE,PRIVATE,Revenue,GENERAL CONTRACT WORK,537289,11424537K07301,27-Nov-14,"4,233.62",DH CROFTS LTD,SP0000076
WANDSWORTH COUNCIL,NGF CDC,FINANCE,PRIVATE,Revenue,GENERAL CONTRACT WORK,537216,11424537K07301,27-Nov-14,"1,140.00",DOWNS FLOORING LTD,SP0000833
WANDSWORTH COUNCIL,NGF CDC,FINANCE,PRIVATE,Revenue,GENERAL CONTRACT WORK,537216,11424537K07301,27-Nov-14,300.00,DOWNS FLOORING LTD,SP0000833
WANDSWORTH COUNCIL,NGF CDC,FINANCE,PRIVATE,Revenue,GENERAL CONTRACT WORK,537217,11424537K07301,27-Nov-14,600.00,DOWNS FLOORING LTD,SP0000833
WANDSWORTH COUNCIL,NGF CDC,FINANCE,PRIVATE,Revenue,GENERAL CONTRACT WORK,537217,11424537K07301,27-Nov-14,300.00,DOWNS FLOORING LTD,SP0000833
WANDSWORTH COUNCIL,NGF CDC,FINANCE,PRIVATE,Revenue,GENERAL CONTRACT WORK,527642,11424537K07311,19-Nov-14,"1,995.00",DH CROFTS LTD,SP0000076
WANDSWORTH COUNCIL,NGF CDC,FINANCE,PRIVATE,Revenue,GENERAL CONTRACT WORK,527643,11424537K07311,19-Nov-14,"2,523.00",DH CROFTS LTD,SP0000076
WANDSWORTH COUNCIL,NGF CDC,FINANCE,PRIVATE,Revenue,GENERAL CONTRACT WORK,537215,11424537K07311,27-Nov-14,150.00,DOWNS FLOORING LTD,SP0000833
WANDSWORTH COUNCIL,NGF CDC,FINANCE,PRIVATE,Revenue,GENERAL CONTRACT WORK,537215,11424537K07311,27-Nov-14,270.00,DOWNS FLOORING LTD,SP0000833
WANDSWORTH COUNCIL,NGF CDC,FINANCE,PRIVATE,Revenue,GENERAL CONTRACT WORK,528075,11424537K07332,17-Nov-14,"3,550.00",CHROMA-VISION LTD,SP0000996
WANDSWORTH COUNCIL,NGF CS,ADMINISTRATION,COMMUNICATIONS & COMP,Revenue,I.T. EQUIPMENT & MAINTENANCE,20293270,120136210,21-Nov-14,720.00,VODAFONE CORPORATE,2009219
WANDSWORTH COUNCIL,NGF CS,ENVIRONMENT & COMMUNITY,GRANTS & SUBSCRIPTIONS,Revenue,SUBSCRIPTIONS,538694,120137640,28-Nov-14,"3,850.00",THOMSON REUTERS,SP0006104
WANDSWORTH COUNCIL,NGF CS,ENVIRONMENT & COMMUNITY,PRIVATE,Revenue,GENERAL CONTRACT WORK,529639,120445370,19-Nov-14,600.00,RIBA ENTERPRISES,SP0003005
WANDSWORTH COUNCIL,NGF CS,ADMINISTRATION,OTHER AGENCIES,Revenue,DISBURSEMENTS,20295725,120643250,14-Nov-14,40.00,SHARPE PRITCHARD LLP,2011391
WANDSWORTH COUNCIL,NGF CS,ADMINISTRATION,OTHER AGENCIES,Revenue,DISBURSEMENTS,20295725,120643250,14-Nov-14,-40.00,SHARPE PRITCHARD LLP,2011391
WANDSWORTH COUNCIL,NGF CS,ADMINISTRATION,OTHER AGENCIES,Revenue,DISBURSEMENTS,20295734,120643250,14-Nov-14,-1.70,SHARPE PRITCHARD LLP,2011391
WANDSWORTH COUNCIL,NGF CS,ADMINISTRATION,OTHER AGENCIES,Revenue,DISBURSEMENTS,20295734,120643250,14-Nov-14,3.00,SHARPE PRITCHARD LLP,2011391
WANDSWORTH COUNCIL,NGF CS,ADMINISTRATION,OTHER AGENCIES,Revenue,DISBURSEMENTS,20295734,120643250,14-Nov-14,1.70,SHARPE PRITCHARD LLP,2011391
WANDSWORTH COUNCIL,NGF CS,ADMINISTRATION,OTHER AGENCIES,Revenue,DISBURSEMENTS,20295734,120643250,14-Nov-14,-3.00,SHARPE PRITCHARD LLP,2011391
WANDSWORTH COUNCIL,NGF CS,ADMINISTRATION,OTHER AGENCIES,Revenue,DISBURSEMENTS,20296688,120643250,27-Nov-14,-17.38,SHARPE PRITCHARD LLP,2011391
WANDSWORTH COUNCIL,NGF CS,ADMINISTRATION,OTHER AGENCIES,Revenue,DISBURSEMENTS,20296688,120643250,27-Nov-14,40.00,SHARPE PRITCHARD LLP,2011391
WANDSWORTH COUNCIL,NGF CS,ADMINISTRATION,OTHER AGENCIES,Revenue,DISBURSEMENTS,20296688,120643250,27-Nov-14,17.38,SHARPE PRITCHARD LLP,2011391
WANDSWORTH COUNCIL,NGF CS,ADMINISTRATION,OTHER AGENCIES,Revenue,DISBURSEMENTS,20296688,120643250,27-Nov-14,-40.00,SHARPE PRITCHARD LLP,2011391
WANDSWORTH COUNCIL,NGF CS,ADMINISTRATION,OTHER AGENCIES,Revenue,DISBURSEMENTS,20296690,120643250,27-Nov-14,-43.00,SHARPE PRITCHARD LLP,2011391
WANDSWORTH COUNCIL,NGF CS,ADMINISTRATION,OTHER AGENCIES,Revenue,DISBURSEMENTS,20296690,120643250,27-Nov-14,43.00,SHARPE PRITCHARD LLP,2011391
WANDSWORTH COUNCIL,NGF CS,ADMINISTRATION,OTHER AGENCIES,Revenue,DISBURSEMENTS,20296690,120643250,27-Nov-14,-10.18,SHARPE PRITCHARD LLP,2011391
WANDSWORTH COUNCIL,NGF CS,ADMINISTRATION,OTHER AGENCIES,Revenue,DISBURSEMENTS,20296690,120643250,27-Nov-14,10.18,SHARPE PRITCHARD LLP,2011391
WANDSWORTH COUNCIL,NGF CS,ADMINISTRATION,OTHER AGENCIES,Revenue,DISBURSEMENTS,20296696,120643250,27-Nov-14,-65.00,SHARPE PRITCHARD LLP,2011391
WANDSWORTH COUNCIL,NGF CS,ADMINISTRATION,OTHER AGENCIES,Revenue,DISBURSEMENTS,20296696,120643250,27-Nov-14,13.50,SHARPE PRITCHARD LLP,2011391
WANDSWORTH COUNCIL,NGF CS,ADMINISTRATION,OTHER AGENCIES,Revenue,DISBURSEMENTS,20296696,120643250,27-Nov-14,-13.50,SHARPE PRITCHARD LLP,2011391
WANDSWORTH COUNCIL,NGF CS,ADMINISTRATION,OTHER AGENCIES,Revenue,DISBURSEMENTS,20296696,120643250,27-Nov-14,65.00,SHARPE PRITCHARD LLP,2011391
WANDSWORTH COUNCIL,NGF CS,ENVIRONMENT & COMMUNITY,OTHER AGENCIES,Revenue,DISBURSEMENTS,522605,120643250,10-Nov-14,920.00,SHARPE PRITCHARD LLP,SP0003677
WANDSWORTH COUNCIL,NGF CS,ENVIRONMENT & COMMUNITY,OTHER AGENCIES,Revenue,DISBURSEMENTS,522605,120643250,10-Nov-14,"3,327.51",SHARPE PRITCHARD LLP,SP0003677
WANDSWORTH COUNCIL,NGF CS,ENVIRONMENT & COMMUNITY,OTHER AGENCIES,Revenue,DISBURSEMENTS,534021,120643250,26-Nov-14,"8,170.10",SHARPE PRITCHARD LLP,SP0003677
WANDSWORTH COUNCIL,NGF CS,ENVIRONMENT & COMMUNITY,OTHER AGENCIES,Revenue,DISBURSEMENTS,534021,120643250,26-Nov-14,"2,524.25",SHARPE PRITCHARD LLP,SP0003677
WANDSWORTH COUNCIL,NGF CS,ADMINISTRATION,OTHER AGENCIES,Revenue,DISBURSEMENTS,20295861,120643250,17-Nov-14,"9,000.00",WINCKWORTH SHERWOOD LLP,2009504
WANDSWORTH COUNCIL,NGF CS,ADMINISTRATION,OTHER AGENCIES,Revenue,DISBURSEMENTS,20295861,120643250,17-Nov-14,"-9,000.00",WINCKWORTH SHERWOOD LLP,2009504
WANDSWORTH COUNCIL,NGF CS,ENVIRONMENT & COMMUNITY,OTHER AGENCIES,Revenue,DISBURSEMENTS,522982,120643250,10-Nov-14,"7,500.00",WINCKWORTH SHERWOOD LLP,SP0006926
WANDSWORTH COUNCIL,NGF CS,ADMINISTRATION,PRIVATE,Revenue,CONTRACT 7 - VNEB LEGAL,20295573,120645540,10-Nov-14,"-2,732.06",WINCKWORTH SHERWOOD LLP,2009504
WANDSWORTH COUNCIL,NGF CS,ADMINISTRATION,PRIVATE,Revenue,CONTRACT 7 - VNEB LEGAL,20295573,120645540,10-Nov-14,"2,732.06",WINCKWORTH SHERWOOD LLP,2009504
WANDSWORTH COUNCIL,NGF CS,ADMINISTRATION,PRIVATE,Revenue,CONTRACT 7 - VNEB LEGAL,20295861,120645540,17-Nov-14,"-6,027.82",WINCKWORTH SHERWOOD LLP,2009504
WANDSWORTH COUNCIL,NGF CS,ADMINISTRATION,PRIVATE,Revenue,CONTRACT 7 - VNEB LEGAL,20295861,120645540,17-Nov-14,"6,027.82",WINCKWORTH SHERWOOD LLP,2009504
WANDSWORTH COUNCIL,NGF CS,ENVIRONMENT & COMMUNITY,PRIVATE,Revenue,CONTRACT 7 - VNEB LEGAL,522596,120645540,10-Nov-14,"5,529.62",WINCKWORTH SHERWOOD LLP,SP0006926
WANDSWORTH COUNCIL,NGF CS,ADMINISTRATION,PRIVATE,Revenue,"CONTRACT 6- HWYS, PLAN ETC",20295713,120646170,14-Nov-14,"3,526.40",SHARPE PRITCHARD LLP,2011391
WANDSWORTH COUNCIL,NGF CS,ADMINISTRATION,PRIVATE,Revenue,"CONTRACT 6- HWYS, PLAN ETC",20295713,120646170,14-Nov-14,"-3,526.40",SHARPE PRITCHARD LLP,2011391
WANDSWORTH COUNCIL,NGF CS,ADMINISTRATION,PRIVATE,Revenue,"CONTRACT 6- HWYS, PLAN ETC",20295715,120646170,14-Nov-14,"3,135.07",SHARPE PRITCHARD LLP,2011391
WANDSWORTH COUNCIL,NGF CS,ADMINISTRATION,PRIVATE,Revenue,"CONTRACT 6- HWYS, PLAN ETC",20295715,120646170,14-Nov-14,"-3,135.07",SHARPE PRITCHARD LLP,2011391
WANDSWORTH COUNCIL,NGF CS,ADMINISTRATION,PRIVATE,Revenue,"CONTRACT 6- HWYS, PLAN ETC",20295725,120646170,14-Nov-14,"-3,065.45",SHARPE PRITCHARD LLP,2011391
WANDSWORTH COUNCIL,NGF CS,ADMINISTRATION,PRIVATE,Revenue,"CONTRACT 6- HWYS, PLAN ETC",20295725,120646170,14-Nov-14,"3,065.45",SHARPE PRITCHARD LLP,2011391
WANDSWORTH COUNCIL,NGF CS,ADMINISTRATION,PRIVATE,Revenue,"CONTRACT 6- HWYS, PLAN ETC",20295734,120646170,14-Nov-14,"-3,321.05",SHARPE PRITCHARD LLP,2011391
WANDSWORTH COUNCIL,NGF CS,ADMINISTRATION,PRIVATE,Revenue,"CONTRACT 6- HWYS, PLAN ETC",20295734,120646170,14-Nov-14,"3,321.05",SHARPE PRITCHARD LLP,2011391
WANDSWORTH COUNCIL,NGF CS,ADMINISTRATION,PRIVATE,Revenue,"CONTRACT 6- HWYS, PLAN ETC",20296688,120646170,27-Nov-14,"-2,693.96",SHARPE PRITCHARD LLP,2011391
WANDSWORTH COUNCIL,NGF CS,ADMINISTRATION,PRIVATE,Revenue,"CONTRACT 6- HWYS, PLAN ETC",20296688,120646170,27-Nov-14,"2,693.96",SHARPE PRITCHARD LLP,2011391
WANDSWORTH COUNCIL,NGF CS,ADMINISTRATION,PRIVATE,Revenue,"CONTRACT 6- HWYS, PLAN ETC",20296690,120646170,27-Nov-14,"-5,991.75",SHARPE PRITCHARD LLP,2011391
WANDSWORTH COUNCIL,NGF CS,ADMINISTRATION,PRIVATE,Revenue,"CONTRACT 6- HWYS, PLAN ETC",20296690,120646170,27-Nov-14,"5,991.75",SHARPE PRITCHARD LLP,2011391
WANDSWORTH COUNCIL,NGF CS,ADMINISTRATION,PRIVATE,Revenue,"CONTRACT 6- HWYS, PLAN ETC",20296696,120646170,27-Nov-14,"-6,827.61",SHARPE PRITCHARD LLP,2011391
WANDSWORTH COUNCIL,NGF CS,ADMINISTRATION,PRIVATE,Revenue,"CONTRACT 6- HWYS, PLAN ETC",20296696,120646170,27-Nov-14,"6,827.61",SHARPE PRITCHARD LLP,2011391
WANDSWORTH COUNCIL,NGF CS,ENVIRONMENT & COMMUNITY,PRIVATE,Revenue,"CONTRACT 6- HWYS, PLAN ETC",522604,120646170,10-Nov-14,"5,860.55",SHARPE PRITCHARD LLP,SP0003677
WANDSWORTH COUNCIL,NGF CS,ENVIRONMENT & COMMUNITY,PRIVATE,Revenue,"CONTRACT 6- HWYS, PLAN ETC",522606,120646170,10-Nov-14,"29,628.53",SHARPE PRITCHARD LLP,SP0003677
WANDSWORTH COUNCIL,NGF CS,ENVIRONMENT & COMMUNITY,GRANTS & SUBSCRIPTIONS,Revenue,SUBSCRIPTIONS,534116,120837640,28-Nov-14,506.00,ROYAL INSTITUTE OF CHARTERED SURVEYORS,SP0003072
WANDSWORTH COUNCIL,NGF CS,ADMINISTRATION,PRINTING STAT & GEN OFFICE EXP,Revenue,OUTWORK - LITHO,20295929,121333590,27-Nov-14,427.38,FINANCIAL DATA MANAGEMENT LTD,2003241
WANDSWORTH COUNCIL,NGF CS,ADMINISTRATION,PRINTING STAT & GEN OFFICE EXP,Revenue,OUTWORK - LITHO,20295948,121333590,27-Nov-14,451.00,HILL & GARWOOD PRINTING LTD,2007381
WANDSWORTH COUNCIL,NGF CS,ADMINISTRATION,PRINTING STAT & GEN OFFICE EXP,Revenue,OUTWORK - LITHO,20295950,121333590,27-Nov-14,556.00,IMPRESS PRINT SERVICES LTD,2008443
WANDSWORTH COUNCIL,NGF CS,ADMINISTRATION,PRINTING STAT & GEN OFFICE EXP,Revenue,OUTWORK - LITHO,20295951,121333590,27-Nov-14,"1,069.00",IMPRESS PRINT SERVICES LTD,2008443
WANDSWORTH COUNCIL,NGF CS,ADMINISTRATION,PRINTING STAT & GEN OFFICE EXP,Revenue,OUTWORK - LITHO,20295952,121333590,27-Nov-14,"1,398.00",IMPRESS PRINT SERVICES LTD,2008443
WANDSWORTH COUNCIL,NGF CS,ADMINISTRATION,PRINTING STAT & GEN OFFICE EXP,Revenue,OUTWORK - LITHO,20295957,121333590,27-Nov-14,686.00,IMPRESS PRINT SERVICES LTD,2008443
WANDSWORTH COUNCIL,NGF CS,ADMINISTRATION,PRINTING STAT & GEN OFFICE EXP,Revenue,OUTWORK - LITHO,20295936,121333590,27-Nov-14,450.00,KALL KWIK,2007566
WANDSWORTH COUNCIL,NGF CS,ADMINISTRATION,PRINTING STAT & GEN OFFICE EXP,Revenue,OUTWORK - EXTERN NON FRAMEWORK,20295291,121333600,04-Nov-14,570.00,SERVICE GRAPHICS LTD,2001446
WANDSWORTH COUNCIL,NGF CS,ENVIRONMENT & COMMUNITY,PRINTING STAT & GEN OFFICE EXP,Revenue,PAPER - QUICKPRINT,527234,121433370,14-Nov-14,688.00,ROBERT HORNE PAPER CO LTD T/A PAPERLINX,SP0002915
WANDSWORTH COUNCIL,NGF CS,ENVIRONMENT & COMMUNITY,PRINTING STAT & GEN OFFICE EXP,Revenue,PAPER - QUICKPRINT,527234,121433370,14-Nov-14,121.30,ROBERT HORNE PAPER CO LTD T/A PAPERLINX,SP0002915
WANDSWORTH COUNCIL,NGF CDC,ADMINISTRATION,COMMUNICATIONS & COMP,Revenue,MOBILE PHONES,20290519,122036380,21-Nov-14,100.00,VODAFONE CORPORATE,2009219
WANDSWORTH COUNCIL,NGF CS,ADMINISTRATION,"EQUIPMENT, FURNITURE & MATS",Revenue,EQUIP.FURN & MATS-REPS & MTCE,20295548,122130010,10-Nov-14,484.05,NEOPOST LTD,2007384
WANDSWORTH COUNCIL,NGF CS,ADMINISTRATION,"EQUIPMENT, FURNITURE & MATS",Revenue,EQUIP.FURN & MATS-REPS & MTCE,20295549,122130010,10-Nov-14,"3,376.80",NEOPOST LTD,2007384
WANDSWORTH COUNCIL,NGF CS,ADMINISTRATION,"EQUIPMENT, FURNITURE & MATS",Revenue,EQUIP.FURN & MATS-REPS & MTCE,20295550,122130010,10-Nov-14,"2,319.45",NEOPOST LTD,2007384
WANDSWORTH COUNCIL,NGF CS,ADMINISTRATION,COMMUNICATIONS & COMP,Revenue,COMMUNICATIONS - POSTAGE,20295536,122136000,10-Nov-14,"1,236.76",ROYAL MAIL,2009044
WANDSWORTH COUNCIL,NGF CS,ADMINISTRATION,COMMUNICATIONS & COMP,Revenue,COMMUNICATIONS - POSTAGE,20295752,122136000,17-Nov-14,"1,004.58",ROYAL MAIL,2009044
WANDSWORTH COUNCIL,NGF CS,ADMINISTRATION,COMMUNICATIONS & COMP,Revenue,COMMUNICATIONS - POSTAGE,20296868,122136000,28-Nov-14,"1,465.59",ROYAL MAIL,2009044
WANDSWORTH COUNCIL,NGF CS,ADMINISTRATION,COMMUNICATIONS & COMP,Revenue,COMMUNICATIONS - POSTAGE,20295315,122136000,04-Nov-14,"4,373.92",WHISTL LONDON LIMITED,2011033
WANDSWORTH COUNCIL,NGF CS,ADMINISTRATION,COMMUNICATIONS & COMP,Revenue,COMMUNICATIONS - POSTAGE,20296732,122136000,28-Nov-14,"1,610.11",WHISTL LONDON LIMITED,2011033
WANDSWORTH COUNCIL,NGF CS,ADMINISTRATION,COMMUNICATIONS & COMP,Revenue,COMMUNICATIONS - POSTAGE,20296749,122136000,28-Nov-14,"1,130.87",WHISTL LONDON LIMITED,2011033
WANDSWORTH COUNCIL,NGF CS,ADMINISTRATION,COMMUNICATIONS & COMP,Revenue,COMMUNICATIONS - POSTAGE,20296887,122136000,28-Nov-14,"2,882.56",WHISTL LONDON LIMITED,2011033
WANDSWORTH COUNCIL,NGF CS,ADMINISTRATION,INDIRECT,Revenue,IN-SERVICE TRAINING-SLA,20296799,123000740,28-Nov-14,"4,383.80",Assist Knowledge Development Ltd,2991000
WANDSWORTH COUNCIL,NGF CS,ENVIRONMENT & COMMUNITY,INDIRECT,Revenue,IN-SERVICE TRAINING-SLA,519105,123000740,05-Nov-14,"1,950.00",MARY FOSTER CONSULTING,SP0008493
WANDSWORTH COUNCIL,NGF CS,ENVIRONMENT & COMMUNITY,INDIRECT,Revenue,IN-SERVICE TRAINING-SLA,521212,123000740,11-Nov-14,916.00,REMARK LTD,SP0007144
WANDSWORTH COUNCIL,NGF CS,ENVIRONMENT & COMMUNITY,INDIRECT,Revenue,IN-SERVICE TRAINING-SLA,523114,123000740,11-Nov-14,916.00,REMARK LTD,SP0007144
WANDSWORTH COUNCIL,NGF CS,ENVIRONMENT & COMMUNITY,INDIRECT,Revenue,IN-SERVICE TRAINING-SLA,527237,123000740,17-Nov-14,499.00,SKILLS TEAM LTD,SP0007105
WANDSWORTH COUNCIL,NGF CS,ENVIRONMENT & COMMUNITY,INDIRECT,Revenue,IN-SERVICE TRAINING-SLA,523157,123000740,12-Nov-14,450.00,TATTERSALL TRAINING,SP0002713
WANDSWORTH COUNCIL,NGF CS,ENVIRONMENT & COMMUNITY,INDIRECT,Revenue,IN-SERVICE TRAINING-SLA,523161,123000740,12-Nov-14,589.00,THE KNOWLEDGE ACADEMY LIMITED,SP0005118
WANDSWORTH COUNCIL,NGF CS,ENVIRONMENT & COMMUNITY,INDIRECT,Revenue,IN-SERVICE TRAINING-SLA,519052,123000740,05-Nov-14,325.00,TRAINING SYNERGY LTD,SP0000312
WANDSWORTH COUNCIL,NGF CS,ENVIRONMENT & COMMUNITY,INDIRECT,Revenue,IN-SERVICE TRAINING-SLA,519052,123000740,05-Nov-14,325.00,TRAINING SYNERGY LTD,SP0000312
WANDSWORTH COUNCIL,NGF CS,ENVIRONMENT & COMMUNITY,INDIRECT,Revenue,IN-SERVICE TRAINING-SLA,519052,123000740,05-Nov-14,325.00,TRAINING SYNERGY LTD,SP0000312
WANDSWORTH COUNCIL,NGF CS,ENVIRONMENT & COMMUNITY,INDIRECT,Revenue,IN-SERVICE TRAINING-SLA,519052,123000740,05-Nov-14,325.00,TRAINING SYNERGY LTD,SP0000312
WANDSWORTH COUNCIL,NGF CS,FINANCE,"EQUIPMENT, FURNITURE & MATS",Revenue,"EQUIPMENT, FURNITURE & MATS",527797,123030000,17-Nov-14,790.00,RACKLINE LTD,SP0006520
WANDSWORTH COUNCIL,NGF CS,ENVIRONMENT & COMMUNITY,INDIRECT,Revenue,HEALTH CARE,521912,123200640,07-Nov-14,512.28,BUPA INSURANCE LIMITED,SP0008413
WANDSWORTH COUNCIL,NGF CS,ENVIRONMENT & COMMUNITY,INDIRECT,Revenue,HEALTH CARE,530046,123200640,24-Nov-14,"2,851.23",MEDICALS DIRECT SCREENING LTD,SP0006897
WANDSWORTH COUNCIL,NGF CS,ENVIRONMENT & COMMUNITY,INDIRECT,Revenue,HEALTH CARE,530047,123200640,24-Nov-14,"6,676.26",MEDICALS DIRECT SCREENING LTD,SP0006897
WANDSWORTH COUNCIL,NGF CS,ADMINISTRATION,INDIRECT,Revenue,CHILDCARE VOUCHERS,20295606,123200650,10-Nov-14,657.86,COMPUTERSHARE VOUCHER SERVICES,2007281
WANDSWORTH COUNCIL,NGF CS,ADMINISTRATION,INDIRECT,Revenue,CHILDCARE VOUCHERS,20295607,123200650,10-Nov-14,116.59,COMPUTERSHARE VOUCHER SERVICES,2007281
WANDSWORTH COUNCIL,NGF CS,ADMINISTRATION,INDIRECT,Revenue,CHILDCARE VOUCHERS,20296393,123200650,26-Nov-14,"1,145.57",COMPUTERSHARE VOUCHER SERVICES,2007281
WANDSWORTH COUNCIL,NGF CS,ADMINISTRATION,INDIRECT,Revenue,CHILDCARE VOUCHERS,20296394,123200650,26-Nov-14,110.48,COMPUTERSHARE VOUCHER SERVICES,2007281
WANDSWORTH COUNCIL,NGF CS,ADMINISTRATION,INDIRECT,Revenue,CHILDCARE VOUCHERS,20296395,123200650,26-Nov-14,21.87,COMPUTERSHARE VOUCHER SERVICES,2007281
WANDSWORTH COUNCIL,NGF CS,ENVIRONMENT & COMMUNITY,CATERING,Revenue,FOOD & CONSUMABLES,525595,123231040,13-Nov-14,475.95,THE CAMDEN SOCIETY,SP0001674
WANDSWORTH COUNCIL,NGF CS,ENVIRONMENT & COMMUNITY,PRINTING STAT & GEN OFFICE EXP,Revenue,PHOTOCOPYING,527483,123233380,19-Nov-14,197.14,RICOH UK LTD,SP0002316
WANDSWORTH COUNCIL,NGF CS,ENVIRONMENT & COMMUNITY,PRINTING STAT & GEN OFFICE EXP,Revenue,PHOTOCOPYING,527483,123233380,19-Nov-14,153.39,RICOH UK LTD,SP0002316
WANDSWORTH COUNCIL,NGF CS,ENVIRONMENT & COMMUNITY,PRINTING STAT & GEN OFFICE EXP,Revenue,PHOTOCOPYING,527483,123233380,19-Nov-14,123.19,RICOH UK LTD,SP0002316
WANDSWORTH COUNCIL,NGF CS,ENVIRONMENT & COMMUNITY,PRINTING STAT & GEN OFFICE EXP,Revenue,PHOTOCOPYING,527483,123233380,19-Nov-14,147.00,RICOH UK LTD,SP0002316
WANDSWORTH COUNCIL,NGF CS,ENVIRONMENT & COMMUNITY,PRINTING STAT & GEN OFFICE EXP,Revenue,PHOTOCOPYING,527483,123233380,19-Nov-14,122.16,RICOH UK LTD,SP0002316
WANDSWORTH COUNCIL,NGF CS,ENVIRONMENT & COMMUNITY,PRINTING STAT & GEN OFFICE EXP,Revenue,PHOTOCOPYING,527483,123233380,19-Nov-14,25.00,RICOH UK LTD,SP0002316
WANDSWORTH COUNCIL,NGF CS,ENVIRONMENT & COMMUNITY,PRINTING STAT & GEN OFFICE EXP,Revenue,PHOTOCOPYING,527483,123233380,19-Nov-14,72.04,RICOH UK LTD,SP0002316
WANDSWORTH COUNCIL,NGF CS,ENVIRONMENT & COMMUNITY,PRINTING STAT & GEN OFFICE EXP,Revenue,PHOTOCOPYING,527483,123233380,19-Nov-14,123.19,RICOH UK LTD,SP0002316
WANDSWORTH COUNCIL,NGF CS,ENVIRONMENT & COMMUNITY,PRINTING STAT & GEN OFFICE EXP,Revenue,PHOTOCOPYING,527483,123233380,19-Nov-14,120.06,RICOH UK LTD,SP0002316
WANDSWORTH COUNCIL,NGF CS,ENVIRONMENT & COMMUNITY,PRINTING STAT & GEN OFFICE EXP,Revenue,PHOTOCOPYING,527483,123233380,19-Nov-14,123.19,RICOH UK LTD,SP0002316
WANDSWORTH COUNCIL,NGF CS,ENVIRONMENT & COMMUNITY,SERVICES,Revenue,OHS SESSIONAL DOCTOR,525594,123234690,13-Nov-14,"4,715.70",HJM ASSOCIATES,SP0003667
WANDSWORTH COUNCIL,NGF CS,ENVIRONMENT & COMMUNITY,SERVICES,Revenue,PAY SURVEYS & SUBS.,530099,123234750,21-Nov-14,"20,000.00",THE HAY GROUP MANAGEMENT LTD,SP0007231
WANDSWORTH COUNCIL,NGF CDC,ADMINISTRATION,COMMUNICATIONS & COMP,Revenue,COMMUNICATIONS - TELEPHONES,20296032,124236020,19-Nov-14,21.00,SUNA COMMUNICATION LTD,2003083
WANDSWORTH COUNCIL,NGF CDC,ADMINISTRATION,MISC,Revenue,MISCELLANEOUS EXPENSES,20296757,124438500,28-Nov-14,"1,901.98",OASIS PRODUCTS VENDING SERVICES LIMITED,2003259
WANDSWORTH COUNCIL,NGF CS,ADMINISTRATION,COMMUNICATIONS & COMP,Revenue,I.T. EQUIPMENT & MAINTENANCE,20295260,124736210,03-Nov-14,774.00,SUNA COMMUNICATION LTD,2003083
WANDSWORTH COUNCIL,NGF CS,ADMINISTRATION,MISC,Revenue,MISCELLANEOUS EXPENSES,20296757,124738500,28-Nov-14,450.00,OASIS PRODUCTS VENDING SERVICES LIMITED,2003259
WANDSWORTH COUNCIL,NGF CS,FINANCE,DIRECT2,Revenue,AGENCY STAFF,20295524,126000510,12-Nov-14,685.88,MATRIX SCM LIMITED,2014926
WANDSWORTH COUNCIL,NGF CS,FINANCE,DIRECT2,Revenue,AGENCY STAFF,20295524,126000510,12-Nov-14,"2,420.57",MATRIX SCM LIMITED,2014926
WANDSWORTH COUNCIL,NGF CS,FINANCE,DIRECT2,Revenue,AGENCY STAFF,20295524,126000510,12-Nov-14,"-2,048.37",MATRIX SCM LIMITED,2014926
WANDSWORTH COUNCIL,NGF CS,FINANCE,DIRECT2,Revenue,AGENCY STAFF,20295524,126000510,12-Nov-14,"2,217.08",MATRIX SCM LIMITED,2014926
WANDSWORTH COUNCIL,NGF CS,FINANCE,DIRECT2,Revenue,AGENCY STAFF,20295524,126000510,12-Nov-14,217.50,MATRIX SCM LIMITED,2014926
WANDSWORTH COUNCIL,NGF CS,FINANCE,DIRECT2,Revenue,AGENCY STAFF,20295524,126000510,12-Nov-14,"2,217.42",MATRIX SCM LIMITED,2014926
WANDSWORTH COUNCIL,NGF CS,FINANCE,DIRECT2,Revenue,AGENCY STAFF,20295524,126000510,12-Nov-14,"2,673.00",MATRIX SCM LIMITED,2014926
WANDSWORTH COUNCIL,NGF CS,FINANCE,DIRECT2,Revenue,AGENCY STAFF,20295524,126000510,12-Nov-14,"2,360.88",MATRIX SCM LIMITED,2014926
WANDSWORTH COUNCIL,NGF CS,FINANCE,DIRECT2,Revenue,AGENCY STAFF,20295524,126000510,12-Nov-14,"2,539.27",MATRIX SCM LIMITED,2014926
WANDSWORTH COUNCIL,NGF CS,FINANCE,DIRECT2,Revenue,AGENCY STAFF,20295524,126000510,12-Nov-14,"-1,923.33",MATRIX SCM LIMITED,2014926
WANDSWORTH COUNCIL,NGF CS,FINANCE,DIRECT2,Revenue,AGENCY STAFF,20295784,126000510,14-Nov-14,"2,833.38",MATRIX SCM LIMITED,2014926
WANDSWORTH COUNCIL,NGF CS,FINANCE,DIRECT2,Revenue,AGENCY STAFF,20295784,126000510,14-Nov-14,"2,352.75",MATRIX SCM LIMITED,2014926
WANDSWORTH COUNCIL,NGF CS,FINANCE,DIRECT2,Revenue,AGENCY STAFF,20296322,126000510,21-Nov-14,"3,047.22",MATRIX SCM LIMITED,2014926
WANDSWORTH COUNCIL,NGF CS,FINANCE,DIRECT2,Revenue,AGENCY STAFF,20296322,126000510,21-Nov-14,666.50,MATRIX SCM LIMITED,2014926
WANDSWORTH COUNCIL,NGF CS,FINANCE,DIRECT2,Revenue,AGENCY STAFF,20296322,126000510,21-Nov-14,844.75,MATRIX SCM LIMITED,2014926
WANDSWORTH COUNCIL,NGF CS,FINANCE,DIRECT2,Revenue,AGENCY STAFF,20296763,126000510,28-Nov-14,"2,314.59",MATRIX SCM LIMITED,2014926
WANDSWORTH COUNCIL,NGF CS,ADMINISTRATION,"EQUIPMENT, FURNITURE & MATS",Revenue,"EQUIPMENT, FURNITURE & MATS",20292314,126030000,21-Nov-14,385.00,VODAFONE CORPORATE,2009219
WANDSWORTH COUNCIL,NGF CS,ENVIRONMENT & COMMUNITY,COMMUNICATIONS & COMP,Revenue,I.T. EQUIPMENT & MAINTENANCE,527219,126036210,18-Nov-14,7.50,CIVICA UK LTD,SP0000394
WANDSWORTH COUNCIL,NGF CS,ENVIRONMENT & COMMUNITY,COMMUNICATIONS & COMP,Revenue,I.T. EQUIPMENT & MAINTENANCE,527219,126036210,18-Nov-14,76.50,CIVICA UK LTD,SP0000394
WANDSWORTH COUNCIL,NGF CS,ENVIRONMENT & COMMUNITY,COMMUNICATIONS & COMP,Revenue,I.T. EQUIPMENT & MAINTENANCE,527220,126036210,18-Nov-14,433.00,CIVICA UK LTD,SP0000394
WANDSWORTH COUNCIL,NGF CS,ADMINISTRATION,COMMUNICATIONS & COMP,Revenue,I.T. EQUIPMENT & MAINTENANCE,20296032,126036210,19-Nov-14,222.00,SUNA COMMUNICATION LTD,2003083
WANDSWORTH COUNCIL,NGF CS,ADMINISTRATION,COMMUNICATIONS & COMP,Revenue,I.T. EQUIPMENT & MAINTENANCE,20293936,126036210,21-Nov-14,50.00,VODAFONE CORPORATE,2009219
WANDSWORTH COUNCIL,NGF CS,ADMINISTRATION,COMMUNICATIONS & COMP,Revenue,MOBILE PHONES,20293936,126036380,21-Nov-14,50.00,VODAFONE CORPORATE,2009219
WANDSWORTH COUNCIL,NGF CS,ADMINISTRATION,COMMUNICATIONS & COMP,Revenue,CALLS USAGE,20295262,126236050,03-Nov-14,"2,198.13",CABLE & WIRELESS COMMUNICATIONS,2009023
WANDSWORTH COUNCIL,NGF CS,ADMINISTRATION,COMMUNICATIONS & COMP,Revenue,CALLS USAGE,20296039,126236050,19-Nov-14,"1,982.75",CABLE & WIRELESS COMMUNICATIONS,2009023
WANDSWORTH COUNCIL,NGF CS,ADMINISTRATION,COMMUNICATIONS & COMP,Revenue,CALLS USAGE,20296041,126236050,19-Nov-14,"2,068.41",VIRGIN MEDIA BUSINESS,2011718
WANDSWORTH COUNCIL,NGF CS,ADMINISTRATION,COMMUNICATIONS & COMP,Revenue,CALLS USAGE,20285577,126236050,21-Nov-14,"1,993.98",VODAFONE CORPORATE,2009219
WANDSWORTH COUNCIL,NGF CS,FINANCE,DIRECT2,Revenue,AGENCY STAFF,20295524,126300510,12-Nov-14,700.40,MATRIX SCM LIMITED,2014926
WANDSWORTH COUNCIL,NGF CS,FINANCE,DIRECT2,Revenue,AGENCY STAFF,20295524,126300510,12-Nov-14,683.65,MATRIX SCM LIMITED,2014926
WANDSWORTH COUNCIL,NGF CS,FINANCE,DIRECT2,Revenue,AGENCY STAFF,20295524,126300510,12-Nov-14,659.20,MATRIX SCM LIMITED,2014926
WANDSWORTH COUNCIL,NGF CS,FINANCE,DIRECT2,Revenue,AGENCY STAFF,20295524,126300510,12-Nov-14,131.84,MATRIX SCM LIMITED,2014926
WANDSWORTH COUNCIL,NGF CS,FINANCE,DIRECT2,Revenue,AGENCY STAFF,20296322,126300510,21-Nov-14,733.36,MATRIX SCM LIMITED,2014926
WANDSWORTH COUNCIL,NGF CS,FINANCE,DIRECT2,Revenue,AGENCY STAFF,20296322,126300510,21-Nov-14,700.40,MATRIX SCM LIMITED,2014926
WANDSWORTH COUNCIL,NGF CS,FINANCE,DIRECT2,Revenue,AGENCY STAFF,20296763,126300510,28-Nov-14,758.08,MATRIX SCM LIMITED,2014926
WANDSWORTH COUNCIL,NGF CS,ADMINISTRATION,"EQUIPMENT, FURNITURE & MATS",Revenue,"EQUIPMENT, FURNITURE & MATS",20295266,126330000,03-Nov-14,"14,795.35",BT PAYMENT SERVICES LTD,2009138
WANDSWORTH COUNCIL,NGF CS,ADMINISTRATION,"EQUIPMENT, FURNITURE & MATS",Revenue,"EQUIPMENT, FURNITURE & MATS",20295262,126330000,03-Nov-14,385.50,CABLE & WIRELESS COMMUNICATIONS,2009023
WANDSWORTH COUNCIL,NGF CS,ADMINISTRATION,"EQUIPMENT, FURNITURE & MATS",Revenue,"EQUIPMENT, FURNITURE & MATS",20296038,126330000,19-Nov-14,"1,005.00",CABLE & WIRELESS COMMUNICATIONS,2009023
WANDSWORTH COUNCIL,NGF CS,ADMINISTRATION,"EQUIPMENT, FURNITURE & MATS",Revenue,"EQUIPMENT, FURNITURE & MATS",20296039,126330000,19-Nov-14,385.50,CABLE & WIRELESS COMMUNICATIONS,2009023
WANDSWORTH COUNCIL,NGF CS,ADMINISTRATION,"EQUIPMENT, FURNITURE & MATS",Revenue,"EQUIPMENT, FURNITURE & MATS",20295259,126330000,03-Nov-14,"2,455.00",DV02 LTD,2014905
WANDSWORTH COUNCIL,NGF CS,ADMINISTRATION,"EQUIPMENT, FURNITURE & MATS",Revenue,"EQUIPMENT, FURNITURE & MATS",20296041,126330000,19-Nov-14,"1,714.00",VIRGIN MEDIA BUSINESS,2011718
WANDSWORTH COUNCIL,NGF CS,ADMINISTRATION,"EQUIPMENT, FURNITURE & MATS",Revenue,"EQUIPMENT, FURNITURE & MATS",20285577,126330000,21-Nov-14,63.00,VODAFONE CORPORATE,2009219
WANDSWORTH COUNCIL,NGF CS,ADMINISTRATION,"EQUIPMENT, FURNITURE & MATS",Revenue,"EQUIPMENT, FURNITURE & MATS",20285577,126330000,21-Nov-14,322.50,VODAFONE CORPORATE,2009219
WANDSWORTH COUNCIL,NGF CS,ADMINISTRATION,"EQUIPMENT, FURNITURE & MATS",Revenue,"EQUIPMENT, FURNITURE & MATS",20293277,126330000,21-Nov-14,460.80,VODAFONE CORPORATE,2009219
WANDSWORTH COUNCIL,NGF CS,ADMINISTRATION,"EQUIPMENT, FURNITURE & MATS",Revenue,"EQUIPMENT, FURNITURE & MATS",20293930,126330000,21-Nov-14,"1,711.75",VODAFONE CORPORATE,2009219
WANDSWORTH COUNCIL,NGF CS,ADMINISTRATION,"EQUIPMENT, FURNITURE & MATS",Revenue,"EQUIPMENT, FURNITURE & MATS",20293932,126330000,21-Nov-14,"8,214.87",VODAFONE CORPORATE,2009219
WANDSWORTH COUNCIL,NGF CS,ADMINISTRATION,"EQUIPMENT, FURNITURE & MATS",Revenue,"EQUIPMENT, FURNITURE & MATS",20296313,126330000,21-Nov-14,"55,915.30",VODAFONE CORPORATE,2009219
WANDSWORTH COUNCIL,NGF CS,ADMINISTRATION,COMMUNICATIONS & COMP,Revenue,I.T. EQUIPMENT & MAINTENANCE,20295260,126336210,03-Nov-14,42.00,SUNA COMMUNICATION LTD,2003083
WANDSWORTH COUNCIL,NGF CS,ADMINISTRATION,COMMUNICATIONS & COMP,Revenue,MOBILE PHONES,20295264,126336380,03-Nov-14,160.00,BT PAYMENT SERVICES LTD,2009138
WANDSWORTH COUNCIL,NGF CS,ADMINISTRATION,COMMUNICATIONS & COMP,Revenue,PRIVATE CIRCUITS EXCHANGE LINK,20295263,126336460,03-Nov-14,"2,087.50",BT PAYMENT SERVICES LTD,2009138
WANDSWORTH COUNCIL,NGF CS,ADMINISTRATION,COMMUNICATIONS & COMP,Revenue,PRIVATE CIRCUITS EXCHANGE LINK,20295265,126336460,03-Nov-14,"1,287.86",BT PAYMENT SERVICES LTD,2009138
WANDSWORTH COUNCIL,NGF CS,ADMINISTRATION,COMMUNICATIONS & COMP,Revenue,PRIVATE CIRCUITS EXCHANGE LINK,20295265,126336460,03-Nov-14,"1,411.38",BT PAYMENT SERVICES LTD,2009138
WANDSWORTH COUNCIL,NGF CS,ADMINISTRATION,COMMUNICATIONS & COMP,Revenue,PRIVATE CIRCUITS EXCHANGE LINK,20295265,126336460,03-Nov-14,739.62,BT PAYMENT SERVICES LTD,2009138
WANDSWORTH COUNCIL,NGF CS,ADMINISTRATION,COMMUNICATIONS & COMP,Revenue,PRIVATE CIRCUITS EXCHANGE LINK,20295265,126336460,03-Nov-14,739.62,BT PAYMENT SERVICES LTD,2009138
WANDSWORTH COUNCIL,NGF CS,ENVIRONMENT & COMMUNITY,"EQUIPMENT, FURNITURE & MATS",Revenue,"EQUIPMENT, FURNITURE & MATS",519464,126630000,05-Nov-14,"1,000.00",JADU LIMITED LCB,SP0003050
WANDSWORTH COUNCIL,NGF CS,ENVIRONMENT & COMMUNITY,"EQUIPMENT, FURNITURE & MATS",Revenue,"EQUIPMENT, FURNITURE & MATS",523083,126630000,13-Nov-14,"3,000.00",RANDOM STORM LTD,SP0003937
WANDSWORTH COUNCIL,NGF CS,ENVIRONMENT & COMMUNITY,COMMUNICATIONS & COMP,Revenue,I.T. SLA RECHARGE,538450,126836230,28-Nov-14,"3,143.19",CIVICA UK LTD,SP0000394
WANDSWORTH COUNCIL,NGF CS,ENVIRONMENT & COMMUNITY,COMMUNICATIONS & COMP,Revenue,I.T. SLA RECHARGE,520940,126836230,05-Nov-14,"1,275.00",DORSET SOFTWARE SERVICES LIMITED,SP0001072
WANDSWORTH COUNCIL,NGF CS,ENVIRONMENT & COMMUNITY,COMMUNICATIONS & COMP,Revenue,I.T. - SAFFRON,520204,126836260,05-Nov-14,312.30,BANNER MANAGED COMMUNICATION,SP0003555
WANDSWORTH COUNCIL,NGF CS,ENVIRONMENT & COMMUNITY,COMMUNICATIONS & COMP,Revenue,I.T. - SYSTEMS DEVELOPMENT,533284,126836270,26-Nov-14,"2,130.00",CIVICA UK LTD,SP0000394
WANDSWORTH COUNCIL,NGF CS,ENVIRONMENT & COMMUNITY,COMMUNICATIONS & COMP,Revenue,I.T. - SYSTEMS DEVELOPMENT,533285,126836270,26-Nov-14,"2,100.00",EBASE TECHNOLOGY LTD,SP0006389
WANDSWORTH COUNCIL,NGF CS,ENVIRONMENT & COMMUNITY,INDIRECT,Revenue,IN-SERVICE TRAINING-SLA,538445,127000740,28-Nov-14,"1,395.00",VERITY BARTON,SP0003778
WANDSWORTH COUNCIL,NGF CS,ENVIRONMENT & COMMUNITY,COMMUNICATIONS & COMP,Revenue,NETWORK COSTS,521305,127236390,07-Nov-14,"73,157.00",CORELOGIC LIMITED,SP0002796
WANDSWORTH COUNCIL,CS,ENVIRONMENT & COMMUNITY,DIRECT2,Revenue,AGENCY STAFF,521894,128000510,11-Nov-14,"11,271.35",MATRIX SCM LIMITED,SP0004572
WANDSWORTH COUNCIL,CS,ENVIRONMENT & COMMUNITY,DIRECT2,Revenue,AGENCY STAFF,525576,128000510,13-Nov-14,"16,221.97",MATRIX SCM LIMITED,SP0004572
WANDSWORTH COUNCIL,CS,ENVIRONMENT & COMMUNITY,DIRECT2,Revenue,AGENCY STAFF,530233,128000510,21-Nov-14,"12,516.59",MATRIX SCM LIMITED,SP0004572
WANDSWORTH COUNCIL,CS,ENVIRONMENT & COMMUNITY,INDIRECT,Revenue,STAFF ADVERTISING - VACANCIES,520577,128000960,11-Nov-14,"1,310.24",PENNA PLC,SP0006290
WANDSWORTH COUNCIL,CS,ENVIRONMENT & COMMUNITY,INDIRECT,Revenue,STAFF ADVERTISING - VACANCIES,520949,128000960,11-Nov-14,"1,218.00",PENNA PLC,SP0006290
WANDSWORTH COUNCIL,CS,ENVIRONMENT & COMMUNITY,INDIRECT,Revenue,STAFF ADVERTISING - VACANCIES,530231,128000960,21-Nov-14,"2,965.80",PENNA PLC,SP0006290
WANDSWORTH COUNCIL,CS,ENVIRONMENT & COMMUNITY,INDIRECT,Revenue,STAFF ADVERTISING - VACANCIES,533236,128000960,26-Nov-14,605.80,PENNA PLC,SP0006290
WANDSWORTH COUNCIL,CS,ENVIRONMENT & COMMUNITY,HEALTH,Revenue,THIRD PARTY PYMT - HEALTH,521215,128041130,11-Nov-14,759.00,AMICHEM LTD,SP0005013
WANDSWORTH COUNCIL,CS,ENVIRONMENT & COMMUNITY,HEALTH,Revenue,THIRD PARTY PYMT - HEALTH,530126,128041130,21-Nov-14,"2,067.50",NSK LTD,SP0007000
WANDSWORTH COUNCIL,CS,ENVIRONMENT & COMMUNITY,HEALTH,Revenue,THIRD PARTY PYMT - HEALTH,538702,128041130,28-Nov-14,"1,147.50",PATEL JG & KG LLP T/A AURA PHARMAC FV302,SP0007457
WANDSWORTH COUNCIL,CS,ENVIRONMENT & COMMUNITY,HEALTH,Revenue,THIRD PARTY PYMT - HEALTH,538703,128041130,28-Nov-14,"1,531.50",PATEL JG & KG LLP T/A AURA PHARMAC FV302,SP0007457
WANDSWORTH COUNCIL,CS,ENVIRONMENT & COMMUNITY,HEALTH,Revenue,THIRD PARTY PYMT - HEALTH,532011,128041130,26-Nov-14,"2,384.00",PEARL CHEMIST LTD,SP0004997
WANDSWORTH COUNCIL,CS,ENVIRONMENT & COMMUNITY,HEALTH,Revenue,THIRD PARTY PYMT - HEALTH,532009,128041130,26-Nov-14,"2,480.50",PEARL CHEMIST LTD FDV93 T/A LORDS PHARMA,SP0008419
WANDSWORTH COUNCIL,CS,ENVIRONMENT & COMMUNITY,HEALTH,Revenue,THIRD PARTY PYMT - HEALTH,532008,128041130,26-Nov-14,"1,199.50",POLYPHARM LTD FNG23,SP0005011
WANDSWORTH COUNCIL,CS,ENVIRONMENT & COMMUNITY,HEALTH,Revenue,THIRD PARTY PYMT - HEALTH,520946,128041130,11-Nov-14,"1,191.50",SAAJ LTD,SP0005001
WANDSWORTH COUNCIL,CS,ENVIRONMENT & COMMUNITY,HEALTH,Revenue,THIRD PARTY PYMT - HEALTH,516530,128041130,04-Nov-14,"3,351.26",ST PAULS COTTAGE PRACTICE,SP0007978
WANDSWORTH COUNCIL,CS,ENVIRONMENT & COMMUNITY,HEALTH,Revenue,THIRD PARTY PYMT - HEALTH,521278,128041130,11-Nov-14,"2,816.22",THE OPEN DOOR SURGERY H85087,SP0008280
WANDSWORTH COUNCIL,CS,ENVIRONMENT & COMMUNITY,HEALTH,Revenue,THIRD PARTY PYMT - HEALTH,520931,128041130,11-Nov-14,823.07,THE PRACTICE FURZEDOWN,SP0005025
WANDSWORTH COUNCIL,CS,ENVIRONMENT & COMMUNITY,HEALTH,Revenue,THIRD PARTY PYMT - HEALTH,521895,128041130,11-Nov-14,"7,136.43",THURLEIGH ROAD PRACTICE H85114,SP0003310
WANDSWORTH COUNCIL,CS,ENVIRONMENT & COMMUNITY,HEALTH,Revenue,THIRD PARTY PYMT - HEALTH,524684,128041130,13-Nov-14,"1,112.11",TOOTING SOUTH MEDICAL CENTRE,SP0007962
WANDSWORTH COUNCIL,CS,ENVIRONMENT & COMMUNITY,HEALTH,Revenue,THIRD PARTY PYMT - HEALTH,524685,128041130,13-Nov-14,611.54,TOOTING SOUTH MEDICAL CENTRE,SP0007962
WANDSWORTH COUNCIL,CS,ENVIRONMENT & COMMUNITY,HEALTH,Revenue,THIRD PARTY PYMT - HEALTH,519111,128041130,05-Nov-14,"7,328.70",WANDSWORTH MEDICAL CENTRE,SP0007088
WANDSWORTH COUNCIL,CS,ENVIRONMENT & COMMUNITY,HEALTH,Revenue,THIRD PARTY PYMT - HEALTH,519070,128041130,05-Nov-14,610.50,WRICKLEMARSH LTD FVM91,SP0008378
WANDSWORTH COUNCIL,ASC,SOCIAL SERVICES,HIRE,Revenue,HIRE - TRANSPORT,539157,130020410,28-Nov-14,792.00,A STAR TRANSPORT LTD,SP0000866
WANDSWORTH COUNCIL,ASC,SOCIAL SERVICES,HIRE,Revenue,HIRE - TRANSPORT,539159,130020410,28-Nov-14,880.00,A STAR TRANSPORT LTD,SP0000866
WANDSWORTH COUNCIL,ASC,SOCIAL SERVICES,HIRE,Revenue,HIRE - TRANSPORT,539160,130020410,28-Nov-14,792.00,A STAR TRANSPORT LTD,SP0000866
WANDSWORTH COUNCIL,ASC,SOCIAL SERVICES,HIRE,Revenue,HIRE - TRANSPORT,539162,130020410,28-Nov-14,440.00,A STAR TRANSPORT LTD,SP0000866
WANDSWORTH COUNCIL,ASC,SOCIAL SERVICES,HIRE,Revenue,HIRE - TRANSPORT,538345,130020410,28-Nov-14,"1,800.90",BECKETT CORPORATION LTD T/A TINAS CARS,SP0000729
WANDSWORTH COUNCIL,ASC,SOCIAL SERVICES,PRIVATE,Revenue,EXTERNAL HOMECARE,520712,130045300,05-Nov-14,173.28,ASIAN ELDERS SUPPORT SCHEME,SP0000190
WANDSWORTH COUNCIL,ASC,SOCIAL SERVICES,PRIVATE,Revenue,EXTERNAL HOMECARE,524212,130045300,12-Nov-14,"1,525.20",PAUL EYLES,SP0008168
WANDSWORTH COUNCIL,ASC,SOCIAL SERVICES,HIRE,Revenue,HIRE - TRANSPORT,520868,130220410,05-Nov-14,462.00,A STAR TRANSPORT LTD,SP0000866
WANDSWORTH COUNCIL,ASC,SOCIAL SERVICES,HIRE,Revenue,HIRE - TRANSPORT,520872,130220410,05-Nov-14,513.30,A STAR TRANSPORT LTD,SP0000866
WANDSWORTH COUNCIL,ASC,SOCIAL SERVICES,HIRE,Revenue,HIRE - TRANSPORT,520875,130220410,05-Nov-14,526.60,A STAR TRANSPORT LTD,SP0000866
WANDSWORTH COUNCIL,ASC,SOCIAL SERVICES,HIRE,Revenue,HIRE - TRANSPORT,526156,130220410,14-Nov-14,588.00,A STAR TRANSPORT LTD,SP0000866
WANDSWORTH COUNCIL,ASC,SOCIAL SERVICES,HIRE,Revenue,HIRE - TRANSPORT,526161,130220410,14-Nov-14,440.00,A STAR TRANSPORT LTD,SP0000866
WANDSWORTH COUNCIL,ASC,SOCIAL SERVICES,HIRE,Revenue,HIRE - TRANSPORT,526163,130220410,14-Nov-14,500.00,A STAR TRANSPORT LTD,SP0000866
WANDSWORTH COUNCIL,ASC,SOCIAL SERVICES,HIRE,Revenue,HIRE - TRANSPORT,526166,130220410,14-Nov-14,500.00,A STAR TRANSPORT LTD,SP0000866
WANDSWORTH COUNCIL,ASC,SOCIAL SERVICES,HIRE,Revenue,HIRE - TRANSPORT,526167,130220410,14-Nov-14,500.00,A STAR TRANSPORT LTD,SP0000866
WANDSWORTH COUNCIL,ASC,SOCIAL SERVICES,HIRE,Revenue,HIRE - TRANSPORT,526168,130220410,14-Nov-14,815.14,A STAR TRANSPORT LTD,SP0000866
WANDSWORTH COUNCIL,ASC,SOCIAL SERVICES,HIRE,Revenue,HIRE - TRANSPORT,526175,130220410,14-Nov-14,520.00,A STAR TRANSPORT LTD,SP0000866
WANDSWORTH COUNCIL,ASC,SOCIAL SERVICES,HIRE,Revenue,HIRE - TRANSPORT,526177,130220410,14-Nov-14,440.00,A STAR TRANSPORT LTD,SP0000866
WANDSWORTH COUNCIL,ASC,SOCIAL SERVICES,HIRE,Revenue,HIRE - TRANSPORT,526181,130220410,14-Nov-14,"1,160.00",A STAR TRANSPORT LTD,SP0000866
WANDSWORTH COUNCIL,ASC,SOCIAL SERVICES,HIRE,Revenue,HIRE - TRANSPORT,526187,130220410,14-Nov-14,620.00,A STAR TRANSPORT LTD,SP0000866
WANDSWORTH COUNCIL,ASC,SOCIAL SERVICES,HIRE,Revenue,HIRE - TRANSPORT,526189,130220410,14-Nov-14,500.00,A STAR TRANSPORT LTD,SP0000866
WANDSWORTH COUNCIL,ASC,SOCIAL SERVICES,HIRE,Revenue,HIRE - TRANSPORT,526194,130220410,14-Nov-14,444.00,A STAR TRANSPORT LTD,SP0000866
WANDSWORTH COUNCIL,ASC,SOCIAL SERVICES,HIRE,Revenue,HIRE - TRANSPORT,526197,130220410,14-Nov-14,424.00,A STAR TRANSPORT LTD,SP0000866
WANDSWORTH COUNCIL,ASC,SOCIAL SERVICES,HIRE,Revenue,HIRE - TRANSPORT,529083,130220410,18-Nov-14,500.00,A STAR TRANSPORT LTD,SP0000866
WANDSWORTH COUNCIL,ASC,SOCIAL SERVICES,HIRE,Revenue,HIRE - TRANSPORT,529084,130220410,18-Nov-14,500.00,A STAR TRANSPORT LTD,SP0000866
WANDSWORTH COUNCIL,ASC,SOCIAL SERVICES,HIRE,Revenue,HIRE - TRANSPORT,529157,130220410,18-Nov-14,513.40,A STAR TRANSPORT LTD,SP0000866
WANDSWORTH COUNCIL,ASC,SOCIAL SERVICES,HIRE,Revenue,HIRE - TRANSPORT,529158,130220410,18-Nov-14,526.80,A STAR TRANSPORT LTD,SP0000866
WANDSWORTH COUNCIL,ASC,SOCIAL SERVICES,HIRE,Revenue,HIRE - TRANSPORT,529160,130220410,18-Nov-14,526.80,A STAR TRANSPORT LTD,SP0000866
WANDSWORTH COUNCIL,ASC,SOCIAL SERVICES,HIRE,Revenue,HIRE - TRANSPORT,529161,130220410,18-Nov-14,526.60,A STAR TRANSPORT LTD,SP0000866
WANDSWORTH COUNCIL,ASC,SOCIAL SERVICES,HIRE,Revenue,HIRE - TRANSPORT,533104,130220410,25-Nov-14,440.00,A STAR TRANSPORT LTD,SP0000866
WANDSWORTH COUNCIL,ASC,SOCIAL SERVICES,HIRE,Revenue,HIRE - TRANSPORT,533109,130220410,25-Nov-14,500.00,A STAR TRANSPORT LTD,SP0000866
WANDSWORTH COUNCIL,ASC,SOCIAL SERVICES,HIRE,Revenue,HIRE - TRANSPORT,533110,130220410,25-Nov-14,500.00,A STAR TRANSPORT LTD,SP0000866
WANDSWORTH COUNCIL,ASC,SOCIAL SERVICES,HIRE,Revenue,HIRE - TRANSPORT,533111,130220410,25-Nov-14,532.00,A STAR TRANSPORT LTD,SP0000866
WANDSWORTH COUNCIL,ASC,SOCIAL SERVICES,HIRE,Revenue,HIRE - TRANSPORT,533118,130220410,25-Nov-14,520.00,A STAR TRANSPORT LTD,SP0000866
WANDSWORTH COUNCIL,ASC,SOCIAL SERVICES,HIRE,Revenue,HIRE - TRANSPORT,533124,130220410,25-Nov-14,784.00,A STAR TRANSPORT LTD,SP0000866
WANDSWORTH COUNCIL,ASC,SOCIAL SERVICES,HIRE,Revenue,HIRE - TRANSPORT,533130,130220410,25-Nov-14,620.00,A STAR TRANSPORT LTD,SP0000866
WANDSWORTH COUNCIL,ASC,SOCIAL SERVICES,HIRE,Revenue,HIRE - TRANSPORT,533137,130220410,25-Nov-14,444.00,A STAR TRANSPORT LTD,SP0000866
WANDSWORTH COUNCIL,ASC,SOCIAL SERVICES,HIRE,Revenue,HIRE - TRANSPORT,538340,130220410,28-Nov-14,646.57,BECKETT CORPORATION LTD T/A TINAS CARS,SP0000729
WANDSWORTH COUNCIL,ASC,SOCIAL SERVICES,HIRE,Revenue,HIRE - TRANSPORT,538343,130220410,28-Nov-14,583.49,BECKETT CORPORATION LTD T/A TINAS CARS,SP0000729
WANDSWORTH COUNCIL,ASC,SOCIAL SERVICES,HIRE,Revenue,HIRE - TRANSPORT,538347,130220410,28-Nov-14,425.52,BECKETT CORPORATION LTD T/A TINAS CARS,SP0000729
WANDSWORTH COUNCIL,ASC,SOCIAL SERVICES,HIRE,Revenue,HIRE - TRANSPORT,538348,130220410,28-Nov-14,469.15,BECKETT CORPORATION LTD T/A TINAS CARS,SP0000729
WANDSWORTH COUNCIL,ASC,SOCIAL SERVICES,HIRE,Revenue,HIRE - TRANSPORT,538349,130220410,28-Nov-14,137.12,BECKETT CORPORATION LTD T/A TINAS CARS,SP0000729
WANDSWORTH COUNCIL,ASC,SOCIAL SERVICES,HIRE,Revenue,HIRE - TRANSPORT,538350,130220410,28-Nov-14,425.52,BECKETT CORPORATION LTD T/A TINAS CARS,SP0000729
WANDSWORTH COUNCIL,ASC,SOCIAL SERVICES,HIRE,Revenue,HIRE - TRANSPORT,538351,130220410,28-Nov-14,613.40,BECKETT CORPORATION LTD T/A TINAS CARS,SP0000729
WANDSWORTH COUNCIL,ASC,SOCIAL SERVICES,HIRE,Revenue,HIRE - TRANSPORT,538352,130220410,28-Nov-14,571.38,BECKETT CORPORATION LTD T/A TINAS CARS,SP0000729
WANDSWORTH COUNCIL,ASC,SOCIAL SERVICES,HIRE,Revenue,HIRE - TRANSPORT,538355,130220410,28-Nov-14,"1,656.00",BECKETT CORPORATION LTD T/A TINAS CARS,SP0000729
WANDSWORTH COUNCIL,ASC,SOCIAL SERVICES,HIRE,Revenue,HIRE - TRANSPORT,538356,130220410,28-Nov-14,580.50,BECKETT CORPORATION LTD T/A TINAS CARS,SP0000729
WANDSWORTH COUNCIL,ASC,SOCIAL SERVICES,HIRE,Revenue,HIRE - TRANSPORT,538357,130220410,28-Nov-14,580.50,BECKETT CORPORATION LTD T/A TINAS CARS,SP0000729
WANDSWORTH COUNCIL,ASC,SOCIAL SERVICES,HIRE,Revenue,HIRE - TRANSPORT,538362,130220410,28-Nov-14,880.00,BECKETT CORPORATION LTD T/A TINAS CARS,SP0000729
WANDSWORTH COUNCIL,ASC,SOCIAL SERVICES,HIRE,Revenue,HIRE - TRANSPORT,538365,130220410,28-Nov-14,450.00,BECKETT CORPORATION LTD T/A TINAS CARS,SP0000729
WANDSWORTH COUNCIL,ASC,SOCIAL SERVICES,HIRE,Revenue,HIRE - TRANSPORT,533089,130220410,25-Nov-14,"1,264.00",GALPINS SERVICES LTD,SP0001368
WANDSWORTH COUNCIL,ASC,SOCIAL SERVICES,HIRE,Revenue,HIRE - TRANSPORT,533090,130220410,25-Nov-14,"1,168.00",GALPINS SERVICES LTD,SP0001368
WANDSWORTH COUNCIL,ASC,SOCIAL SERVICES,HIRE,Revenue,HIRE - TRANSPORT,533785,130220410,25-Nov-14,"1,269.00",GALPINS SERVICES LTD,SP0001368
WANDSWORTH COUNCIL,ASC,SOCIAL SERVICES,HIRE,Revenue,HIRE - TRANSPORT,533786,130220410,25-Nov-14,"1,264.00",GALPINS SERVICES LTD,SP0001368
WANDSWORTH COUNCIL,ASC,SOCIAL SERVICES,HIRE,Revenue,HIRE - TRANSPORT,538376,130220410,28-Nov-14,717.50,GROUP TAXIBUS LTD T/A CHELMSFORD TAXIBUS,SP0006150
WANDSWORTH COUNCIL,ASC,SOCIAL SERVICES,HIRE,Revenue,HIRE - TRANSPORT,529240,130220410,18-Nov-14,630.00,HEALTHCARE & TRANSPORT SERVICES (HATS),SP0000012
WANDSWORTH COUNCIL,ASC,SOCIAL SERVICES,HIRE,Revenue,HIRE - TRANSPORT,533745,130220410,25-Nov-14,630.00,HEALTHCARE & TRANSPORT SERVICES (HATS),SP0000012
WANDSWORTH COUNCIL,ASC,SOCIAL SERVICES,HIRE,Revenue,HIRE - TRANSPORT,539152,130220410,28-Nov-14,630.00,HEALTHCARE & TRANSPORT SERVICES (HATS),SP0000012
WANDSWORTH COUNCIL,ASC,SOCIAL SERVICES,HIRE,Revenue,HIRE - TRANSPORT,521359,130220410,07-Nov-14,80.00,MACINTYRE CARE,SP0000473
WANDSWORTH COUNCIL,ASC,SOCIAL SERVICES,HIRE,Revenue,HIRE - TRANSPORT,524644,130220410,17-Nov-14,665.30,WEST ONE CARS,SP0005818
WANDSWORTH COUNCIL,ASC,SOCIAL SERVICES,HIRE,Revenue,HIRE - TRANSPORT,533071,130220410,25-Nov-14,793.00,WEST ONE CARS,SP0005818
WANDSWORTH COUNCIL,ASC,SOCIAL SERVICES,HIRE,Revenue,HIRE - TRANSPORT,533072,130220410,25-Nov-14,548.00,WEST ONE CARS,SP0005818
WANDSWORTH COUNCIL,ASC,SOCIAL SERVICES,HIRE,Revenue,NEW TRANSPORT CONTRACT,538346,130220430,28-Nov-14,"1,800.90",BECKETT CORPORATION LTD T/A TINAS CARS,SP0000729
WANDSWORTH COUNCIL,ASC,SOCIAL SERVICES,HIRE,Revenue,NEW TRANSPORT CONTRACT,538349,130220430,28-Nov-14,414.83,BECKETT CORPORATION LTD T/A TINAS CARS,SP0000729
WANDSWORTH COUNCIL,ASC,SOCIAL SERVICES,SERVICES,Revenue,TRAVEL BUDDY SCHEME,520850,130234970,05-Nov-14,60.00,ASIAN ELDERS SUPPORT SCHEME,SP0000190
WANDSWORTH COUNCIL,ASC,SOCIAL SERVICES,SERVICES,Revenue,TRAVEL BUDDY SCHEME,530379,130234970,21-Nov-14,721.28,SOUTHSIDE PARTNERSHIP,SP0000692
WANDSWORTH COUNCIL,ASC,SOCIAL SERVICES,SERVICES,Revenue,TRAVEL BUDDY SCHEME,530380,130234970,21-Nov-14,745.73,SOUTHSIDE PARTNERSHIP,SP0000692
WANDSWORTH COUNCIL,ASC,SOCIAL SERVICES,SERVICES,Revenue,TRAVEL BUDDY SCHEME,530382,130234970,21-Nov-14,736.22,SOUTHSIDE PARTNERSHIP,SP0000692
WANDSWORTH COUNCIL,ASC,SOCIAL SERVICES,SERVICES,Revenue,TRAVEL BUDDY SCHEME,530383,130234970,21-Nov-14,531.11,SOUTHSIDE PARTNERSHIP,SP0000692
WANDSWORTH COUNCIL,ASC,SOCIAL SERVICES,SERVICES,Revenue,TRAVEL BUDDY SCHEME,530384,130234970,21-Nov-14,788.71,SOUTHSIDE PARTNERSHIP,SP0000692
WANDSWORTH COUNCIL,ASC,ADMINISTRATION,COMMUNICATIONS & COMP,Revenue,TELECOMMUNICATIONS SLA,20295265,130236520,03-Nov-14,"1,033.38",BT PAYMENT SERVICES LTD,2009138
WANDSWORTH COUNCIL,ASC,SOCIAL SERVICES,HEALTH,Revenue,EXT RES S28A 100% OLD LONGSTAY,533334,130241010,25-Nov-14,"2,939.05",PARKGATE MANOR,SP0000521
WANDSWORTH COUNCIL,ASC,SOCIAL SERVICES,HEALTH,Revenue,EXT RES S28A 100% OLD LONGSTAY,529372,130241010,18-Nov-14,"6,266.84",VOYAGE CARE LTD,SP0000366
WANDSWORTH COUNCIL,ASC,SOCIAL SERVICES,HEALTH,Revenue,EXT RES S28A 100% OLD LONGSTAY,529373,130241010,18-Nov-14,"6,266.84",VOYAGE CARE LTD,SP0000366
WANDSWORTH COUNCIL,ASC,SOCIAL SERVICES,HEALTH,Revenue,EXT RES S28A 100% OLD LONGSTAY,529418,130241010,18-Nov-14,"9,174.86",VOYAGE CARE LTD,SP0000366
WANDSWORTH COUNCIL,ASC,SOCIAL SERVICES,HEALTH,Revenue,EXT RES S28A 100% OLD LONGSTAY,533445,130241010,25-Nov-14,"6,064.67",VOYAGE CARE LTD,SP0000366
WANDSWORTH COUNCIL,ASC,SOCIAL SERVICES,HEALTH,Revenue,EXT RES S28A 100% OLD LONGSTAY,533446,130241010,25-Nov-14,"6,064.67",VOYAGE CARE LTD,SP0000366
WANDSWORTH COUNCIL,ASC,SOCIAL SERVICES,HEALTH,Revenue,EXT RES S28A 100% OLD LONGSTAY,533462,130241010,25-Nov-14,"8,878.88",VOYAGE CARE LTD,SP0000366
WANDSWORTH COUNCIL,ASC,SOCIAL SERVICES,HEALTH,Revenue,EXT RES CARE S28A 100%,533447,130241090,25-Nov-14,"6,266.70",VOYAGE CARE LTD,SP0000366
WANDSWORTH COUNCIL,ASC,SOCIAL SERVICES,HEALTH,Revenue,EXT RES CARE S28A 100%,533448,130241090,25-Nov-14,"6,064.54",VOYAGE CARE LTD,SP0000366
WANDSWORTH COUNCIL,ASC,SOCIAL SERVICES,HEALTH,Revenue,EXT RES S28A OLD LONG STAY,533406,130241110,25-Nov-14,"4,351.72",ANTHONY TOBY HOMES TRUST,SP0000755
WANDSWORTH COUNCIL,ASC,SOCIAL SERVICES,HEALTH,Revenue,EXT RES S28A OLD LONG STAY,533350,130241110,25-Nov-14,"2,690.16",ASHTON CARE,SP0000695
WANDSWORTH COUNCIL,ASC,SOCIAL SERVICES,HEALTH,Revenue,EXT RES S28A OLD LONG STAY,530290,130241110,21-Nov-14,"2,975.96",ELEANOR NURSING & SOCIAL CARE,SP0000110
WANDSWORTH COUNCIL,ASC,SOCIAL SERVICES,HEALTH,Revenue,EXT RES S28A OLD LONG STAY,523194,130241110,11-Nov-14,"4,709.79",METROPOLITAN HOUSING TRUST,SP0000626
WANDSWORTH COUNCIL,ASC,SOCIAL SERVICES,HEALTH,Revenue,EXT RES S28A OLD LONG STAY,523989,130241110,12-Nov-14,"4,709.79",METROPOLITAN HOUSING TRUST,SP0000626
WANDSWORTH COUNCIL,ASC,SOCIAL SERVICES,HEALTH,Revenue,EXT RES S28A OLD LONG STAY,518778,130241110,03-Nov-14,"4,919.65",THE COMMUNITY CARE COMPANY UK LTD,SP0000576
WANDSWORTH COUNCIL,ASC,SOCIAL SERVICES,HEALTH,Revenue,EXT RES S28A OLD LONG STAY,533300,130241110,25-Nov-14,"4,760.10",THE COMMUNITY CARE COMPANY UK LTD,SP0000576
WANDSWORTH COUNCIL,ASC,SOCIAL SERVICES,OTHER AGENCIES,Revenue,EXTERNAL LODGINGS,523246,130243320,11-Nov-14,"1,085.00",M RAZA T/A CLOCK HOUSE HOTEL,SP0001280
WANDSWORTH COUNCIL,ASC,SOCIAL SERVICES,OTHER AGENCIES,Revenue,EXTERNAL OUTREACH,533169,130243330,25-Nov-14,600.00,ACT TOO LTD,SP0000855
WANDSWORTH COUNCIL,ASC,SOCIAL SERVICES,OTHER AGENCIES,Revenue,EXTERNAL OUTREACH,539097,130243330,28-Nov-14,600.00,ACT TOO LTD,SP0000855
WANDSWORTH COUNCIL,ASC,SOCIAL SERVICES,OTHER AGENCIES,Revenue,EXTERNAL OUTREACH,539130,130243330,28-Nov-14,600.00,ACT TOO LTD,SP0000855
WANDSWORTH COUNCIL,ASC,SOCIAL SERVICES,OTHER AGENCIES,Revenue,EXTERNAL OUTREACH,539132,130243330,28-Nov-14,600.00,ACT TOO LTD,SP0000855
WANDSWORTH COUNCIL,ASC,SOCIAL SERVICES,OTHER AGENCIES,Revenue,EXTERNAL OUTREACH,520836,130243330,05-Nov-14,"2,185.32",C M CARE LTD,SP0000455
WANDSWORTH COUNCIL,ASC,SOCIAL SERVICES,OTHER AGENCIES,Revenue,EXTERNAL OUTREACH,520837,130243330,05-Nov-14,936.00,C M CARE LTD,SP0000455
WANDSWORTH COUNCIL,ASC,SOCIAL SERVICES,OTHER AGENCIES,Revenue,EXTERNAL OUTREACH,520838,130243330,05-Nov-14,"1,287.20",C M CARE LTD,SP0000455
WANDSWORTH COUNCIL,ASC,SOCIAL SERVICES,OTHER AGENCIES,Revenue,EXTERNAL OUTREACH,520839,130243330,05-Nov-14,576.00,C M CARE LTD,SP0000455
WANDSWORTH COUNCIL,ASC,SOCIAL SERVICES,OTHER AGENCIES,Revenue,EXTERNAL OUTREACH,520840,130243330,05-Nov-14,"1,540.00",C M CARE LTD,SP0000455
WANDSWORTH COUNCIL,ASC,SOCIAL SERVICES,OTHER AGENCIES,Revenue,EXTERNAL OUTREACH,539098,130243330,28-Nov-14,"2,185.32",C M CARE LTD,SP0000455
WANDSWORTH COUNCIL,ASC,SOCIAL SERVICES,OTHER AGENCIES,Revenue,EXTERNAL OUTREACH,539100,130243330,28-Nov-14,936.00,C M CARE LTD,SP0000455
WANDSWORTH COUNCIL,ASC,SOCIAL SERVICES,OTHER AGENCIES,Revenue,EXTERNAL OUTREACH,539101,130243330,28-Nov-14,"1,287.20",C M CARE LTD,SP0000455
WANDSWORTH COUNCIL,ASC,SOCIAL SERVICES,OTHER AGENCIES,Revenue,EXTERNAL OUTREACH,539103,130243330,28-Nov-14,576.00,C M CARE LTD,SP0000455
WANDSWORTH COUNCIL,ASC,SOCIAL SERVICES,OTHER AGENCIES,Revenue,EXTERNAL OUTREACH,539104,130243330,28-Nov-14,"1,540.00",C M CARE LTD,SP0000455
WANDSWORTH COUNCIL,ASC,SOCIAL SERVICES,OTHER AGENCIES,Revenue,EXTERNAL OUTREACH,521449,130243330,07-Nov-14,"1,714.84",GENERATE OPPORTUNITIES LTD,SP0000503
WANDSWORTH COUNCIL,ASC,SOCIAL SERVICES,OTHER AGENCIES,Revenue,EXTERNAL OUTREACH,529018,130243330,18-Nov-14,897.30,GENERATE OPPORTUNITIES LTD,SP0000503
WANDSWORTH COUNCIL,ASC,SOCIAL SERVICES,OTHER AGENCIES,Revenue,EXTERNAL OUTREACH,529023,130243330,18-Nov-14,299.10,GENERATE OPPORTUNITIES LTD,SP0000503
WANDSWORTH COUNCIL,ASC,SOCIAL SERVICES,OTHER AGENCIES,Revenue,EXTERNAL OUTREACH,529024,130243330,18-Nov-14,997.00,GENERATE OPPORTUNITIES LTD,SP0000503
WANDSWORTH COUNCIL,ASC,SOCIAL SERVICES,OTHER AGENCIES,Revenue,EXTERNAL OUTREACH,529029,130243330,18-Nov-14,797.60,GENERATE OPPORTUNITIES LTD,SP0000503
WANDSWORTH COUNCIL,ASC,SOCIAL SERVICES,OTHER AGENCIES,Revenue,EXTERNAL OUTREACH,529030,130243330,18-Nov-14,997.00,GENERATE OPPORTUNITIES LTD,SP0000503
WANDSWORTH COUNCIL,ASC,SOCIAL SERVICES,OTHER AGENCIES,Revenue,EXTERNAL OUTREACH,529034,130243330,18-Nov-14,598.20,GENERATE OPPORTUNITIES LTD,SP0000503
WANDSWORTH COUNCIL,ASC,SOCIAL SERVICES,OTHER AGENCIES,Revenue,EXTERNAL OUTREACH,529040,130243330,18-Nov-14,598.20,GENERATE OPPORTUNITIES LTD,SP0000503
WANDSWORTH COUNCIL,ASC,SOCIAL SERVICES,OTHER AGENCIES,Revenue,EXTERNAL OUTREACH,529041,130243330,18-Nov-14,"2,791.60",GENERATE OPPORTUNITIES LTD,SP0000503
WANDSWORTH COUNCIL,ASC,SOCIAL SERVICES,OTHER AGENCIES,Revenue,EXTERNAL OUTREACH,529051,130243330,18-Nov-14,598.20,GENERATE OPPORTUNITIES LTD,SP0000503
WANDSWORTH COUNCIL,ASC,SOCIAL SERVICES,OTHER AGENCIES,Revenue,EXTERNAL OUTREACH,529057,130243330,18-Nov-14,797.60,GENERATE OPPORTUNITIES LTD,SP0000503
WANDSWORTH COUNCIL,ASC,SOCIAL SERVICES,OTHER AGENCIES,Revenue,EXTERNAL OUTREACH,529058,130243330,18-Nov-14,398.80,GENERATE OPPORTUNITIES LTD,SP0000503
WANDSWORTH COUNCIL,ASC,SOCIAL SERVICES,OTHER AGENCIES,Revenue,EXTERNAL OUTREACH,529059,130243330,18-Nov-14,919.40,GENERATE OPPORTUNITIES LTD,SP0000503
WANDSWORTH COUNCIL,ASC,SOCIAL SERVICES,OTHER AGENCIES,Revenue,EXTERNAL OUTREACH,529063,130243330,18-Nov-14,997.00,GENERATE OPPORTUNITIES LTD,SP0000503
WANDSWORTH COUNCIL,ASC,SOCIAL SERVICES,OTHER AGENCIES,Revenue,EXTERNAL OUTREACH,529073,130243330,18-Nov-14,402.80,GENERATE OPPORTUNITIES LTD,SP0000503
WANDSWORTH COUNCIL,ASC,SOCIAL SERVICES,OTHER AGENCIES,Revenue,EXTERNAL OUTREACH,529074,130243330,18-Nov-14,"3,093.75",GENERATE OPPORTUNITIES LTD,SP0000503
WANDSWORTH COUNCIL,ASC,SOCIAL SERVICES,OTHER AGENCIES,Revenue,EXTERNAL OUTREACH,539141,130243330,28-Nov-14,506.56,HARINGEY ASSOCIATION FOR INDEPENDENT LIV,SP0000222
WANDSWORTH COUNCIL,ASC,SOCIAL SERVICES,OTHER AGENCIES,Revenue,EXTERNAL OUTREACH,539144,130243330,28-Nov-14,628.00,HARINGEY ASSOCIATION FOR INDEPENDENT LIV,SP0000222
WANDSWORTH COUNCIL,ASC,SOCIAL SERVICES,OTHER AGENCIES,Revenue,EXTERNAL OUTREACH,523250,130243330,11-Nov-14,850.00,PROTOCOL EDUCATION  LTD,SP0000171
WANDSWORTH COUNCIL,ASC,SOCIAL SERVICES,OTHER AGENCIES,Revenue,EXTERNAL OUTREACH,525570,130243330,17-Nov-14,850.00,PROTOCOL EDUCATION  LTD,SP0000171
WANDSWORTH COUNCIL,ASC,SOCIAL SERVICES,OTHER AGENCIES,Revenue,EXTERNAL OUTREACH,533091,130243330,25-Nov-14,850.00,PROTOCOL EDUCATION  LTD,SP0000171
WANDSWORTH COUNCIL,ASC,SOCIAL SERVICES,OTHER AGENCIES,Revenue,EXTERNAL OUTREACH,526144,130243330,14-Nov-14,579.44,RAINBOW MEDICAL SERVICES,SP0000037
WANDSWORTH COUNCIL,ASC,SOCIAL SERVICES,OTHER AGENCIES,Revenue,EXTERNAL OUTREACH,526145,130243330,14-Nov-14,852.56,RAINBOW MEDICAL SERVICES,SP0000037
WANDSWORTH COUNCIL,ASC,SOCIAL SERVICES,OTHER AGENCIES,Revenue,EXTERNAL OUTREACH,526135,130243330,14-Nov-14,"3,360.00",RELIABLE PERSONNEL LTD,SP0005657
WANDSWORTH COUNCIL,ASC,SOCIAL SERVICES,OTHER AGENCIES,Revenue,EXTERNAL OUTREACH,525126,130243330,13-Nov-14,"1,050.00",ROYAL ASSOCIATION FOR DEAF PEOPLE,SP0001251
WANDSWORTH COUNCIL,ASC,SOCIAL SERVICES,OTHER AGENCIES,Revenue,EXTERNAL OUTREACH,534241,130243330,26-Nov-14,"1,200.00",ROYAL ASSOCIATION FOR DEAF PEOPLE,SP0001251
WANDSWORTH COUNCIL,ASC,SOCIAL SERVICES,OTHER AGENCIES,Revenue,EXTERNAL OUTREACH,521511,130243330,07-Nov-14,537.60,SHAFTESBURY HOMES AND ARETHUSA,SP0000836
WANDSWORTH COUNCIL,ASC,SOCIAL SERVICES,OTHER AGENCIES,Revenue,EXTERNAL OUTREACH,520884,130243330,05-Nov-14,"3,555.36",SOUTHSIDE PARTNERSHIP,SP0000692
WANDSWORTH COUNCIL,ASC,SOCIAL SERVICES,OTHER AGENCIES,Revenue,EXTERNAL OUTREACH,529104,130243330,18-Nov-14,331.20,THE BRANDON TRUST,SP0005337
WANDSWORTH COUNCIL,ASC,SOCIAL SERVICES,OTHER AGENCIES,Revenue,EXTERNAL OUTREACH,529117,130243330,18-Nov-14,757.92,THE BRANDON TRUST,SP0005337
WANDSWORTH COUNCIL,ASC,SOCIAL SERVICES,OTHER AGENCIES,Revenue,EXTERNAL OUTREACH,529124,130243330,18-Nov-14,"1,170.80",THE BRANDON TRUST,SP0005337
WANDSWORTH COUNCIL,ASC,SOCIAL SERVICES,OTHER AGENCIES,Revenue,EXTERNAL OUTREACH,529152,130243330,18-Nov-14,694.76,THE BRANDON TRUST,SP0005337
WANDSWORTH COUNCIL,ASC,SOCIAL SERVICES,OTHER AGENCIES,Revenue,EXTERNAL OUTREACH,529208,130243330,18-Nov-14,631.60,THE BRANDON TRUST,SP0005337
WANDSWORTH COUNCIL,ASC,SOCIAL SERVICES,OTHER AGENCIES,Revenue,EXTERNAL OUTREACH,529219,130243330,18-Nov-14,568.44,THE BRANDON TRUST,SP0005337
WANDSWORTH COUNCIL,ASC,SOCIAL SERVICES,OTHER AGENCIES,Revenue,EXTERNAL OUTREACH,529220,130243330,18-Nov-14,757.92,THE BRANDON TRUST,SP0005337
WANDSWORTH COUNCIL,ASC,SOCIAL SERVICES,OTHER AGENCIES,Revenue,EXTERNAL OUTREACH,529221,130243330,18-Nov-14,252.64,THE BRANDON TRUST,SP0005337
WANDSWORTH COUNCIL,ASC,SOCIAL SERVICES,OTHER AGENCIES,Revenue,EXTERNAL OUTREACH,529228,130243330,18-Nov-14,947.40,THE BRANDON TRUST,SP0005337
WANDSWORTH COUNCIL,ASC,ENVIRONMENT & COMMUNITY,OTHER AGENCIES,Revenue,APS SHARED LIVES SCHEME,538675,130243820,28-Nov-14,"15,619.00",SOUTHSIDE PARTNERSHIP,SP0000692
WANDSWORTH COUNCIL,ASC,ENVIRONMENT & COMMUNITY,OTHER AGENCIES,Revenue,APS SHARED LIVES SCHEME,538678,130243820,28-Nov-14,"10,712.98",SOUTHSIDE PARTNERSHIP,SP0000692
WANDSWORTH COUNCIL,ASC,SOCIAL SERVICES,PRIVATE,Revenue,EXTERNAL DAYCARE,526079,130245290,14-Nov-14,554.04,ACT TOO LTD,SP0000855
WANDSWORTH COUNCIL,ASC,SOCIAL SERVICES,PRIVATE,Revenue,EXTERNAL DAYCARE,526084,130245290,14-Nov-14,554.04,ACT TOO LTD,SP0000855
WANDSWORTH COUNCIL,ASC,SOCIAL SERVICES,PRIVATE,Revenue,EXTERNAL DAYCARE,526085,130245290,14-Nov-14,"1,108.08",ACT TOO LTD,SP0000855
WANDSWORTH COUNCIL,ASC,SOCIAL SERVICES,PRIVATE,Revenue,EXTERNAL DAYCARE,526088,130245290,14-Nov-14,554.04,ACT TOO LTD,SP0000855
WANDSWORTH COUNCIL,ASC,SOCIAL SERVICES,PRIVATE,Revenue,EXTERNAL DAYCARE,526091,130245290,14-Nov-14,738.72,ACT TOO LTD,SP0000855
WANDSWORTH COUNCIL,ASC,SOCIAL SERVICES,PRIVATE,Revenue,EXTERNAL DAYCARE,526097,130245290,14-Nov-14,554.04,ACT TOO LTD,SP0000855
WANDSWORTH COUNCIL,ASC,SOCIAL SERVICES,PRIVATE,Revenue,EXTERNAL DAYCARE,526098,130245290,14-Nov-14,554.04,ACT TOO LTD,SP0000855
WANDSWORTH COUNCIL,ASC,SOCIAL SERVICES,PRIVATE,Revenue,EXTERNAL DAYCARE,526100,130245290,14-Nov-14,923.40,ACT TOO LTD,SP0000855
WANDSWORTH COUNCIL,ASC,SOCIAL SERVICES,PRIVATE,Revenue,EXTERNAL DAYCARE,526101,130245290,14-Nov-14,738.72,ACT TOO LTD,SP0000855
WANDSWORTH COUNCIL,ASC,SOCIAL SERVICES,PRIVATE,Revenue,EXTERNAL DAYCARE,526102,130245290,14-Nov-14,738.72,ACT TOO LTD,SP0000855
WANDSWORTH COUNCIL,ASC,SOCIAL SERVICES,PRIVATE,Revenue,EXTERNAL DAYCARE,526103,130245290,14-Nov-14,738.72,ACT TOO LTD,SP0000855
WANDSWORTH COUNCIL,ASC,SOCIAL SERVICES,PRIVATE,Revenue,EXTERNAL DAYCARE,526106,130245290,14-Nov-14,554.04,ACT TOO LTD,SP0000855
WANDSWORTH COUNCIL,ASC,SOCIAL SERVICES,PRIVATE,Revenue,EXTERNAL DAYCARE,530574,130245290,21-Nov-14,554.04,ACT TOO LTD,SP0000855
WANDSWORTH COUNCIL,ASC,SOCIAL SERVICES,PRIVATE,Revenue,EXTERNAL DAYCARE,530575,130245290,21-Nov-14,738.72,ACT TOO LTD,SP0000855
WANDSWORTH COUNCIL,ASC,SOCIAL SERVICES,PRIVATE,Revenue,EXTERNAL DAYCARE,530578,130245290,21-Nov-14,554.04,ACT TOO LTD,SP0000855
WANDSWORTH COUNCIL,ASC,SOCIAL SERVICES,PRIVATE,Revenue,EXTERNAL DAYCARE,530579,130245290,21-Nov-14,554.04,ACT TOO LTD,SP0000855
WANDSWORTH COUNCIL,ASC,SOCIAL SERVICES,PRIVATE,Revenue,EXTERNAL DAYCARE,530580,130245290,21-Nov-14,"1,108.08",ACT TOO LTD,SP0000855
WANDSWORTH COUNCIL,ASC,SOCIAL SERVICES,PRIVATE,Revenue,EXTERNAL DAYCARE,530583,130245290,21-Nov-14,554.04,ACT TOO LTD,SP0000855
WANDSWORTH COUNCIL,ASC,SOCIAL SERVICES,PRIVATE,Revenue,EXTERNAL DAYCARE,530584,130245290,21-Nov-14,554.04,ACT TOO LTD,SP0000855
WANDSWORTH COUNCIL,ASC,SOCIAL SERVICES,PRIVATE,Revenue,EXTERNAL DAYCARE,530585,130245290,21-Nov-14,923.40,ACT TOO LTD,SP0000855
WANDSWORTH COUNCIL,ASC,SOCIAL SERVICES,PRIVATE,Revenue,EXTERNAL DAYCARE,530589,130245290,21-Nov-14,554.04,ACT TOO LTD,SP0000855
WANDSWORTH COUNCIL,ASC,SOCIAL SERVICES,PRIVATE,Revenue,EXTERNAL DAYCARE,530591,130245290,21-Nov-14,554.04,ACT TOO LTD,SP0000855
WANDSWORTH COUNCIL,ASC,SOCIAL SERVICES,PRIVATE,Revenue,EXTERNAL DAYCARE,530596,130245290,21-Nov-14,923.40,ACT TOO LTD,SP0000855
WANDSWORTH COUNCIL,ASC,SOCIAL SERVICES,PRIVATE,Revenue,EXTERNAL DAYCARE,530599,130245290,21-Nov-14,554.04,ACT TOO LTD,SP0000855
WANDSWORTH COUNCIL,ASC,SOCIAL SERVICES,PRIVATE,Revenue,EXTERNAL DAYCARE,530603,130245290,21-Nov-14,554.04,ACT TOO LTD,SP0000855
WANDSWORTH COUNCIL,ASC,SOCIAL SERVICES,PRIVATE,Revenue,EXTERNAL DAYCARE,530604,130245290,21-Nov-14,554.04,ACT TOO LTD,SP0000855
WANDSWORTH COUNCIL,ASC,SOCIAL SERVICES,PRIVATE,Revenue,EXTERNAL DAYCARE,530606,130245290,21-Nov-14,738.72,ACT TOO LTD,SP0000855
WANDSWORTH COUNCIL,ASC,SOCIAL SERVICES,PRIVATE,Revenue,EXTERNAL DAYCARE,530608,130245290,21-Nov-14,554.04,ACT TOO LTD,SP0000855
WANDSWORTH COUNCIL,ASC,SOCIAL SERVICES,PRIVATE,Revenue,EXTERNAL DAYCARE,530610,130245290,21-Nov-14,923.40,ACT TOO LTD,SP0000855
WANDSWORTH COUNCIL,ASC,SOCIAL SERVICES,PRIVATE,Revenue,EXTERNAL DAYCARE,530612,130245290,21-Nov-14,554.04,ACT TOO LTD,SP0000855
WANDSWORTH COUNCIL,ASC,SOCIAL SERVICES,PRIVATE,Revenue,EXTERNAL DAYCARE,530614,130245290,21-Nov-14,554.04,ACT TOO LTD,SP0000855
WANDSWORTH COUNCIL,ASC,SOCIAL SERVICES,PRIVATE,Revenue,EXTERNAL DAYCARE,526033,130245290,14-Nov-14,"1,258.79",ANTHONY TOBY HOMES TRUST,SP0000755
WANDSWORTH COUNCIL,ASC,SOCIAL SERVICES,PRIVATE,Revenue,EXTERNAL DAYCARE,533054,130245290,25-Nov-14,"1,001.19",ASHFIELD CARE HOMES LTD,SP0000590
WANDSWORTH COUNCIL,ASC,SOCIAL SERVICES,PRIVATE,Revenue,EXTERNAL DAYCARE,533732,130245290,25-Nov-14,870.60,ASHFIELD CARE HOMES LTD,SP0000590
WANDSWORTH COUNCIL,ASC,SOCIAL SERVICES,PRIVATE,Revenue,EXTERNAL DAYCARE,520832,130245290,05-Nov-14,942.23,CHATSWORTH CARE,SP0000831
WANDSWORTH COUNCIL,ASC,SOCIAL SERVICES,PRIVATE,Revenue,EXTERNAL DAYCARE,538644,130245290,28-Nov-14,911.84,CHATSWORTH CARE,SP0000831
WANDSWORTH COUNCIL,ASC,SOCIAL SERVICES,PRIVATE,Revenue,EXTERNAL DAYCARE,533007,130245290,25-Nov-14,768.78,CHOICES,SP0000486
WANDSWORTH COUNCIL,ASC,SOCIAL SERVICES,PRIVATE,Revenue,EXTERNAL DAYCARE,520831,130245290,05-Nov-14,"2,189.83",CMG HOMES LTD,SP0000075
WANDSWORTH COUNCIL,ASC,SOCIAL SERVICES,PRIVATE,Revenue,EXTERNAL DAYCARE,538581,130245290,28-Nov-14,"1,904.20",CMG HOMES LTD,SP0000075
WANDSWORTH COUNCIL,ASC,SOCIAL SERVICES,PRIVATE,Revenue,EXTERNAL DAYCARE,533190,130245290,25-Nov-14,963.20,COUNTRY CARE,SP0000090
WANDSWORTH COUNCIL,ASC,SOCIAL SERVICES,PRIVATE,Revenue,EXTERNAL DAYCARE,538574,130245290,28-Nov-14,806.04,CRAEGMOOR FACILITIES CO LTD,SP0000306
WANDSWORTH COUNCIL,ASC,SOCIAL SERVICES,PRIVATE,Revenue,EXTERNAL DAYCARE,526032,130245290,14-Nov-14,767.08,CREST COOPERATIVE LTD,SP0000683
WANDSWORTH COUNCIL,ASC,SOCIAL SERVICES,PRIVATE,Revenue,EXTERNAL DAYCARE,533058,130245290,25-Nov-14,973.60,DOLPHIN HOMES LTD,SP0000331
WANDSWORTH COUNCIL,ASC,SOCIAL SERVICES,PRIVATE,Revenue,EXTERNAL DAYCARE,521447,130245290,07-Nov-14,840.00,DORSET SCOPE,SP0000591
WANDSWORTH COUNCIL,ASC,SOCIAL SERVICES,PRIVATE,Revenue,EXTERNAL DAYCARE,521448,130245290,07-Nov-14,892.50,DORSET SCOPE,SP0000591
WANDSWORTH COUNCIL,ASC,SOCIAL SERVICES,PRIVATE,Revenue,EXTERNAL DAYCARE,533055,130245290,25-Nov-14,997.50,DORSET SCOPE,SP0000591
WANDSWORTH COUNCIL,ASC,SOCIAL SERVICES,PRIVATE,Revenue,EXTERNAL DAYCARE,529015,130245290,18-Nov-14,720.00,GENERATE OPPORTUNITIES LTD,SP0000503
WANDSWORTH COUNCIL,ASC,SOCIAL SERVICES,PRIVATE,Revenue,EXTERNAL DAYCARE,529016,130245290,18-Nov-14,800.00,GENERATE OPPORTUNITIES LTD,SP0000503
WANDSWORTH COUNCIL,ASC,SOCIAL SERVICES,PRIVATE,Revenue,EXTERNAL DAYCARE,529021,130245290,18-Nov-14,600.00,GENERATE OPPORTUNITIES LTD,SP0000503
WANDSWORTH COUNCIL,ASC,SOCIAL SERVICES,PRIVATE,Revenue,EXTERNAL DAYCARE,529023,130245290,18-Nov-14,700.00,GENERATE OPPORTUNITIES LTD,SP0000503
WANDSWORTH COUNCIL,ASC,SOCIAL SERVICES,PRIVATE,Revenue,EXTERNAL DAYCARE,529024,130245290,18-Nov-14,400.00,GENERATE OPPORTUNITIES LTD,SP0000503
WANDSWORTH COUNCIL,ASC,SOCIAL SERVICES,PRIVATE,Revenue,EXTERNAL DAYCARE,529025,130245290,18-Nov-14,720.00,GENERATE OPPORTUNITIES LTD,SP0000503
WANDSWORTH COUNCIL,ASC,SOCIAL SERVICES,PRIVATE,Revenue,EXTERNAL DAYCARE,529027,130245290,18-Nov-14,"1,000.00",GENERATE OPPORTUNITIES LTD,SP0000503
WANDSWORTH COUNCIL,ASC,SOCIAL SERVICES,PRIVATE,Revenue,EXTERNAL DAYCARE,529028,130245290,18-Nov-14,600.00,GENERATE OPPORTUNITIES LTD,SP0000503
WANDSWORTH COUNCIL,ASC,SOCIAL SERVICES,PRIVATE,Revenue,EXTERNAL DAYCARE,529046,130245290,18-Nov-14,720.00,GENERATE OPPORTUNITIES LTD,SP0000503
WANDSWORTH COUNCIL,ASC,SOCIAL SERVICES,PRIVATE,Revenue,EXTERNAL DAYCARE,529055,130245290,18-Nov-14,700.00,GENERATE OPPORTUNITIES LTD,SP0000503
WANDSWORTH COUNCIL,ASC,SOCIAL SERVICES,PRIVATE,Revenue,EXTERNAL DAYCARE,529056,130245290,18-Nov-14,720.00,GENERATE OPPORTUNITIES LTD,SP0000503
WANDSWORTH COUNCIL,ASC,SOCIAL SERVICES,PRIVATE,Revenue,EXTERNAL DAYCARE,529058,130245290,18-Nov-14,200.00,GENERATE OPPORTUNITIES LTD,SP0000503
WANDSWORTH COUNCIL,ASC,SOCIAL SERVICES,PRIVATE,Revenue,EXTERNAL DAYCARE,529060,130245290,18-Nov-14,"1,375.00",GENERATE OPPORTUNITIES LTD,SP0000503
WANDSWORTH COUNCIL,ASC,SOCIAL SERVICES,PRIVATE,Revenue,EXTERNAL DAYCARE,529073,130245290,18-Nov-14,350.00,GENERATE OPPORTUNITIES LTD,SP0000503
WANDSWORTH COUNCIL,ASC,SOCIAL SERVICES,PRIVATE,Revenue,EXTERNAL DAYCARE,529607,130245290,19-Nov-14,720.00,GENERATE OPPORTUNITIES LTD,SP0000503
WANDSWORTH COUNCIL,ASC,SOCIAL SERVICES,PRIVATE,Revenue,EXTERNAL DAYCARE,530622,130245290,21-Nov-14,869.40,HARROW MENCAP,SP0001347
WANDSWORTH COUNCIL,ASC,SOCIAL SERVICES,PRIVATE,Revenue,EXTERNAL DAYCARE,521443,130245290,07-Nov-14,602.56,HIGH HURLANDS HOMES,SP0000668
WANDSWORTH COUNCIL,ASC,SOCIAL SERVICES,PRIVATE,Revenue,EXTERNAL DAYCARE,533059,130245290,25-Nov-14,602.56,HIGH HURLANDS HOMES,SP0000668
WANDSWORTH COUNCIL,ASC,SOCIAL SERVICES,PRIVATE,Revenue,EXTERNAL DAYCARE,530302,130245290,21-Nov-14,"1,501.20",LONDON CARE PARTNERSHIP LTD,SP0001138
WANDSWORTH COUNCIL,ASC,SOCIAL SERVICES,PRIVATE,Revenue,EXTERNAL DAYCARE,523262,130245290,11-Nov-14,649.50,MENCAP OPEN DOOR,SP0000832
WANDSWORTH COUNCIL,ASC,SOCIAL SERVICES,PRIVATE,Revenue,EXTERNAL DAYCARE,533735,130245290,25-Nov-14,515.52,MENCAP OPEN DOOR,SP0000832
WANDSWORTH COUNCIL,ASC,SOCIAL SERVICES,PRIVATE,Revenue,EXTERNAL DAYCARE,533778,130245290,25-Nov-14,504.80,MENCAP OPEN DOOR,SP0000832
WANDSWORTH COUNCIL,ASC,SOCIAL SERVICES,PRIVATE,Revenue,EXTERNAL DAYCARE,521504,130245290,07-Nov-14,"1,920.90",NAS SERVICES LIMITED,SP0000217
WANDSWORTH COUNCIL,ASC,SOCIAL SERVICES,PRIVATE,Revenue,EXTERNAL DAYCARE,533722,130245290,25-Nov-14,"2,303.20",NAS SERVICES LIMITED,SP0000217
WANDSWORTH COUNCIL,ASC,SOCIAL SERVICES,PRIVATE,Revenue,EXTERNAL DAYCARE,533723,130245290,25-Nov-14,"2,022.04",NAS SERVICES LIMITED,SP0000217
WANDSWORTH COUNCIL,ASC,SOCIAL SERVICES,PRIVATE,Revenue,EXTERNAL DAYCARE,533056,130245290,25-Nov-14,"2,000.16",NORWOOD SCHOOLS LTD,SP0000332
WANDSWORTH COUNCIL,ASC,SOCIAL SERVICES,PRIVATE,Revenue,EXTERNAL DAYCARE,533057,130245290,25-Nov-14,"2,055.64",NORWOOD SCHOOLS LTD,SP0000332
WANDSWORTH COUNCIL,ASC,SOCIAL SERVICES,PRIVATE,Revenue,EXTERNAL DAYCARE,530619,130245290,21-Nov-14,878.48,ORCHARD VALE TRUST,SP0000214
WANDSWORTH COUNCIL,ASC,SOCIAL SERVICES,PRIVATE,Revenue,EXTERNAL DAYCARE,521505,130245290,07-Nov-14,836.10,ORIONE CARE,SP0000961
WANDSWORTH COUNCIL,ASC,SOCIAL SERVICES,PRIVATE,Revenue,EXTERNAL DAYCARE,530623,130245290,21-Nov-14,891.29,ORIONE CARE,SP0000961
WANDSWORTH COUNCIL,ASC,SOCIAL SERVICES,PRIVATE,Revenue,EXTERNAL DAYCARE,530625,130245290,21-Nov-14,656.74,ORIONE CARE,SP0000961
WANDSWORTH COUNCIL,ASC,SOCIAL SERVICES,PRIVATE,Revenue,EXTERNAL DAYCARE,533192,130245290,25-Nov-14,546.00,PARCHMENT TRUST LTD,SP0000255
WANDSWORTH COUNCIL,ASC,SOCIAL SERVICES,PRIVATE,Revenue,EXTERNAL DAYCARE,521446,130245290,07-Nov-14,540.00,PROSPECTS,SP0000800
WANDSWORTH COUNCIL,ASC,SOCIAL SERVICES,PRIVATE,Revenue,EXTERNAL DAYCARE,530626,130245290,21-Nov-14,"1,268.93",RESIDENTIAL CARE SERVICES T/A FRANKLYN L,SP0000147
WANDSWORTH COUNCIL,ASC,SOCIAL SERVICES,PRIVATE,Revenue,EXTERNAL DAYCARE,539080,130245290,28-Nov-14,"1,103.42",RESIDENTIAL CARE SERVICES T/A FRANKLYN L,SP0000147
WANDSWORTH COUNCIL,ASC,SOCIAL SERVICES,PRIVATE,Revenue,EXTERNAL DAYCARE,530265,130245290,21-Nov-14,"1,200.00",RIDGEWOOD CARE SERVICES LTD,SP0000969
WANDSWORTH COUNCIL,ASC,SOCIAL SERVICES,PRIVATE,Revenue,EXTERNAL DAYCARE,533731,130245290,25-Nov-14,"1,138.40",RIDGEWOOD CARE SERVICES LTD,SP0000969
WANDSWORTH COUNCIL,ASC,SOCIAL SERVICES,PRIVATE,Revenue,EXTERNAL DAYCARE,538531,130245290,28-Nov-14,"1,200.00",RIDGEWOOD CARE SERVICES LTD,SP0000969
WANDSWORTH COUNCIL,ASC,SOCIAL SERVICES,PRIVATE,Revenue,EXTERNAL DAYCARE,521444,130245290,07-Nov-14,814.03,SCOPE,SP0000852
WANDSWORTH COUNCIL,ASC,SOCIAL SERVICES,PRIVATE,Revenue,EXTERNAL DAYCARE,521509,130245290,07-Nov-14,833.52,SCOPE,SP0000852
WANDSWORTH COUNCIL,ASC,SOCIAL SERVICES,PRIVATE,Revenue,EXTERNAL DAYCARE,533062,130245290,25-Nov-14,895.20,SCOPE,SP0000991
WANDSWORTH COUNCIL,ASC,SOCIAL SERVICES,PRIVATE,Revenue,EXTERNAL DAYCARE,533063,130245290,25-Nov-14,596.80,SCOPE,SP0000991
WANDSWORTH COUNCIL,ASC,SOCIAL SERVICES,PRIVATE,Revenue,EXTERNAL DAYCARE,539077,130245290,28-Nov-14,814.03,SCOPE,SP0000852
WANDSWORTH COUNCIL,ASC,SOCIAL SERVICES,PRIVATE,Revenue,EXTERNAL DAYCARE,521450,130245290,07-Nov-14,588.40,SHARE COMMUNITY,SP0000329
WANDSWORTH COUNCIL,ASC,SOCIAL SERVICES,PRIVATE,Revenue,EXTERNAL DAYCARE,521451,130245290,07-Nov-14,882.60,SHARE COMMUNITY,SP0000329
WANDSWORTH COUNCIL,ASC,SOCIAL SERVICES,PRIVATE,Revenue,EXTERNAL DAYCARE,521452,130245290,07-Nov-14,588.40,SHARE COMMUNITY,SP0000329
WANDSWORTH COUNCIL,ASC,SOCIAL SERVICES,PRIVATE,Revenue,EXTERNAL DAYCARE,521453,130245290,07-Nov-14,"1,176.80",SHARE COMMUNITY,SP0000329
WANDSWORTH COUNCIL,ASC,SOCIAL SERVICES,PRIVATE,Revenue,EXTERNAL DAYCARE,521454,130245290,07-Nov-14,882.60,SHARE COMMUNITY,SP0000329
WANDSWORTH COUNCIL,ASC,SOCIAL SERVICES,PRIVATE,Revenue,EXTERNAL DAYCARE,521455,130245290,07-Nov-14,882.60,SHARE COMMUNITY,SP0000329
WANDSWORTH COUNCIL,ASC,SOCIAL SERVICES,PRIVATE,Revenue,EXTERNAL DAYCARE,521456,130245290,07-Nov-14,882.60,SHARE COMMUNITY,SP0000329
WANDSWORTH COUNCIL,ASC,SOCIAL SERVICES,PRIVATE,Revenue,EXTERNAL DAYCARE,521457,130245290,07-Nov-14,882.60,SHARE COMMUNITY,SP0000329
WANDSWORTH COUNCIL,ASC,SOCIAL SERVICES,PRIVATE,Revenue,EXTERNAL DAYCARE,521458,130245290,07-Nov-14,588.40,SHARE COMMUNITY,SP0000329
WANDSWORTH COUNCIL,ASC,SOCIAL SERVICES,PRIVATE,Revenue,EXTERNAL DAYCARE,521459,130245290,07-Nov-14,"1,176.80",SHARE COMMUNITY,SP0000329
WANDSWORTH COUNCIL,ASC,SOCIAL SERVICES,PRIVATE,Revenue,EXTERNAL DAYCARE,521460,130245290,07-Nov-14,"1,471.00",SHARE COMMUNITY,SP0000329
WANDSWORTH COUNCIL,ASC,SOCIAL SERVICES,PRIVATE,Revenue,EXTERNAL DAYCARE,521461,130245290,07-Nov-14,"1,471.00",SHARE COMMUNITY,SP0000329
WANDSWORTH COUNCIL,ASC,SOCIAL SERVICES,PRIVATE,Revenue,EXTERNAL DAYCARE,521462,130245290,07-Nov-14,882.60,SHARE COMMUNITY,SP0000329
WANDSWORTH COUNCIL,ASC,SOCIAL SERVICES,PRIVATE,Revenue,EXTERNAL DAYCARE,521463,130245290,07-Nov-14,735.50,SHARE COMMUNITY,SP0000329
WANDSWORTH COUNCIL,ASC,SOCIAL SERVICES,PRIVATE,Revenue,EXTERNAL DAYCARE,521464,130245290,07-Nov-14,882.60,SHARE COMMUNITY,SP0000329
WANDSWORTH COUNCIL,ASC,SOCIAL SERVICES,PRIVATE,Revenue,EXTERNAL DAYCARE,521465,130245290,07-Nov-14,"1,176.80",SHARE COMMUNITY,SP0000329
WANDSWORTH COUNCIL,ASC,SOCIAL SERVICES,PRIVATE,Revenue,EXTERNAL DAYCARE,521468,130245290,07-Nov-14,882.60,SHARE COMMUNITY,SP0000329
WANDSWORTH COUNCIL,ASC,SOCIAL SERVICES,PRIVATE,Revenue,EXTERNAL DAYCARE,521470,130245290,07-Nov-14,735.50,SHARE COMMUNITY,SP0000329
WANDSWORTH COUNCIL,ASC,SOCIAL SERVICES,PRIVATE,Revenue,EXTERNAL DAYCARE,521471,130245290,07-Nov-14,882.60,SHARE COMMUNITY,SP0000329
WANDSWORTH COUNCIL,ASC,SOCIAL SERVICES,PRIVATE,Revenue,EXTERNAL DAYCARE,521472,130245290,07-Nov-14,882.60,SHARE COMMUNITY,SP0000329
WANDSWORTH COUNCIL,ASC,SOCIAL SERVICES,PRIVATE,Revenue,EXTERNAL DAYCARE,521474,130245290,07-Nov-14,588.40,SHARE COMMUNITY,SP0000329
WANDSWORTH COUNCIL,ASC,SOCIAL SERVICES,PRIVATE,Revenue,EXTERNAL DAYCARE,521476,130245290,07-Nov-14,882.60,SHARE COMMUNITY,SP0000329
WANDSWORTH COUNCIL,ASC,SOCIAL SERVICES,PRIVATE,Revenue,EXTERNAL DAYCARE,521477,130245290,07-Nov-14,"1,471.00",SHARE COMMUNITY,SP0000329
WANDSWORTH COUNCIL,ASC,SOCIAL SERVICES,PRIVATE,Revenue,EXTERNAL DAYCARE,521478,130245290,07-Nov-14,588.40,SHARE COMMUNITY,SP0000329
WANDSWORTH COUNCIL,ASC,SOCIAL SERVICES,PRIVATE,Revenue,EXTERNAL DAYCARE,521479,130245290,07-Nov-14,588.40,SHARE COMMUNITY,SP0000329
WANDSWORTH COUNCIL,ASC,SOCIAL SERVICES,PRIVATE,Revenue,EXTERNAL DAYCARE,521481,130245290,07-Nov-14,588.40,SHARE COMMUNITY,SP0000329
WANDSWORTH COUNCIL,ASC,SOCIAL SERVICES,PRIVATE,Revenue,EXTERNAL DAYCARE,521483,130245290,07-Nov-14,882.60,SHARE COMMUNITY,SP0000329
WANDSWORTH COUNCIL,ASC,SOCIAL SERVICES,PRIVATE,Revenue,EXTERNAL DAYCARE,521484,130245290,07-Nov-14,882.60,SHARE COMMUNITY,SP0000329
WANDSWORTH COUNCIL,ASC,SOCIAL SERVICES,PRIVATE,Revenue,EXTERNAL DAYCARE,521485,130245290,07-Nov-14,588.40,SHARE COMMUNITY,SP0000329
WANDSWORTH COUNCIL,ASC,SOCIAL SERVICES,PRIVATE,Revenue,EXTERNAL DAYCARE,521486,130245290,07-Nov-14,588.40,SHARE COMMUNITY,SP0000329
WANDSWORTH COUNCIL,ASC,SOCIAL SERVICES,PRIVATE,Revenue,EXTERNAL DAYCARE,521488,130245290,07-Nov-14,882.60,SHARE COMMUNITY,SP0000329
WANDSWORTH COUNCIL,ASC,SOCIAL SERVICES,PRIVATE,Revenue,EXTERNAL DAYCARE,521490,130245290,07-Nov-14,882.60,SHARE COMMUNITY,SP0000329
WANDSWORTH COUNCIL,ASC,SOCIAL SERVICES,PRIVATE,Revenue,EXTERNAL DAYCARE,521491,130245290,07-Nov-14,588.40,SHARE COMMUNITY,SP0000329
WANDSWORTH COUNCIL,ASC,SOCIAL SERVICES,PRIVATE,Revenue,EXTERNAL DAYCARE,521492,130245290,07-Nov-14,"1,176.80",SHARE COMMUNITY,SP0000329
WANDSWORTH COUNCIL,ASC,SOCIAL SERVICES,PRIVATE,Revenue,EXTERNAL DAYCARE,521493,130245290,07-Nov-14,882.60,SHARE COMMUNITY,SP0000329
WANDSWORTH COUNCIL,ASC,SOCIAL SERVICES,PRIVATE,Revenue,EXTERNAL DAYCARE,521495,130245290,07-Nov-14,882.60,SHARE COMMUNITY,SP0000329
WANDSWORTH COUNCIL,ASC,SOCIAL SERVICES,PRIVATE,Revenue,EXTERNAL DAYCARE,521496,130245290,07-Nov-14,588.40,SHARE COMMUNITY,SP0000329
WANDSWORTH COUNCIL,ASC,SOCIAL SERVICES,PRIVATE,Revenue,EXTERNAL DAYCARE,521497,130245290,07-Nov-14,882.60,SHARE COMMUNITY,SP0000329
WANDSWORTH COUNCIL,ASC,SOCIAL SERVICES,PRIVATE,Revenue,EXTERNAL DAYCARE,521498,130245290,07-Nov-14,588.40,SHARE COMMUNITY,SP0000329
WANDSWORTH COUNCIL,ASC,SOCIAL SERVICES,PRIVATE,Revenue,EXTERNAL DAYCARE,521500,130245290,07-Nov-14,588.40,SHARE COMMUNITY,SP0000329
WANDSWORTH COUNCIL,ASC,SOCIAL SERVICES,PRIVATE,Revenue,EXTERNAL DAYCARE,521501,130245290,07-Nov-14,588.40,SHARE COMMUNITY,SP0000329
WANDSWORTH COUNCIL,ASC,SOCIAL SERVICES,PRIVATE,Revenue,EXTERNAL DAYCARE,521502,130245290,07-Nov-14,882.60,SHARE COMMUNITY,SP0000329
WANDSWORTH COUNCIL,ASC,SOCIAL SERVICES,PRIVATE,Revenue,EXTERNAL DAYCARE,533728,130245290,25-Nov-14,"1,057.00",ST DAVIDS CARE IN THE COMMUNITY,SP0000379
WANDSWORTH COUNCIL,ASC,SOCIAL SERVICES,PRIVATE,Revenue,EXTERNAL DAYCARE,533729,130245290,25-Nov-14,"1,057.00",ST DAVIDS CARE IN THE COMMUNITY,SP0000379
WANDSWORTH COUNCIL,ASC,SOCIAL SERVICES,PRIVATE,Revenue,EXTERNAL DAYCARE,533730,130245290,25-Nov-14,"1,057.00",ST DAVIDS CARE IN THE COMMUNITY,SP0000379
WANDSWORTH COUNCIL,ASC,SOCIAL SERVICES,PRIVATE,Revenue,EXTERNAL DAYCARE,538641,130245290,28-Nov-14,"1,057.00",ST DAVIDS CARE IN THE COMMUNITY,SP0000379
WANDSWORTH COUNCIL,ASC,SOCIAL SERVICES,PRIVATE,Revenue,EXTERNAL DAYCARE,538642,130245290,28-Nov-14,"1,057.00",ST DAVIDS CARE IN THE COMMUNITY,SP0000379
WANDSWORTH COUNCIL,ASC,SOCIAL SERVICES,PRIVATE,Revenue,EXTERNAL DAYCARE,538643,130245290,28-Nov-14,"1,057.00",ST DAVIDS CARE IN THE COMMUNITY,SP0000379
WANDSWORTH COUNCIL,ASC,SOCIAL SERVICES,PRIVATE,Revenue,EXTERNAL DAYCARE,521445,130245290,07-Nov-14,"1,000.00",ST MARYS RESIDENTIAL HOME,SP0000215
WANDSWORTH COUNCIL,ASC,SOCIAL SERVICES,PRIVATE,Revenue,EXTERNAL DAYCARE,526043,130245290,14-Nov-14,516.50,ST MARYS RESIDENTIAL HOME,SP0000215
WANDSWORTH COUNCIL,ASC,SOCIAL SERVICES,PRIVATE,Revenue,EXTERNAL DAYCARE,526044,130245290,14-Nov-14,"2,171.05",ST MARYS RESIDENTIAL HOME,SP0000215
WANDSWORTH COUNCIL,ASC,SOCIAL SERVICES,PRIVATE,Revenue,EXTERNAL DAYCARE,526045,130245290,14-Nov-14,"1,000.00",ST MARYS RESIDENTIAL HOME,SP0000215
WANDSWORTH COUNCIL,ASC,SOCIAL SERVICES,PRIVATE,Revenue,EXTERNAL DAYCARE,526046,130245290,14-Nov-14,885.65,ST MARYS RESIDENTIAL HOME,SP0000215
WANDSWORTH COUNCIL,ASC,SOCIAL SERVICES,PRIVATE,Revenue,EXTERNAL DAYCARE,526047,130245290,14-Nov-14,500.00,ST MARYS RESIDENTIAL HOME,SP0000215
WANDSWORTH COUNCIL,ASC,SOCIAL SERVICES,PRIVATE,Revenue,EXTERNAL DAYCARE,526048,130245290,14-Nov-14,516.10,ST MARYS RESIDENTIAL HOME,SP0000215
WANDSWORTH COUNCIL,ASC,SOCIAL SERVICES,PRIVATE,Revenue,EXTERNAL DAYCARE,526049,130245290,14-Nov-14,516.50,ST MARYS RESIDENTIAL HOME,SP0000215
WANDSWORTH COUNCIL,ASC,SOCIAL SERVICES,PRIVATE,Revenue,EXTERNAL DAYCARE,526050,130245290,14-Nov-14,"1,196.00",ST MARYS RESIDENTIAL HOME,SP0000215
WANDSWORTH COUNCIL,ASC,SOCIAL SERVICES,PRIVATE,Revenue,EXTERNAL DAYCARE,526051,130245290,14-Nov-14,516.10,ST MARYS RESIDENTIAL HOME,SP0000215
WANDSWORTH COUNCIL,ASC,SOCIAL SERVICES,PRIVATE,Revenue,EXTERNAL DAYCARE,526052,130245290,14-Nov-14,667.85,ST MARYS RESIDENTIAL HOME,SP0000215
WANDSWORTH COUNCIL,ASC,SOCIAL SERVICES,PRIVATE,Revenue,EXTERNAL DAYCARE,526115,130245290,14-Nov-14,"1,586.84",STALLCOMBE HOUSE,SP0000843
WANDSWORTH COUNCIL,ASC,SOCIAL SERVICES,PRIVATE,Revenue,EXTERNAL DAYCARE,539083,130245290,28-Nov-14,"1,586.84",STALLCOMBE HOUSE,SP0000843
WANDSWORTH COUNCIL,ASC,SOCIAL SERVICES,PRIVATE,Revenue,EXTERNAL DAYCARE,526116,130245290,14-Nov-14,508.80,SURREY & BORDERS PARTNERSHIP NHS TRUST,SP0000501
WANDSWORTH COUNCIL,ASC,SOCIAL SERVICES,PRIVATE,Revenue,EXTERNAL DAYCARE,518781,130245290,03-Nov-14,"1,541.00",SUSSEX HEALTH CARE,SP0001115
WANDSWORTH COUNCIL,ASC,SOCIAL SERVICES,PRIVATE,Revenue,EXTERNAL DAYCARE,533353,130245290,25-Nov-14,"1,340.00",SUSSEX HEALTH CARE,SP0001115
WANDSWORTH COUNCIL,ASC,SOCIAL SERVICES,PRIVATE,Revenue,EXTERNAL DAYCARE,526071,130245290,14-Nov-14,650.00,THE CAMDEN SOCIETY,SP0001674
WANDSWORTH COUNCIL,ASC,SOCIAL SERVICES,PRIVATE,Revenue,EXTERNAL DAYCARE,526072,130245290,14-Nov-14,650.00,THE CAMDEN SOCIETY,SP0001674
WANDSWORTH COUNCIL,ASC,SOCIAL SERVICES,PRIVATE,Revenue,EXTERNAL DAYCARE,526073,130245290,14-Nov-14,650.00,THE CAMDEN SOCIETY,SP0001674
WANDSWORTH COUNCIL,ASC,SOCIAL SERVICES,PRIVATE,Revenue,EXTERNAL DAYCARE,526074,130245290,14-Nov-14,650.00,THE CAMDEN SOCIETY,SP0001674
WANDSWORTH COUNCIL,ASC,SOCIAL SERVICES,PRIVATE,Revenue,EXTERNAL DAYCARE,526075,130245290,14-Nov-14,650.00,THE CAMDEN SOCIETY,SP0001674
WANDSWORTH COUNCIL,ASC,SOCIAL SERVICES,PRIVATE,Revenue,EXTERNAL DAYCARE,526076,130245290,14-Nov-14,650.00,THE CAMDEN SOCIETY,SP0001674
WANDSWORTH COUNCIL,ASC,SOCIAL SERVICES,PRIVATE,Revenue,EXTERNAL DAYCARE,523173,130245290,11-Nov-14,125.80,THE CHESTNUTS,SP0000182
WANDSWORTH COUNCIL,ASC,SOCIAL SERVICES,PRIVATE,Revenue,EXTERNAL DAYCARE,523231,130245290,11-Nov-14,644.00,THE CHESTNUTS,SP0000182
WANDSWORTH COUNCIL,ASC,SOCIAL SERVICES,PRIVATE,Revenue,EXTERNAL DAYCARE,518778,130245290,03-Nov-14,-0.87,THE COMMUNITY CARE COMPANY UK LTD,SP0000576
WANDSWORTH COUNCIL,ASC,SOCIAL SERVICES,PRIVATE,Revenue,EXTERNAL DAYCARE,533060,130245290,25-Nov-14,990.00,THE HOME FARM TRUST LTD,SP0001048
WANDSWORTH COUNCIL,ASC,SOCIAL SERVICES,PRIVATE,Revenue,EXTERNAL DAYCARE,533061,130245290,25-Nov-14,980.00,THE MANOR,SP0000340
WANDSWORTH COUNCIL,ASC,SOCIAL SERVICES,PRIVATE,Revenue,EXTERNAL DAYCARE,530621,130245290,21-Nov-14,"1,057.00",THE MANOR HOUSE,SP0000728
WANDSWORTH COUNCIL,ASC,SOCIAL SERVICES,PRIVATE,Revenue,EXTERNAL DAYCARE,526113,130245290,14-Nov-14,"1,956.01",THE REGARD PARTNERSHIP,SP0000588
WANDSWORTH COUNCIL,ASC,SOCIAL SERVICES,PRIVATE,Revenue,EXTERNAL DAYCARE,530628,130245290,21-Nov-14,"1,371.17",THE REGARD PARTNERSHIP,SP0000588
WANDSWORTH COUNCIL,ASC,SOCIAL SERVICES,PRIVATE,Revenue,EXTERNAL DAYCARE,538639,130245290,28-Nov-14,"1,892.91",THE REGARD PARTNERSHIP,SP0000588
WANDSWORTH COUNCIL,ASC,SOCIAL SERVICES,PRIVATE,Revenue,EXTERNAL DAYCARE,538646,130245290,28-Nov-14,"1,326.94",THE REGARD PARTNERSHIP,SP0000588
WANDSWORTH COUNCIL,ASC,SOCIAL SERVICES,PRIVATE,Revenue,EXTERNAL DAYCARE,526059,130245290,14-Nov-14,616.00,THRIVE,SP0000601
WANDSWORTH COUNCIL,ASC,SOCIAL SERVICES,PRIVATE,Revenue,EXTERNAL DAYCARE,521321,130245290,07-Nov-14,527.36,UNITED RESPONSE,SP0000797
WANDSWORTH COUNCIL,ASC,SOCIAL SERVICES,PRIVATE,Revenue,EXTERNAL DAYCARE,526114,130245290,14-Nov-14,578.08,VOYAGE CARE LTD,SP0000366
WANDSWORTH COUNCIL,ASC,SOCIAL SERVICES,PRIVATE,Revenue,EXTERNAL DAYCARE,526130,130245290,14-Nov-14,"1,654.08",VOYAGE CARE LTD,SP0000366
WANDSWORTH COUNCIL,ASC,SOCIAL SERVICES,PRIVATE,Revenue,EXTERNAL DAYCARE,529413,130245290,18-Nov-14,"1,080.54",VOYAGE CARE LTD,SP0000366
WANDSWORTH COUNCIL,ASC,SOCIAL SERVICES,PRIVATE,Revenue,EXTERNAL DAYCARE,533461,130245290,25-Nov-14,939.60,VOYAGE CARE LTD,SP0000366
WANDSWORTH COUNCIL,ASC,SOCIAL SERVICES,PRIVATE,Revenue,EXTERNAL DAYCARE,538640,130245290,28-Nov-14,578.08,VOYAGE CARE LTD,SP0000366
WANDSWORTH COUNCIL,ASC,SOCIAL SERVICES,PRIVATE,Revenue,EXTERNAL DAYCARE,538645,130245290,28-Nov-14,"1,654.08",VOYAGE CARE LTD,SP0000366
WANDSWORTH COUNCIL,ASC,SOCIAL SERVICES,PRIVATE,Revenue,EXTERNAL DAYCARE,526118,130245290,14-Nov-14,760.00,WANDSWORTH BENGALI WELFARE ASSOCIATION,SP0000479
WANDSWORTH COUNCIL,ASC,SOCIAL SERVICES,PRIVATE,Revenue,EXTERNAL DAYCARE,533011,130245290,25-Nov-14,552.00,WORKSHOP 305,SP0001403
WANDSWORTH COUNCIL,ASC,SOCIAL SERVICES,PRIVATE,Revenue,EXTERNAL DAYCARE,533012,130245290,25-Nov-14,828.00,WORKSHOP 305,SP0001403
WANDSWORTH COUNCIL,ASC,SOCIAL SERVICES,PRIVATE,Revenue,EXTERNAL DAYCARE,533019,130245290,25-Nov-14,944.00,WORKSHOP 305,SP0001403
WANDSWORTH COUNCIL,ASC,SOCIAL SERVICES,PRIVATE,Revenue,EXTERNAL DAYCARE,533023,130245290,25-Nov-14,708.00,WORKSHOP 305,SP0001403
WANDSWORTH COUNCIL,ASC,SOCIAL SERVICES,PRIVATE,Revenue,EXTERNAL DAYCARE,533031,130245290,25-Nov-14,828.00,WORKSHOP 305,SP0001403
WANDSWORTH COUNCIL,ASC,SOCIAL SERVICES,PRIVATE,Revenue,EXTERNAL DAYCARE,533032,130245290,25-Nov-14,708.00,WORKSHOP 305,SP0001403
WANDSWORTH COUNCIL,ASC,SOCIAL SERVICES,PRIVATE,Revenue,EXTERNAL DAYCARE,533038,130245290,25-Nov-14,552.00,WORKSHOP 305,SP0001403
WANDSWORTH COUNCIL,ASC,SOCIAL SERVICES,PRIVATE,Revenue,EXTERNAL DAYCARE,533040,130245290,25-Nov-14,708.00,WORKSHOP 305,SP0001403
WANDSWORTH COUNCIL,ASC,SOCIAL SERVICES,PRIVATE,Revenue,EXTERNAL DAYCARE,533043,130245290,25-Nov-14,552.00,WORKSHOP 305,SP0001403
WANDSWORTH COUNCIL,ASC,SOCIAL SERVICES,PRIVATE,Revenue,EXTERNAL DAYCARE,533051,130245290,25-Nov-14,944.00,WORKSHOP 305,SP0001403
WANDSWORTH COUNCIL,ASC,SOCIAL SERVICES,PRIVATE,Revenue,EXTERNAL HOMECARE,520712,130245300,05-Nov-14,737.27,ASIAN ELDERS SUPPORT SCHEME,SP0000190
WANDSWORTH COUNCIL,ASC,SOCIAL SERVICES,PRIVATE,Revenue,EXTERNAL HOMECARE,524642,130245300,17-Nov-14,"2,718.07",CHRISTIES CARE LTD,SP0005440
WANDSWORTH COUNCIL,ASC,SOCIAL SERVICES,PRIVATE,Revenue,EXTERNAL HOMECARE,539041,130245300,28-Nov-14,"12,372.44",CHRISTIES CARE LTD,SP0005440
WANDSWORTH COUNCIL,ASC,SOCIAL SERVICES,PRIVATE,Revenue,EXTERNAL HOMECARE,539042,130245300,28-Nov-14,"3,232.00",CHRISTIES CARE LTD,SP0005440
WANDSWORTH COUNCIL,ASC,SOCIAL SERVICES,PRIVATE,Revenue,EXTERNAL HOMECARE,529090,130245300,18-Nov-14,"4,480.00",HFH HEALTHCARE,SP0005937
WANDSWORTH COUNCIL,ASC,SOCIAL SERVICES,PRIVATE,Revenue,EXTERNAL HOMECARE,529091,130245300,18-Nov-14,"4,480.00",HFH HEALTHCARE,SP0005937
WANDSWORTH COUNCIL,ASC,SOCIAL SERVICES,PRIVATE,Revenue,EXTERNAL HOMECARE,518824,130245300,03-Nov-14,"2,001.99",HFH HOMECARE,SP0001058
WANDSWORTH COUNCIL,ASC,SOCIAL SERVICES,PRIVATE,Revenue,EXTERNAL HOMECARE,524074,130245300,12-Nov-14,"1,933.92",HFH HOMECARE,SP0001058
WANDSWORTH COUNCIL,ASC,SOCIAL SERVICES,PRIVATE,Revenue,EXTERNAL HOMECARE,524117,130245300,12-Nov-14,"1,398.96",HFH HOMECARE,SP0001058
WANDSWORTH COUNCIL,ASC,SOCIAL SERVICES,PRIVATE,Revenue,EXTERNAL HOMECARE,533703,130245300,25-Nov-14,"1,485.60",HFH HOMECARE,SP0001058
WANDSWORTH COUNCIL,ASC,SOCIAL SERVICES,PRIVATE,Revenue,EXTERNAL HOMECARE,520735,130245300,05-Nov-14,624.40,LONDON CARE PLC,SP0001035
WANDSWORTH COUNCIL,ASC,SOCIAL SERVICES,PRIVATE,Revenue,EXTERNAL HOMECARE,520813,130245300,05-Nov-14,597.38,LONDON CARE PLC,SP0001035
WANDSWORTH COUNCIL,ASC,SOCIAL SERVICES,PRIVATE,Revenue,EXTERNAL HOMECARE,530549,130245300,21-Nov-14,"2,203.38",MEARS CARE LTD,SP0001491
WANDSWORTH COUNCIL,ASC,SOCIAL SERVICES,PRIVATE,Revenue,EXTERNAL HOMECARE,526018,130245300,14-Nov-14,784.30,MUSHKIL AASAAN LTD,SP0000978
WANDSWORTH COUNCIL,ASC,SOCIAL SERVICES,PRIVATE,Revenue,EXTERNAL HOMECARE,533622,130245300,25-Nov-14,945.70,MUSHKIL AASAAN LTD,SP0000978
WANDSWORTH COUNCIL,ASC,SOCIAL SERVICES,PRIVATE,Revenue,EXTERNAL HOMECARE,528957,130245300,18-Nov-14,536.78,PLAN PERSONNEL,SP0000359
WANDSWORTH COUNCIL,ASC,SOCIAL SERVICES,PRIVATE,Revenue,EXTERNAL HOMECARE,526026,130245300,14-Nov-14,"1,120.17",RAINBOW MEDICAL SERVICES,SP0000037
WANDSWORTH COUNCIL,ASC,SOCIAL SERVICES,PRIVATE,Revenue,EXTERNAL HOMECARE,518903,130245300,03-Nov-14,"3,248.76",SOMA HEALTHCARE LTD,SP0001116
WANDSWORTH COUNCIL,ASC,SOCIAL SERVICES,PRIVATE,Revenue,EXTERNAL HOMECARE,520706,130245300,05-Nov-14,"3,502.08",SOMA HEALTHCARE LTD,SP0001116
WANDSWORTH COUNCIL,ASC,SOCIAL SERVICES,PRIVATE,Revenue,EXTERNAL HOMECARE,520707,130245300,05-Nov-14,"3,502.08",SOMA HEALTHCARE LTD,SP0001116
WANDSWORTH COUNCIL,ASC,SOCIAL SERVICES,PRIVATE,Revenue,EXTERNAL HOMECARE,533580,130245300,25-Nov-14,645.82,SOMA HEALTHCARE LTD,SP0001116
WANDSWORTH COUNCIL,ASC,SOCIAL SERVICES,PRIVATE,Revenue,EXTERNAL NURSING CARE,533368,130245310,25-Nov-14,"3,383.70",CARE UK COMMUNITY PARTNERSHIP,SP0001022
WANDSWORTH COUNCIL,ASC,SOCIAL SERVICES,PRIVATE,Revenue,EXTERNAL NURSING CARE,521334,130245310,07-Nov-14,"5,388.16",HIGH HURLANDS HOMES,SP0000668
WANDSWORTH COUNCIL,ASC,SOCIAL SERVICES,PRIVATE,Revenue,EXTERNAL NURSING CARE,530373,130245310,21-Nov-14,"5,382.08",HIGH HURLANDS HOMES,SP0000668
WANDSWORTH COUNCIL,ASC,SOCIAL SERVICES,PRIVATE,Revenue,EXTERNAL NURSING CARE,530308,130245310,21-Nov-14,"4,439.72",RONALD GIBSON HOUSE,SP0000302
WANDSWORTH COUNCIL,ASC,SOCIAL SERVICES,PRIVATE,Revenue,EXTERNAL NURSING CARE,520608,130245310,05-Nov-14,"3,129.56",ROSEDENE NURSING HOME,SP0000316
WANDSWORTH COUNCIL,ASC,SOCIAL SERVICES,PRIVATE,Revenue,EXTERNAL NURSING CARE,538513,130245310,28-Nov-14,"3,129.56",ROSEDENE NURSING HOME,SP0000316
WANDSWORTH COUNCIL,ASC,SOCIAL SERVICES,PRIVATE,Revenue,EXTERNAL NURSING CARE,523955,130245310,12-Nov-14,"6,366.39",ROYAL HOSPITAL FOR NEURO-DISABILITY,SP0000375
WANDSWORTH COUNCIL,ASC,SOCIAL SERVICES,PRIVATE,Revenue,EXTERNAL NURSING CARE,533291,130245310,25-Nov-14,"6,577.05",ROYAL HOSPITAL FOR NEURO-DISABILITY,SP0000375
WANDSWORTH COUNCIL,ASC,SOCIAL SERVICES,PRIVATE,Revenue,EXTERNAL NURSING CARE,521329,130245310,07-Nov-14,"8,454.90",SUSSEX HEALTH CARE,SP0001115
WANDSWORTH COUNCIL,ASC,SOCIAL SERVICES,PRIVATE,Revenue,EXTERNAL NURSING CARE,533456,130245310,25-Nov-14,"8,182.15",SUSSEX HEALTH CARE,SP0001115
WANDSWORTH COUNCIL,ASC,SOCIAL SERVICES,PRIVATE,Revenue,EXTERNAL NURSING CARE,526513,130245310,14-Nov-14,"2,787.60",TRINITY COURT NURSING HOME,SP0001001
WANDSWORTH COUNCIL,ASC,SOCIAL SERVICES,PRIVATE,Revenue,EXTERNAL NURSING CARE,529371,130245310,18-Nov-14,"4,181.88",VOYAGE CARE LTD,SP0000366
WANDSWORTH COUNCIL,ASC,SOCIAL SERVICES,PRIVATE,Revenue,EXTERNAL NURSING CARE,529376,130245310,18-Nov-14,"7,887.51",VOYAGE CARE LTD,SP0000366
WANDSWORTH COUNCIL,ASC,SOCIAL SERVICES,PRIVATE,Revenue,EXTERNAL NURSING CARE,529409,130245310,18-Nov-14,"5,325.08",VOYAGE CARE LTD,SP0000366
WANDSWORTH COUNCIL,ASC,SOCIAL SERVICES,PRIVATE,Revenue,EXTERNAL NURSING CARE,533443,130245310,25-Nov-14,"4,181.88",VOYAGE CARE LTD,SP0000366
WANDSWORTH COUNCIL,ASC,SOCIAL SERVICES,PRIVATE,Revenue,EXTERNAL NURSING CARE,533450,130245310,25-Nov-14,"7,633.07",VOYAGE CARE LTD,SP0000366
WANDSWORTH COUNCIL,ASC,SOCIAL SERVICES,PRIVATE,Revenue,EXTERNAL NURSING CARE,533457,130245310,25-Nov-14,"5,325.08",VOYAGE CARE LTD,SP0000366
WANDSWORTH COUNCIL,ASC,SOCIAL SERVICES,PRIVATE,Revenue,EXTERNAL NURSING CARE,520619,130245310,05-Nov-14,"5,975.84",WINGHAM COURT,SP0000025
WANDSWORTH COUNCIL,ASC,SOCIAL SERVICES,PRIVATE,Revenue,EXTERNAL NURSING CARE,538530,130245310,28-Nov-14,"5,975.84",WINGHAM COURT,SP0000025
WANDSWORTH COUNCIL,ASC,SOCIAL SERVICES,PRIVATE,Revenue,EXTERNAL NURSING CARE,521326,130245310,07-Nov-14,"3,065.88",YEW TREE NURSING HOME,SP0000454
WANDSWORTH COUNCIL,ASC,SOCIAL SERVICES,PRIVATE,Revenue,EXTERNAL NURSING CARE,538533,130245310,28-Nov-14,"3,065.88",YEW TREE NURSING HOME,SP0000454
WANDSWORTH COUNCIL,ASC,SOCIAL SERVICES,PRIVATE,Revenue,EXTERNAL NURSING CARE,526556,130245310,14-Nov-14,"2,675.12",YORK COURT CARE HOME,SP0006091
WANDSWORTH COUNCIL,ASC,SOCIAL SERVICES,PRIVATE,Revenue,EXTERNAL RESIDENTIAL CARE,526006,130245330,14-Nov-14,"4,472.68",229 MITCHAM LANE LTD,SP0000884
WANDSWORTH COUNCIL,ASC,SOCIAL SERVICES,PRIVATE,Revenue,EXTERNAL RESIDENTIAL CARE,526007,130245330,14-Nov-14,"5,236.13",229 MITCHAM LANE LTD,SP0000884
WANDSWORTH COUNCIL,ASC,SOCIAL SERVICES,PRIVATE,Revenue,EXTERNAL RESIDENTIAL CARE,526008,130245330,14-Nov-14,"5,558.84",229 MITCHAM LANE LTD,SP0000884
WANDSWORTH COUNCIL,ASC,SOCIAL SERVICES,PRIVATE,Revenue,EXTERNAL RESIDENTIAL CARE,526009,130245330,14-Nov-14,"5,236.13",229 MITCHAM LANE LTD,SP0000884
WANDSWORTH COUNCIL,ASC,SOCIAL SERVICES,PRIVATE,Revenue,EXTERNAL RESIDENTIAL CARE,538479,130245330,28-Nov-14,"5,380.71",229 MITCHAM LANE LTD,SP0000884
WANDSWORTH COUNCIL,ASC,SOCIAL SERVICES,PRIVATE,Revenue,EXTERNAL RESIDENTIAL CARE,538480,130245330,28-Nov-14,"5,068.71",229 MITCHAM LANE LTD,SP0000884
WANDSWORTH COUNCIL,ASC,SOCIAL SERVICES,PRIVATE,Revenue,EXTERNAL RESIDENTIAL CARE,538481,130245330,28-Nov-14,"4,328.40",229 MITCHAM LANE LTD,SP0000884
WANDSWORTH COUNCIL,ASC,SOCIAL SERVICES,PRIVATE,Revenue,EXTERNAL RESIDENTIAL CARE,538482,130245330,28-Nov-14,"5,067.21",229 MITCHAM LANE LTD,SP0000884
WANDSWORTH COUNCIL,ASC,SOCIAL SERVICES,PRIVATE,Revenue,EXTERNAL RESIDENTIAL CARE,538483,130245330,28-Nov-14,"5,379.51",229 MITCHAM LANE LTD,SP0000884
WANDSWORTH COUNCIL,ASC,SOCIAL SERVICES,PRIVATE,Revenue,EXTERNAL RESIDENTIAL CARE,538484,130245330,28-Nov-14,"5,067.21",229 MITCHAM LANE LTD,SP0000884
WANDSWORTH COUNCIL,ASC,SOCIAL SERVICES,PRIVATE,Revenue,EXTERNAL RESIDENTIAL CARE,533345,130245330,25-Nov-14,"4,931.53",ACH OF LONDON LLP,SP0001688
WANDSWORTH COUNCIL,ASC,SOCIAL SERVICES,PRIVATE,Revenue,EXTERNAL RESIDENTIAL CARE,520624,130245330,05-Nov-14,"8,370.85",AIMS CARE PARTNERSHIP,SP0000561
WANDSWORTH COUNCIL,ASC,SOCIAL SERVICES,PRIVATE,Revenue,EXTERNAL RESIDENTIAL CARE,530342,130245330,21-Nov-14,"4,332.74",ALLIED CARE (MHS) LTD,SP0001069
WANDSWORTH COUNCIL,ASC,SOCIAL SERVICES,PRIVATE,Revenue,EXTERNAL RESIDENTIAL CARE,530362,130245330,21-Nov-14,"5,006.76",ALLIED CARE (MHS) LTD,SP0001069
WANDSWORTH COUNCIL,ASC,SOCIAL SERVICES,PRIVATE,Revenue,EXTERNAL RESIDENTIAL CARE,530363,130245330,21-Nov-14,"5,000.30",ALLIED CARE (MHS) LTD,SP0001069
WANDSWORTH COUNCIL,ASC,SOCIAL SERVICES,PRIVATE,Revenue,EXTERNAL RESIDENTIAL CARE,533306,130245330,25-Nov-14,"7,054.98",ALLIED CARE (MHS) LTD,SP0001069
WANDSWORTH COUNCIL,ASC,SOCIAL SERVICES,PRIVATE,Revenue,EXTERNAL RESIDENTIAL CARE,533365,130245330,25-Nov-14,"6,827.40",ALLIED CARE (MHS) LTD,SP0001069
WANDSWORTH COUNCIL,ASC,SOCIAL SERVICES,PRIVATE,Revenue,EXTERNAL RESIDENTIAL CARE,533413,130245330,25-Nov-14,"4,192.97",ALLIED CARE (MHS) LTD,SP0001069
WANDSWORTH COUNCIL,ASC,SOCIAL SERVICES,PRIVATE,Revenue,EXTERNAL RESIDENTIAL CARE,518779,130245330,03-Nov-14,"11,311.24",ASHCROFT CARE SERVICES,SP0000872
WANDSWORTH COUNCIL,ASC,SOCIAL SERVICES,PRIVATE,Revenue,EXTERNAL RESIDENTIAL CARE,533351,130245330,25-Nov-14,"10,946.35",ASHCROFT CARE SERVICES,SP0000872
WANDSWORTH COUNCIL,ASC,SOCIAL SERVICES,PRIVATE,Revenue,EXTERNAL RESIDENTIAL CARE,530343,130245330,21-Nov-14,"3,970.40",BEECH LODGE,SP0000807
WANDSWORTH COUNCIL,ASC,SOCIAL SERVICES,PRIVATE,Revenue,EXTERNAL RESIDENTIAL CARE,530344,130245330,21-Nov-14,"3,842.31",BEECH LODGE,SP0000807
WANDSWORTH COUNCIL,ASC,SOCIAL SERVICES,PRIVATE,Revenue,EXTERNAL RESIDENTIAL CARE,530345,130245330,21-Nov-14,"3,970.40",BEECH LODGE,SP0000807
WANDSWORTH COUNCIL,ASC,SOCIAL SERVICES,PRIVATE,Revenue,EXTERNAL RESIDENTIAL CARE,530346,130245330,21-Nov-14,"3,842.31",BEECH LODGE,SP0000807
WANDSWORTH COUNCIL,ASC,SOCIAL SERVICES,PRIVATE,Revenue,EXTERNAL RESIDENTIAL CARE,530347,130245330,21-Nov-14,"3,970.40",BEECH LODGE,SP0000807
WANDSWORTH COUNCIL,ASC,SOCIAL SERVICES,PRIVATE,Revenue,EXTERNAL RESIDENTIAL CARE,530348,130245330,21-Nov-14,"3,842.31",BEECH LODGE,SP0000807
WANDSWORTH COUNCIL,ASC,SOCIAL SERVICES,PRIVATE,Revenue,EXTERNAL RESIDENTIAL CARE,520669,130245330,05-Nov-14,"6,641.45",BIRCC,SP0000584
WANDSWORTH COUNCIL,ASC,SOCIAL SERVICES,PRIVATE,Revenue,EXTERNAL RESIDENTIAL CARE,530368,130245330,21-Nov-14,"6,331.96",BIRCC,SP0000584
WANDSWORTH COUNCIL,ASC,SOCIAL SERVICES,PRIVATE,Revenue,EXTERNAL RESIDENTIAL CARE,530369,130245330,21-Nov-14,"6,427.21",BIRCC,SP0000584
WANDSWORTH COUNCIL,ASC,SOCIAL SERVICES,PRIVATE,Revenue,EXTERNAL RESIDENTIAL CARE,530370,130245330,21-Nov-14,"6,427.20",BIRCC,SP0000584
WANDSWORTH COUNCIL,ASC,SOCIAL SERVICES,PRIVATE,Revenue,EXTERNAL RESIDENTIAL CARE,530371,130245330,21-Nov-14,"6,427.20",BIRCC,SP0000584
WANDSWORTH COUNCIL,ASC,SOCIAL SERVICES,PRIVATE,Revenue,EXTERNAL RESIDENTIAL CARE,530350,130245330,21-Nov-14,"4,689.36",CAMERON LODGE LIMITED,SP0000271
WANDSWORTH COUNCIL,ASC,SOCIAL SERVICES,PRIVATE,Revenue,EXTERNAL RESIDENTIAL CARE,538487,130245330,28-Nov-14,"4,689.36",CAMERON LODGE LIMITED,SP0000271
WANDSWORTH COUNCIL,ASC,SOCIAL SERVICES,PRIVATE,Revenue,EXTERNAL RESIDENTIAL CARE,538488,130245330,28-Nov-14,"5,865.12",CARE UK LEARNING DISABILITIES SERVICES L,SP0001039
WANDSWORTH COUNCIL,ASC,SOCIAL SERVICES,PRIVATE,Revenue,EXTERNAL RESIDENTIAL CARE,530351,130245330,21-Nov-14,"3,631.97",CARE UNLIMITED GROUP LTD,SP0001575
WANDSWORTH COUNCIL,ASC,SOCIAL SERVICES,PRIVATE,Revenue,EXTERNAL RESIDENTIAL CARE,533433,130245330,25-Nov-14,"3,846.86",CENTRUST CARE HOMES LTD,SP0000141
WANDSWORTH COUNCIL,ASC,SOCIAL SERVICES,PRIVATE,Revenue,EXTERNAL RESIDENTIAL CARE,520629,130245330,05-Nov-14,"7,959.26",CHATSWORTH CARE,SP0000831
WANDSWORTH COUNCIL,ASC,SOCIAL SERVICES,PRIVATE,Revenue,EXTERNAL RESIDENTIAL CARE,538528,130245330,28-Nov-14,"7,702.50",CHATSWORTH CARE,SP0000831
WANDSWORTH COUNCIL,ASC,SOCIAL SERVICES,PRIVATE,Revenue,EXTERNAL RESIDENTIAL CARE,530353,130245330,21-Nov-14,"3,990.55",CHERRY LODGE,SP0000965
WANDSWORTH COUNCIL,ASC,SOCIAL SERVICES,PRIVATE,Revenue,EXTERNAL RESIDENTIAL CARE,530354,130245330,21-Nov-14,"3,861.81",CHERRY LODGE,SP0000965
WANDSWORTH COUNCIL,ASC,SOCIAL SERVICES,PRIVATE,Revenue,EXTERNAL RESIDENTIAL CARE,526010,130245330,14-Nov-14,"6,628.16",CHOICE CARE GROUP,SP0001367
WANDSWORTH COUNCIL,ASC,SOCIAL SERVICES,PRIVATE,Revenue,EXTERNAL RESIDENTIAL CARE,520640,130245330,05-Nov-14,"5,632.12",CMG HOMES LTD,SP0000075
WANDSWORTH COUNCIL,ASC,SOCIAL SERVICES,PRIVATE,Revenue,EXTERNAL RESIDENTIAL CARE,520641,130245330,05-Nov-14,"3,911.48",CMG HOMES LTD,SP0000075
WANDSWORTH COUNCIL,ASC,SOCIAL SERVICES,PRIVATE,Revenue,EXTERNAL RESIDENTIAL CARE,520642,130245330,05-Nov-14,"6,007.12",CMG HOMES LTD,SP0000075
WANDSWORTH COUNCIL,ASC,SOCIAL SERVICES,PRIVATE,Revenue,EXTERNAL RESIDENTIAL CARE,520643,130245330,05-Nov-14,"5,553.00",CMG HOMES LTD,SP0000075
WANDSWORTH COUNCIL,ASC,SOCIAL SERVICES,PRIVATE,Revenue,EXTERNAL RESIDENTIAL CARE,520644,130245330,05-Nov-14,"1,241.40",CMG HOMES LTD,SP0000075
WANDSWORTH COUNCIL,ASC,SOCIAL SERVICES,PRIVATE,Revenue,EXTERNAL RESIDENTIAL CARE,520645,130245330,05-Nov-14,"4,372.00",CMG HOMES LTD,SP0000075
WANDSWORTH COUNCIL,ASC,SOCIAL SERVICES,PRIVATE,Revenue,EXTERNAL RESIDENTIAL CARE,520646,130245330,05-Nov-14,"8,061.00",CMG HOMES LTD,SP0000075
WANDSWORTH COUNCIL,ASC,SOCIAL SERVICES,PRIVATE,Revenue,EXTERNAL RESIDENTIAL CARE,520647,130245330,05-Nov-14,"4,866.36",CMG HOMES LTD,SP0000075
WANDSWORTH COUNCIL,ASC,SOCIAL SERVICES,PRIVATE,Revenue,EXTERNAL RESIDENTIAL CARE,520648,130245330,05-Nov-14,"4,646.00",CMG HOMES LTD,SP0000075
WANDSWORTH COUNCIL,ASC,SOCIAL SERVICES,PRIVATE,Revenue,EXTERNAL RESIDENTIAL CARE,520663,130245330,05-Nov-14,"4,415.60",CMG HOMES LTD,SP0000075
WANDSWORTH COUNCIL,ASC,SOCIAL SERVICES,PRIVATE,Revenue,EXTERNAL RESIDENTIAL CARE,530291,130245330,21-Nov-14,"7,123.64",CMG HOMES LTD,SP0000075
WANDSWORTH COUNCIL,ASC,SOCIAL SERVICES,PRIVATE,Revenue,EXTERNAL RESIDENTIAL CARE,533305,130245330,25-Nov-14,"7,928.57",CONDOVER COLLEGE LTD,SP0001641
WANDSWORTH COUNCIL,ASC,SOCIAL SERVICES,PRIVATE,Revenue,EXTERNAL RESIDENTIAL CARE,518791,130245330,03-Nov-14,"7,271.56",CORICH COMMUNITY CARE LTD,SP0000915
WANDSWORTH COUNCIL,ASC,SOCIAL SERVICES,PRIVATE,Revenue,EXTERNAL RESIDENTIAL CARE,530355,130245330,21-Nov-14,"7,271.56",CORICH COMMUNITY CARE LTD,SP0000915
WANDSWORTH COUNCIL,ASC,SOCIAL SERVICES,PRIVATE,Revenue,EXTERNAL RESIDENTIAL CARE,518793,130245330,03-Nov-14,"3,449.60",COUNTRY CARE,SP0000090
WANDSWORTH COUNCIL,ASC,SOCIAL SERVICES,PRIVATE,Revenue,EXTERNAL RESIDENTIAL CARE,530357,130245330,21-Nov-14,"3,338.31",COUNTRY CARE,SP0000090
WANDSWORTH COUNCIL,ASC,SOCIAL SERVICES,PRIVATE,Revenue,EXTERNAL RESIDENTIAL CARE,538489,130245330,28-Nov-14,"3,029.72",CRAEGMOOR FACILITIES CO LTD,SP0000306
WANDSWORTH COUNCIL,ASC,SOCIAL SERVICES,PRIVATE,Revenue,EXTERNAL RESIDENTIAL CARE,533440,130245330,25-Nov-14,"3,774.94",CRAEGMOOR OLD RECTORY BREDE PRIORY,SP0001621
WANDSWORTH COUNCIL,ASC,SOCIAL SERVICES,PRIVATE,Revenue,EXTERNAL RESIDENTIAL CARE,530358,130245330,21-Nov-14,"5,211.56",CREDITON CARE & SUPPORT HOMES,SP0000998
WANDSWORTH COUNCIL,ASC,SOCIAL SERVICES,PRIVATE,Revenue,EXTERNAL RESIDENTIAL CARE,530359,130245330,21-Nov-14,"5,385.27",CREDITON CARE & SUPPORT HOMES,SP0000998
WANDSWORTH COUNCIL,ASC,SOCIAL SERVICES,PRIVATE,Revenue,EXTERNAL RESIDENTIAL CARE,518789,130245330,03-Nov-14,"3,469.00",CSS LTD T/A  THF CARE ESTATES LTD,SP0005682
WANDSWORTH COUNCIL,ASC,SOCIAL SERVICES,PRIVATE,Revenue,EXTERNAL RESIDENTIAL CARE,530279,130245330,21-Nov-14,"5,299.60",DOLPHIN HOMES LTD,SP0000331
WANDSWORTH COUNCIL,ASC,SOCIAL SERVICES,PRIVATE,Revenue,EXTERNAL RESIDENTIAL CARE,530280,130245330,21-Nov-14,"4,172.09",DOLPHIN HOMES LTD,SP0000331
WANDSWORTH COUNCIL,ASC,SOCIAL SERVICES,PRIVATE,Revenue,EXTERNAL RESIDENTIAL CARE,518795,130245330,03-Nov-14,"4,029.92",DOWNING (CHERTSEY ROAD) LTD,SP0000959
WANDSWORTH COUNCIL,ASC,SOCIAL SERVICES,PRIVATE,Revenue,EXTERNAL RESIDENTIAL CARE,533362,130245330,25-Nov-14,"3,899.91",DOWNING (CHERTSEY ROAD) LTD,SP0000959
WANDSWORTH COUNCIL,ASC,SOCIAL SERVICES,PRIVATE,Revenue,EXTERNAL RESIDENTIAL CARE,538490,130245330,28-Nov-14,"12,145.69",ENHAM,SP0005845
WANDSWORTH COUNCIL,ASC,SOCIAL SERVICES,PRIVATE,Revenue,EXTERNAL RESIDENTIAL CARE,538491,130245330,28-Nov-14,-37.88,ENHAM,SP0005845
WANDSWORTH COUNCIL,ASC,SOCIAL SERVICES,PRIVATE,Revenue,EXTERNAL RESIDENTIAL CARE,518803,130245330,03-Nov-14,"5,646.26",ESSEX CARE CONSORTIUM,SP0000387
WANDSWORTH COUNCIL,ASC,SOCIAL SERVICES,PRIVATE,Revenue,EXTERNAL RESIDENTIAL CARE,533309,130245330,25-Nov-14,"5,464.11",ESSEX CARE CONSORTIUM,SP0000387
WANDSWORTH COUNCIL,ASC,SOCIAL SERVICES,PRIVATE,Revenue,EXTERNAL RESIDENTIAL CARE,523180,130245330,11-Nov-14,"10,129.89",EVERGREEN PARTNERSHIP,SP0000597
WANDSWORTH COUNCIL,ASC,SOCIAL SERVICES,PRIVATE,Revenue,EXTERNAL RESIDENTIAL CARE,530376,130245330,21-Nov-14,"10,118.48",EVERGREEN PARTNERSHIP,SP0000597
WANDSWORTH COUNCIL,ASC,SOCIAL SERVICES,PRIVATE,Revenue,EXTERNAL RESIDENTIAL CARE,538476,130245330,28-Nov-14,"7,791.42",FIRCROFT,SP0000840
WANDSWORTH COUNCIL,ASC,SOCIAL SERVICES,PRIVATE,Revenue,EXTERNAL RESIDENTIAL CARE,538981,130245330,28-Nov-14,"4,121.74",FRANCES TAYLOR FOUNDATION,SP0000142
WANDSWORTH COUNCIL,ASC,SOCIAL SERVICES,PRIVATE,Revenue,EXTERNAL RESIDENTIAL CARE,538982,130245330,28-Nov-14,"4,679.91",FRANCES TAYLOR FOUNDATION,SP0000142
WANDSWORTH COUNCIL,ASC,SOCIAL SERVICES,PRIVATE,Revenue,EXTERNAL RESIDENTIAL CARE,538983,130245330,28-Nov-14,"4,198.84",FRANCES TAYLOR FOUNDATION,SP0000142
WANDSWORTH COUNCIL,ASC,SOCIAL SERVICES,PRIVATE,Revenue,EXTERNAL RESIDENTIAL CARE,538984,130245330,28-Nov-14,"4,055.95",FRANCES TAYLOR FOUNDATION,SP0000142
WANDSWORTH COUNCIL,ASC,SOCIAL SERVICES,PRIVATE,Revenue,EXTERNAL RESIDENTIAL CARE,523171,130245330,11-Nov-14,"2,267.32",FREEWAYS TRUST LTD,SP0000793
WANDSWORTH COUNCIL,ASC,SOCIAL SERVICES,PRIVATE,Revenue,EXTERNAL RESIDENTIAL CARE,530260,130245330,21-Nov-14,"3,806.64",GLENCARE GROUP,SP0000791
WANDSWORTH COUNCIL,ASC,SOCIAL SERVICES,PRIVATE,Revenue,EXTERNAL RESIDENTIAL CARE,530261,130245330,21-Nov-14,"3,806.64",GLENCARE GROUP,SP0000791
WANDSWORTH COUNCIL,ASC,SOCIAL SERVICES,PRIVATE,Revenue,EXTERNAL RESIDENTIAL CARE,539009,130245330,28-Nov-14,"2,755.56",HASTINGS & BEXHILL MENCAP SOCIETY,SP0005380
WANDSWORTH COUNCIL,ASC,SOCIAL SERVICES,PRIVATE,Revenue,EXTERNAL RESIDENTIAL CARE,539004,130245330,28-Nov-14,"3,724.72",HAYDON PARK LODGE LTD,SP0000231
WANDSWORTH COUNCIL,ASC,SOCIAL SERVICES,PRIVATE,Revenue,EXTERNAL RESIDENTIAL CARE,530372,130245330,21-Nov-14,"7,767.90",HEALTHLINC INDIVIDUAL CARE,SP0000617
WANDSWORTH COUNCIL,ASC,SOCIAL SERVICES,PRIVATE,Revenue,EXTERNAL RESIDENTIAL CARE,518800,130245330,03-Nov-14,"2,571.37",HEYWOODS GRANGE LTD,SP0000361
WANDSWORTH COUNCIL,ASC,SOCIAL SERVICES,PRIVATE,Revenue,EXTERNAL RESIDENTIAL CARE,523919,130245330,12-Nov-14,"3,210.71",HEYWOODS GRANGE LTD,SP0000361
WANDSWORTH COUNCIL,ASC,SOCIAL SERVICES,PRIVATE,Revenue,EXTERNAL RESIDENTIAL CARE,533367,130245330,25-Nov-14,"2,488.41",HEYWOODS GRANGE LTD,SP0000361
WANDSWORTH COUNCIL,ASC,SOCIAL SERVICES,PRIVATE,Revenue,EXTERNAL RESIDENTIAL CARE,518798,130245330,03-Nov-14,"2,405.52",HILL PARK AUTISTIC TRUST,SP0000926
WANDSWORTH COUNCIL,ASC,SOCIAL SERVICES,PRIVATE,Revenue,EXTERNAL RESIDENTIAL CARE,533326,130245330,25-Nov-14,"6,463.80",HOME FROM HOME CARE LIMITED,SP0001373
WANDSWORTH COUNCIL,ASC,SOCIAL SERVICES,PRIVATE,Revenue,EXTERNAL RESIDENTIAL CARE,520604,130245330,05-Nov-14,"12,485.04",ILG LTD,SP0001103
WANDSWORTH COUNCIL,ASC,SOCIAL SERVICES,PRIVATE,Revenue,EXTERNAL RESIDENTIAL CARE,533389,130245330,25-Nov-14,"12,082.28",ILG LTD,SP0001103
WANDSWORTH COUNCIL,ASC,SOCIAL SERVICES,PRIVATE,Revenue,EXTERNAL RESIDENTIAL CARE,538511,130245330,28-Nov-14,"12,082.28",ILG LTD,SP0001103
WANDSWORTH COUNCIL,ASC,SOCIAL SERVICES,PRIVATE,Revenue,EXTERNAL RESIDENTIAL CARE,533327,130245330,25-Nov-14,"4,863.26",IN CHORUS LTD,SP0000129
WANDSWORTH COUNCIL,ASC,SOCIAL SERVICES,PRIVATE,Revenue,EXTERNAL RESIDENTIAL CARE,533435,130245330,25-Nov-14,"3,976.83",KENILWORTH RESIDENTIAL HOME,SP0000432
WANDSWORTH COUNCIL,ASC,SOCIAL SERVICES,PRIVATE,Revenue,EXTERNAL RESIDENTIAL CARE,533436,130245330,25-Nov-14,"4,150.04",KENILWORTH RESIDENTIAL HOME,SP0000432
WANDSWORTH COUNCIL,ASC,SOCIAL SERVICES,PRIVATE,Revenue,EXTERNAL RESIDENTIAL CARE,533437,130245330,25-Nov-14,"10,550.80",KISIMUL GROUP LTD,SP0002487
WANDSWORTH COUNCIL,ASC,SOCIAL SERVICES,PRIVATE,Revenue,EXTERNAL RESIDENTIAL CARE,533438,130245330,25-Nov-14,"10,550.80",KISIMUL GROUP LTD,SP0002487
WANDSWORTH COUNCIL,ASC,SOCIAL SERVICES,PRIVATE,Revenue,EXTERNAL RESIDENTIAL CARE,525977,130245330,14-Nov-14,"4,792.20",LAETUS LODGE,SP0000600
WANDSWORTH COUNCIL,ASC,SOCIAL SERVICES,PRIVATE,Revenue,EXTERNAL RESIDENTIAL CARE,525978,130245330,14-Nov-14,"6,096.48",LAETUS LODGE,SP0000600
WANDSWORTH COUNCIL,ASC,SOCIAL SERVICES,PRIVATE,Revenue,EXTERNAL RESIDENTIAL CARE,525979,130245330,14-Nov-14,"3,759.76",LAETUS LODGE,SP0000600
WANDSWORTH COUNCIL,ASC,SOCIAL SERVICES,PRIVATE,Revenue,EXTERNAL RESIDENTIAL CARE,525980,130245330,14-Nov-14,"6,193.48",LAETUS LODGE,SP0000600
WANDSWORTH COUNCIL,ASC,SOCIAL SERVICES,PRIVATE,Revenue,EXTERNAL RESIDENTIAL CARE,525981,130245330,14-Nov-14,"3,669.12",LAETUS LODGE,SP0000600
WANDSWORTH COUNCIL,ASC,SOCIAL SERVICES,PRIVATE,Revenue,EXTERNAL RESIDENTIAL CARE,525982,130245330,14-Nov-14,"3,759.76",LAETUS LODGE,SP0000600
WANDSWORTH COUNCIL,ASC,SOCIAL SERVICES,PRIVATE,Revenue,EXTERNAL RESIDENTIAL CARE,525983,130245330,14-Nov-14,"5,240.56",LAETUS LODGE,SP0000600
WANDSWORTH COUNCIL,ASC,SOCIAL SERVICES,PRIVATE,Revenue,EXTERNAL RESIDENTIAL CARE,533335,130245330,25-Nov-14,"4,967.48",LARKFIELD HALL LTD T/A PEPENBURY,SP0001378
WANDSWORTH COUNCIL,ASC,SOCIAL SERVICES,PRIVATE,Revenue,EXTERNAL RESIDENTIAL CARE,518801,130245330,03-Nov-14,"7,528.57",LD CARE,SP0005447
WANDSWORTH COUNCIL,ASC,SOCIAL SERVICES,PRIVATE,Revenue,EXTERNAL RESIDENTIAL CARE,523166,130245330,11-Nov-14,"4,306.04",LEONARD CHESHIRE,SP0000976
WANDSWORTH COUNCIL,ASC,SOCIAL SERVICES,PRIVATE,Revenue,EXTERNAL RESIDENTIAL CARE,523172,130245330,11-Nov-14,"6,323.91",LEONARD CHESHIRE,SP0000976
WANDSWORTH COUNCIL,ASC,SOCIAL SERVICES,PRIVATE,Revenue,EXTERNAL RESIDENTIAL CARE,529417,130245330,18-Nov-14,"4,644.56",LEONARD CHESHIRE,SP0000976
WANDSWORTH COUNCIL,ASC,SOCIAL SERVICES,PRIVATE,Revenue,EXTERNAL RESIDENTIAL CARE,530302,130245330,21-Nov-14,"6,693.51",LONDON CARE PARTNERSHIP LTD,SP0001138
WANDSWORTH COUNCIL,ASC,SOCIAL SERVICES,PRIVATE,Revenue,EXTERNAL RESIDENTIAL CARE,530303,130245330,21-Nov-14,"8,550.00",LONDON CARE PARTNERSHIP LTD,SP0001138
WANDSWORTH COUNCIL,ASC,SOCIAL SERVICES,PRIVATE,Revenue,EXTERNAL RESIDENTIAL CARE,530304,130245330,21-Nov-14,"7,928.57",LONDON CARE PARTNERSHIP LTD,SP0001138
WANDSWORTH COUNCIL,ASC,SOCIAL SERVICES,PRIVATE,Revenue,EXTERNAL RESIDENTIAL CARE,530305,130245330,21-Nov-14,"8,035.71",LONDON CARE PARTNERSHIP LTD,SP0001138
WANDSWORTH COUNCIL,ASC,SOCIAL SERVICES,PRIVATE,Revenue,EXTERNAL RESIDENTIAL CARE,530306,130245330,21-Nov-14,"8,035.71",LONDON CARE PARTNERSHIP LTD,SP0001138
WANDSWORTH COUNCIL,ASC,SOCIAL SERVICES,PRIVATE,Revenue,EXTERNAL RESIDENTIAL CARE,530307,130245330,21-Nov-14,"8,250.00",LONDON CARE PARTNERSHIP LTD,SP0001138
WANDSWORTH COUNCIL,ASC,SOCIAL SERVICES,PRIVATE,Revenue,EXTERNAL RESIDENTIAL CARE,530375,130245330,21-Nov-14,"7,717.76",LORING HALL LIMITED,SP0000511
WANDSWORTH COUNCIL,ASC,SOCIAL SERVICES,PRIVATE,Revenue,EXTERNAL RESIDENTIAL CARE,530337,130245330,21-Nov-14,"4,613.60",LOTUS CARE HOME LTD,SP0001006
WANDSWORTH COUNCIL,ASC,SOCIAL SERVICES,PRIVATE,Revenue,EXTERNAL RESIDENTIAL CARE,523175,130245330,11-Nov-14,"11,322.96",LOVING CARE LTD,SP0000670
WANDSWORTH COUNCIL,ASC,SOCIAL SERVICES,PRIVATE,Revenue,EXTERNAL RESIDENTIAL CARE,523176,130245330,11-Nov-14,"11,282.12",LOVING CARE LTD,SP0000670
WANDSWORTH COUNCIL,ASC,SOCIAL SERVICES,PRIVATE,Revenue,EXTERNAL RESIDENTIAL CARE,523177,130245330,11-Nov-14,"11,475.84",LOVING CARE LTD,SP0000670
WANDSWORTH COUNCIL,ASC,SOCIAL SERVICES,PRIVATE,Revenue,EXTERNAL RESIDENTIAL CARE,523178,130245330,11-Nov-14,"11,017.24",LOVING CARE LTD,SP0000670
WANDSWORTH COUNCIL,ASC,SOCIAL SERVICES,PRIVATE,Revenue,EXTERNAL RESIDENTIAL CARE,523179,130245330,11-Nov-14,"11,475.88",LOVING CARE LTD,SP0000670
WANDSWORTH COUNCIL,ASC,SOCIAL SERVICES,PRIVATE,Revenue,EXTERNAL RESIDENTIAL CARE,523181,130245330,11-Nov-14,"11,475.88",LOVING CARE LTD,SP0000670
WANDSWORTH COUNCIL,ASC,SOCIAL SERVICES,PRIVATE,Revenue,EXTERNAL RESIDENTIAL CARE,523182,130245330,11-Nov-14,"11,170.12",LOVING CARE LTD,SP0000670
WANDSWORTH COUNCIL,ASC,SOCIAL SERVICES,PRIVATE,Revenue,EXTERNAL RESIDENTIAL CARE,530262,130245330,21-Nov-14,"5,187.85",M JINGREE T/A SUNLIGHT HOUSE,SP0001024
WANDSWORTH COUNCIL,ASC,SOCIAL SERVICES,PRIVATE,Revenue,EXTERNAL RESIDENTIAL CARE,521339,130245330,07-Nov-14,"5,206.28",MACINTYRE CARE,SP0000473
WANDSWORTH COUNCIL,ASC,SOCIAL SERVICES,PRIVATE,Revenue,EXTERNAL RESIDENTIAL CARE,521340,130245330,07-Nov-14,"3,759.64",MACINTYRE CARE,SP0000473
WANDSWORTH COUNCIL,ASC,SOCIAL SERVICES,PRIVATE,Revenue,EXTERNAL RESIDENTIAL CARE,521341,130245330,07-Nov-14,"5,426.08",MACINTYRE CARE,SP0000473
WANDSWORTH COUNCIL,ASC,SOCIAL SERVICES,PRIVATE,Revenue,EXTERNAL RESIDENTIAL CARE,521342,130245330,07-Nov-14,"3,759.64",MACINTYRE CARE,SP0000473
WANDSWORTH COUNCIL,ASC,SOCIAL SERVICES,PRIVATE,Revenue,EXTERNAL RESIDENTIAL CARE,521343,130245330,07-Nov-14,"5,192.48",MACINTYRE CARE,SP0000473
WANDSWORTH COUNCIL,ASC,SOCIAL SERVICES,PRIVATE,Revenue,EXTERNAL RESIDENTIAL CARE,521344,130245330,07-Nov-14,"3,750.72",MACINTYRE CARE,SP0000473
WANDSWORTH COUNCIL,ASC,SOCIAL SERVICES,PRIVATE,Revenue,EXTERNAL RESIDENTIAL CARE,521345,130245330,07-Nov-14,"3,813.84",MACINTYRE CARE,SP0000473
WANDSWORTH COUNCIL,ASC,SOCIAL SERVICES,PRIVATE,Revenue,EXTERNAL RESIDENTIAL CARE,521346,130245330,07-Nov-14,"4,998.84",MACINTYRE CARE,SP0000473
WANDSWORTH COUNCIL,ASC,SOCIAL SERVICES,PRIVATE,Revenue,EXTERNAL RESIDENTIAL CARE,521347,130245330,07-Nov-14,"5,097.20",MACINTYRE CARE,SP0000473
WANDSWORTH COUNCIL,ASC,SOCIAL SERVICES,PRIVATE,Revenue,EXTERNAL RESIDENTIAL CARE,521348,130245330,07-Nov-14,"2,301.48",MACINTYRE CARE,SP0000473
WANDSWORTH COUNCIL,ASC,SOCIAL SERVICES,PRIVATE,Revenue,EXTERNAL RESIDENTIAL CARE,521350,130245330,07-Nov-14,"8,054.24",MACINTYRE CARE,SP0000473
WANDSWORTH COUNCIL,ASC,SOCIAL SERVICES,PRIVATE,Revenue,EXTERNAL RESIDENTIAL CARE,521351,130245330,07-Nov-14,"5,026.36",MACINTYRE CARE,SP0000473
WANDSWORTH COUNCIL,ASC,SOCIAL SERVICES,PRIVATE,Revenue,EXTERNAL RESIDENTIAL CARE,521352,130245330,07-Nov-14,"5,429.76",MACINTYRE CARE,SP0000473
WANDSWORTH COUNCIL,ASC,SOCIAL SERVICES,PRIVATE,Revenue,EXTERNAL RESIDENTIAL CARE,521358,130245330,07-Nov-14,"4,909.16",MACINTYRE CARE,SP0000473
WANDSWORTH COUNCIL,ASC,SOCIAL SERVICES,PRIVATE,Revenue,EXTERNAL RESIDENTIAL CARE,521359,130245330,07-Nov-14,"4,909.16",MACINTYRE CARE,SP0000473
WANDSWORTH COUNCIL,ASC,SOCIAL SERVICES,PRIVATE,Revenue,EXTERNAL RESIDENTIAL CARE,521360,130245330,07-Nov-14,"4,907.76",MACINTYRE CARE,SP0000473
WANDSWORTH COUNCIL,ASC,SOCIAL SERVICES,PRIVATE,Revenue,EXTERNAL RESIDENTIAL CARE,521361,130245330,07-Nov-14,"4,907.76",MACINTYRE CARE,SP0000473
WANDSWORTH COUNCIL,ASC,SOCIAL SERVICES,PRIVATE,Revenue,EXTERNAL RESIDENTIAL CARE,521362,130245330,07-Nov-14,"4,901.68",MACINTYRE CARE,SP0000473
WANDSWORTH COUNCIL,ASC,SOCIAL SERVICES,PRIVATE,Revenue,EXTERNAL RESIDENTIAL CARE,521363,130245330,07-Nov-14,"5,030.56",MACINTYRE CARE,SP0000473
WANDSWORTH COUNCIL,ASC,SOCIAL SERVICES,PRIVATE,Revenue,EXTERNAL RESIDENTIAL CARE,521364,130245330,07-Nov-14,"4,907.76",MACINTYRE CARE,SP0000473
WANDSWORTH COUNCIL,ASC,SOCIAL SERVICES,PRIVATE,Revenue,EXTERNAL RESIDENTIAL CARE,523930,130245330,12-Nov-14,"3,759.64",MACINTYRE CARE,SP0000473
WANDSWORTH COUNCIL,ASC,SOCIAL SERVICES,PRIVATE,Revenue,EXTERNAL RESIDENTIAL CARE,523931,130245330,12-Nov-14,"5,192.48",MACINTYRE CARE,SP0000473
WANDSWORTH COUNCIL,ASC,SOCIAL SERVICES,PRIVATE,Revenue,EXTERNAL RESIDENTIAL CARE,523932,130245330,12-Nov-14,"5,429.76",MACINTYRE CARE,SP0000473
WANDSWORTH COUNCIL,ASC,SOCIAL SERVICES,PRIVATE,Revenue,EXTERNAL RESIDENTIAL CARE,523933,130245330,12-Nov-14,"4,907.76",MACINTYRE CARE,SP0000473
WANDSWORTH COUNCIL,ASC,SOCIAL SERVICES,PRIVATE,Revenue,EXTERNAL RESIDENTIAL CARE,523991,130245330,12-Nov-14,"5,097.20",MACINTYRE CARE,SP0000473
WANDSWORTH COUNCIL,ASC,SOCIAL SERVICES,PRIVATE,Revenue,EXTERNAL RESIDENTIAL CARE,523992,130245330,12-Nov-14,"2,301.48",MACINTYRE CARE,SP0000473
WANDSWORTH COUNCIL,ASC,SOCIAL SERVICES,PRIVATE,Revenue,EXTERNAL RESIDENTIAL CARE,523993,130245330,12-Nov-14,"4,907.76",MACINTYRE CARE,SP0000473
WANDSWORTH COUNCIL,ASC,SOCIAL SERVICES,PRIVATE,Revenue,EXTERNAL RESIDENTIAL CARE,533310,130245330,25-Nov-14,"5,206.28",MACINTYRE CARE,SP0000473
WANDSWORTH COUNCIL,ASC,SOCIAL SERVICES,PRIVATE,Revenue,EXTERNAL RESIDENTIAL CARE,533311,130245330,25-Nov-14,"3,759.64",MACINTYRE CARE,SP0000473
WANDSWORTH COUNCIL,ASC,SOCIAL SERVICES,PRIVATE,Revenue,EXTERNAL RESIDENTIAL CARE,533312,130245330,25-Nov-14,"5,429.64",MACINTYRE CARE,SP0000473
WANDSWORTH COUNCIL,ASC,SOCIAL SERVICES,PRIVATE,Revenue,EXTERNAL RESIDENTIAL CARE,533314,130245330,25-Nov-14,"3,750.72",MACINTYRE CARE,SP0000473
WANDSWORTH COUNCIL,ASC,SOCIAL SERVICES,PRIVATE,Revenue,EXTERNAL RESIDENTIAL CARE,533315,130245330,25-Nov-14,"3,813.84",MACINTYRE CARE,SP0000473
WANDSWORTH COUNCIL,ASC,SOCIAL SERVICES,PRIVATE,Revenue,EXTERNAL RESIDENTIAL CARE,533316,130245330,25-Nov-14,"4,998.84",MACINTYRE CARE,SP0000473
WANDSWORTH COUNCIL,ASC,SOCIAL SERVICES,PRIVATE,Revenue,EXTERNAL RESIDENTIAL CARE,533317,130245330,25-Nov-14,"8,054.24",MACINTYRE CARE,SP0000473
WANDSWORTH COUNCIL,ASC,SOCIAL SERVICES,PRIVATE,Revenue,EXTERNAL RESIDENTIAL CARE,533318,130245330,25-Nov-14,"5,026.36",MACINTYRE CARE,SP0000473
WANDSWORTH COUNCIL,ASC,SOCIAL SERVICES,PRIVATE,Revenue,EXTERNAL RESIDENTIAL CARE,533319,130245330,25-Nov-14,"4,909.16",MACINTYRE CARE,SP0000473
WANDSWORTH COUNCIL,ASC,SOCIAL SERVICES,PRIVATE,Revenue,EXTERNAL RESIDENTIAL CARE,533320,130245330,25-Nov-14,"4,909.16",MACINTYRE CARE,SP0000473
WANDSWORTH COUNCIL,ASC,SOCIAL SERVICES,PRIVATE,Revenue,EXTERNAL RESIDENTIAL CARE,533322,130245330,25-Nov-14,"4,907.76",MACINTYRE CARE,SP0000473
WANDSWORTH COUNCIL,ASC,SOCIAL SERVICES,PRIVATE,Revenue,EXTERNAL RESIDENTIAL CARE,533323,130245330,25-Nov-14,"4,901.68",MACINTYRE CARE,SP0000473
WANDSWORTH COUNCIL,ASC,SOCIAL SERVICES,PRIVATE,Revenue,EXTERNAL RESIDENTIAL CARE,533324,130245330,25-Nov-14,"5,030.56",MACINTYRE CARE,SP0000473
WANDSWORTH COUNCIL,ASC,SOCIAL SERVICES,PRIVATE,Revenue,EXTERNAL RESIDENTIAL CARE,538485,130245330,28-Nov-14,"3,702.84",MACINTYRE CARE,SP0000473
WANDSWORTH COUNCIL,ASC,SOCIAL SERVICES,PRIVATE,Revenue,EXTERNAL RESIDENTIAL CARE,521353,130245330,07-Nov-14,"7,523.88",MCCH SOCIETY LIMITED,SP0001531
WANDSWORTH COUNCIL,ASC,SOCIAL SERVICES,PRIVATE,Revenue,EXTERNAL RESIDENTIAL CARE,521354,130245330,07-Nov-14,"7,523.88",MCCH SOCIETY LIMITED,SP0001531
WANDSWORTH COUNCIL,ASC,SOCIAL SERVICES,PRIVATE,Revenue,EXTERNAL RESIDENTIAL CARE,530326,130245330,21-Nov-14,"3,342.94",MENCAP,SP0000604
WANDSWORTH COUNCIL,ASC,SOCIAL SERVICES,PRIVATE,Revenue,EXTERNAL RESIDENTIAL CARE,530327,130245330,21-Nov-14,"3,342.94",MENCAP,SP0000604
WANDSWORTH COUNCIL,ASC,SOCIAL SERVICES,PRIVATE,Revenue,EXTERNAL RESIDENTIAL CARE,530334,130245330,21-Nov-14,"2,314.67",MENCAP,SP0000604
WANDSWORTH COUNCIL,ASC,SOCIAL SERVICES,PRIVATE,Revenue,EXTERNAL RESIDENTIAL CARE,523189,130245330,11-Nov-14,"4,756.88",METROPOLITAN HOUSING TRUST,SP0000626
WANDSWORTH COUNCIL,ASC,SOCIAL SERVICES,PRIVATE,Revenue,EXTERNAL RESIDENTIAL CARE,523190,130245330,11-Nov-14,"4,756.88",METROPOLITAN HOUSING TRUST,SP0000626
WANDSWORTH COUNCIL,ASC,SOCIAL SERVICES,PRIVATE,Revenue,EXTERNAL RESIDENTIAL CARE,523191,130245330,11-Nov-14,"4,427.04",METROPOLITAN HOUSING TRUST,SP0000626
WANDSWORTH COUNCIL,ASC,SOCIAL SERVICES,PRIVATE,Revenue,EXTERNAL RESIDENTIAL CARE,523192,130245330,11-Nov-14,"4,709.79",METROPOLITAN HOUSING TRUST,SP0000626
WANDSWORTH COUNCIL,ASC,SOCIAL SERVICES,PRIVATE,Revenue,EXTERNAL RESIDENTIAL CARE,523193,130245330,11-Nov-14,"4,709.79",METROPOLITAN HOUSING TRUST,SP0000626
WANDSWORTH COUNCIL,ASC,SOCIAL SERVICES,PRIVATE,Revenue,EXTERNAL RESIDENTIAL CARE,523195,130245330,11-Nov-14,"4,709.79",METROPOLITAN HOUSING TRUST,SP0000626
WANDSWORTH COUNCIL,ASC,SOCIAL SERVICES,PRIVATE,Revenue,EXTERNAL RESIDENTIAL CARE,523196,130245330,11-Nov-14,"4,709.79",METROPOLITAN HOUSING TRUST,SP0000626
WANDSWORTH COUNCIL,ASC,SOCIAL SERVICES,PRIVATE,Revenue,EXTERNAL RESIDENTIAL CARE,523198,130245330,11-Nov-14,"3,659.52",METROPOLITAN HOUSING TRUST,SP0000626
WANDSWORTH COUNCIL,ASC,SOCIAL SERVICES,PRIVATE,Revenue,EXTERNAL RESIDENTIAL CARE,523199,130245330,11-Nov-14,"3,659.52",METROPOLITAN HOUSING TRUST,SP0000626
WANDSWORTH COUNCIL,ASC,SOCIAL SERVICES,PRIVATE,Revenue,EXTERNAL RESIDENTIAL CARE,523200,130245330,11-Nov-14,"3,659.52",METROPOLITAN HOUSING TRUST,SP0000626
WANDSWORTH COUNCIL,ASC,SOCIAL SERVICES,PRIVATE,Revenue,EXTERNAL RESIDENTIAL CARE,523201,130245330,11-Nov-14,"3,659.68",METROPOLITAN HOUSING TRUST,SP0000626
WANDSWORTH COUNCIL,ASC,SOCIAL SERVICES,PRIVATE,Revenue,EXTERNAL RESIDENTIAL CARE,523202,130245330,11-Nov-14,"3,659.52",METROPOLITAN HOUSING TRUST,SP0000626
WANDSWORTH COUNCIL,ASC,SOCIAL SERVICES,PRIVATE,Revenue,EXTERNAL RESIDENTIAL CARE,523203,130245330,11-Nov-14,"3,659.52",METROPOLITAN HOUSING TRUST,SP0000626
WANDSWORTH COUNCIL,ASC,SOCIAL SERVICES,PRIVATE,Revenue,EXTERNAL RESIDENTIAL CARE,523204,130245330,11-Nov-14,"3,659.52",METROPOLITAN HOUSING TRUST,SP0000626
WANDSWORTH COUNCIL,ASC,SOCIAL SERVICES,PRIVATE,Revenue,EXTERNAL RESIDENTIAL CARE,523205,130245330,11-Nov-14,"3,492.64",METROPOLITAN HOUSING TRUST,SP0000626
WANDSWORTH COUNCIL,ASC,SOCIAL SERVICES,PRIVATE,Revenue,EXTERNAL RESIDENTIAL CARE,523206,130245330,11-Nov-14,"3,659.52",METROPOLITAN HOUSING TRUST,SP0000626
WANDSWORTH COUNCIL,ASC,SOCIAL SERVICES,PRIVATE,Revenue,EXTERNAL RESIDENTIAL CARE,523207,130245330,11-Nov-14,"3,659.52",METROPOLITAN HOUSING TRUST,SP0000626
WANDSWORTH COUNCIL,ASC,SOCIAL SERVICES,PRIVATE,Revenue,EXTERNAL RESIDENTIAL CARE,523208,130245330,11-Nov-14,"3,659.52",METROPOLITAN HOUSING TRUST,SP0000626
WANDSWORTH COUNCIL,ASC,SOCIAL SERVICES,PRIVATE,Revenue,EXTERNAL RESIDENTIAL CARE,523209,130245330,11-Nov-14,"3,659.68",METROPOLITAN HOUSING TRUST,SP0000626
WANDSWORTH COUNCIL,ASC,SOCIAL SERVICES,PRIVATE,Revenue,EXTERNAL RESIDENTIAL CARE,523210,130245330,11-Nov-14,"3,659.52",METROPOLITAN HOUSING TRUST,SP0000626
WANDSWORTH COUNCIL,ASC,SOCIAL SERVICES,PRIVATE,Revenue,EXTERNAL RESIDENTIAL CARE,523211,130245330,11-Nov-14,"3,659.52",METROPOLITAN HOUSING TRUST,SP0000626
WANDSWORTH COUNCIL,ASC,SOCIAL SERVICES,PRIVATE,Revenue,EXTERNAL RESIDENTIAL CARE,523212,130245330,11-Nov-14,"3,492.64",METROPOLITAN HOUSING TRUST,SP0000626
WANDSWORTH COUNCIL,ASC,SOCIAL SERVICES,PRIVATE,Revenue,EXTERNAL RESIDENTIAL CARE,523213,130245330,11-Nov-14,"3,659.52",METROPOLITAN HOUSING TRUST,SP0000626
WANDSWORTH COUNCIL,ASC,SOCIAL SERVICES,PRIVATE,Revenue,EXTERNAL RESIDENTIAL CARE,523978,130245330,12-Nov-14,"3,628.36",METROPOLITAN HOUSING TRUST,SP0000626
WANDSWORTH COUNCIL,ASC,SOCIAL SERVICES,PRIVATE,Revenue,EXTERNAL RESIDENTIAL CARE,523979,130245330,12-Nov-14,"3,628.36",METROPOLITAN HOUSING TRUST,SP0000626
WANDSWORTH COUNCIL,ASC,SOCIAL SERVICES,PRIVATE,Revenue,EXTERNAL RESIDENTIAL CARE,523983,130245330,12-Nov-14,"4,756.88",METROPOLITAN HOUSING TRUST,SP0000626
WANDSWORTH COUNCIL,ASC,SOCIAL SERVICES,PRIVATE,Revenue,EXTERNAL RESIDENTIAL CARE,523984,130245330,12-Nov-14,"4,756.88",METROPOLITAN HOUSING TRUST,SP0000626
WANDSWORTH COUNCIL,ASC,SOCIAL SERVICES,PRIVATE,Revenue,EXTERNAL RESIDENTIAL CARE,523985,130245330,12-Nov-14,"4,427.04",METROPOLITAN HOUSING TRUST,SP0000626
WANDSWORTH COUNCIL,ASC,SOCIAL SERVICES,PRIVATE,Revenue,EXTERNAL RESIDENTIAL CARE,523986,130245330,12-Nov-14,"4,709.79",METROPOLITAN HOUSING TRUST,SP0000626
WANDSWORTH COUNCIL,ASC,SOCIAL SERVICES,PRIVATE,Revenue,EXTERNAL RESIDENTIAL CARE,523987,130245330,12-Nov-14,"4,709.79",METROPOLITAN HOUSING TRUST,SP0000626
WANDSWORTH COUNCIL,ASC,SOCIAL SERVICES,PRIVATE,Revenue,EXTERNAL RESIDENTIAL CARE,523988,130245330,12-Nov-14,"4,709.79",METROPOLITAN HOUSING TRUST,SP0000626
WANDSWORTH COUNCIL,ASC,SOCIAL SERVICES,PRIVATE,Revenue,EXTERNAL RESIDENTIAL CARE,523990,130245330,12-Nov-14,"4,709.79",METROPOLITAN HOUSING TRUST,SP0000626
WANDSWORTH COUNCIL,ASC,SOCIAL SERVICES,PRIVATE,Revenue,EXTERNAL RESIDENTIAL CARE,523960,130245330,12-Nov-14,"8,500.00",MIGHOUSE RESIDENTIAL CARE HOME LTD,SP0001402
WANDSWORTH COUNCIL,ASC,SOCIAL SERVICES,PRIVATE,Revenue,EXTERNAL RESIDENTIAL CARE,530266,130245330,21-Nov-14,"2,930.00",MISSION CARE,SP0000958
WANDSWORTH COUNCIL,ASC,SOCIAL SERVICES,PRIVATE,Revenue,EXTERNAL RESIDENTIAL CARE,521369,130245330,07-Nov-14,"3,279.45",NAS SERVICES LIMITED,SP0000217
WANDSWORTH COUNCIL,ASC,SOCIAL SERVICES,PRIVATE,Revenue,EXTERNAL RESIDENTIAL CARE,530335,130245330,21-Nov-14,"2,899.72",NAS SERVICES LIMITED,SP0000217
WANDSWORTH COUNCIL,ASC,SOCIAL SERVICES,PRIVATE,Revenue,EXTERNAL RESIDENTIAL CARE,530338,130245330,21-Nov-14,"1,222.10",NAS SERVICES LIMITED,SP0000217
WANDSWORTH COUNCIL,ASC,SOCIAL SERVICES,PRIVATE,Revenue,EXTERNAL RESIDENTIAL CARE,533336,130245330,25-Nov-14,"3,370.92",NAS SERVICES LIMITED,SP0000217
WANDSWORTH COUNCIL,ASC,SOCIAL SERVICES,PRIVATE,Revenue,EXTERNAL RESIDENTIAL CARE,525990,130245330,14-Nov-14,"6,000.00",NATIONAL SOCIETY FOR EPILEPSY,SP0000120
WANDSWORTH COUNCIL,ASC,SOCIAL SERVICES,PRIVATE,Revenue,EXTERNAL RESIDENTIAL CARE,533439,130245330,25-Nov-14,"7,501.72",NORCREST (2000) HOME LTD,SP0008343
WANDSWORTH COUNCIL,ASC,SOCIAL SERVICES,PRIVATE,Revenue,EXTERNAL RESIDENTIAL CARE,530366,130245330,21-Nov-14,"6,154.44",NORWOOD SCHOOLS LTD,SP0000332
WANDSWORTH COUNCIL,ASC,SOCIAL SERVICES,PRIVATE,Revenue,EXTERNAL RESIDENTIAL CARE,530367,130245330,21-Nov-14,"6,409.80",NORWOOD SCHOOLS LTD,SP0000332
WANDSWORTH COUNCIL,ASC,SOCIAL SERVICES,PRIVATE,Revenue,EXTERNAL RESIDENTIAL CARE,538486,130245330,28-Nov-14,"4,242.00",NUTLEY HALL LTD,SP0001581
WANDSWORTH COUNCIL,ASC,SOCIAL SERVICES,PRIVATE,Revenue,EXTERNAL RESIDENTIAL CARE,530237,130245330,21-Nov-14,"1,647.40",ORCHARD VALE TRUST,SP0000214
WANDSWORTH COUNCIL,ASC,SOCIAL SERVICES,PRIVATE,Revenue,EXTERNAL RESIDENTIAL CARE,530340,130245330,21-Nov-14,"4,035.96",PARK LODGE SOLUTIONS LTD,SP0006663
WANDSWORTH COUNCIL,ASC,SOCIAL SERVICES,PRIVATE,Revenue,EXTERNAL RESIDENTIAL CARE,530341,130245330,21-Nov-14,"4,035.96",PARK LODGE SOLUTIONS LTD,SP0006663
WANDSWORTH COUNCIL,ASC,SOCIAL SERVICES,PRIVATE,Revenue,EXTERNAL RESIDENTIAL CARE,520602,130245330,05-Nov-14,"7,134.21",PATHWAY HEALTHCARE,SP0001779
WANDSWORTH COUNCIL,ASC,SOCIAL SERVICES,PRIVATE,Revenue,EXTERNAL RESIDENTIAL CARE,529375,130245330,18-Nov-14,"7,581.50",PATHWAY HEALTHCARE,SP0001779
WANDSWORTH COUNCIL,ASC,SOCIAL SERVICES,PRIVATE,Revenue,EXTERNAL RESIDENTIAL CARE,538503,130245330,28-Nov-14,"7,336.92",PATHWAY HEALTHCARE,SP0001779
WANDSWORTH COUNCIL,ASC,SOCIAL SERVICES,PRIVATE,Revenue,EXTERNAL RESIDENTIAL CARE,538504,130245330,28-Nov-14,"6,904.07",PATHWAY HEALTHCARE,SP0001779
WANDSWORTH COUNCIL,ASC,SOCIAL SERVICES,PRIVATE,Revenue,EXTERNAL RESIDENTIAL CARE,530364,130245330,21-Nov-14,"3,135.60",POTENSIAL LTD,SP0000395
WANDSWORTH COUNCIL,ASC,SOCIAL SERVICES,PRIVATE,Revenue,EXTERNAL RESIDENTIAL CARE,521356,130245330,07-Nov-14,"3,151.20",PROSPECTS,SP0000800
WANDSWORTH COUNCIL,ASC,SOCIAL SERVICES,PRIVATE,Revenue,EXTERNAL RESIDENTIAL CARE,533451,130245330,25-Nov-14,"8,300.05",RALEIGH HOUSE LTD,SP0000760
WANDSWORTH COUNCIL,ASC,SOCIAL SERVICES,PRIVATE,Revenue,EXTERNAL RESIDENTIAL CARE,533452,130245330,25-Nov-14,"7,512.90",RALEIGH HOUSE LTD,SP0000760
WANDSWORTH COUNCIL,ASC,SOCIAL SERVICES,PRIVATE,Revenue,EXTERNAL RESIDENTIAL CARE,533387,130245330,25-Nov-14,"1,418.40",REDACTED PERSONAL DATA,SP0000931
WANDSWORTH COUNCIL,ASC,SOCIAL SERVICES,PRIVATE,Revenue,EXTERNAL RESIDENTIAL CARE,530243,130245330,21-Nov-14,"4,453.16",RESIDENTIAL CARE SERVICES T/A FRANKLYN L,SP0000147
WANDSWORTH COUNCIL,ASC,SOCIAL SERVICES,PRIVATE,Revenue,EXTERNAL RESIDENTIAL CARE,539008,130245330,28-Nov-14,"4,309.49",RESIDENTIAL CARE SERVICES T/A FRANKLYN L,SP0000147
WANDSWORTH COUNCIL,ASC,SOCIAL SERVICES,PRIVATE,Revenue,EXTERNAL RESIDENTIAL CARE,520627,130245330,05-Nov-14,"6,206.87",RESIDENTIAL COMMUNITY CARE,SP0000315
WANDSWORTH COUNCIL,ASC,SOCIAL SERVICES,PRIVATE,Revenue,EXTERNAL RESIDENTIAL CARE,520628,130245330,05-Nov-14,"6,263.46",RESIDENTIAL COMMUNITY CARE,SP0000315
WANDSWORTH COUNCIL,ASC,SOCIAL SERVICES,PRIVATE,Revenue,EXTERNAL RESIDENTIAL CARE,529410,130245330,18-Nov-14,"6,206.87",RESIDENTIAL COMMUNITY CARE,SP0000315
WANDSWORTH COUNCIL,ASC,SOCIAL SERVICES,PRIVATE,Revenue,EXTERNAL RESIDENTIAL CARE,529411,130245330,18-Nov-14,"6,206.86",RESIDENTIAL COMMUNITY CARE,SP0000315
WANDSWORTH COUNCIL,ASC,SOCIAL SERVICES,PRIVATE,Revenue,EXTERNAL RESIDENTIAL CARE,530263,130245330,21-Nov-14,"3,548.76",RIDGEWOOD CARE SERVICES LTD,SP0000969
WANDSWORTH COUNCIL,ASC,SOCIAL SERVICES,PRIVATE,Revenue,EXTERNAL RESIDENTIAL CARE,530265,130245330,21-Nov-14,"3,335.36",RIDGEWOOD CARE SERVICES LTD,SP0000969
WANDSWORTH COUNCIL,ASC,SOCIAL SERVICES,PRIVATE,Revenue,EXTERNAL RESIDENTIAL CARE,533409,130245330,25-Nov-14,"6,493.16",RIDGEWOOD CARE SERVICES LTD,SP0000969
WANDSWORTH COUNCIL,ASC,SOCIAL SERVICES,PRIVATE,Revenue,EXTERNAL RESIDENTIAL CARE,538526,130245330,28-Nov-14,"3,548.76",RIDGEWOOD CARE SERVICES LTD,SP0000969
WANDSWORTH COUNCIL,ASC,SOCIAL SERVICES,PRIVATE,Revenue,EXTERNAL RESIDENTIAL CARE,538531,130245330,28-Nov-14,"3,335.36",RIDGEWOOD CARE SERVICES LTD,SP0000969
WANDSWORTH COUNCIL,ASC,SOCIAL SERVICES,PRIVATE,Revenue,EXTERNAL RESIDENTIAL CARE,533342,130245330,25-Nov-14,"8,501.31",ROOKERY HOVE PRIORY,SP0001498
WANDSWORTH COUNCIL,ASC,SOCIAL SERVICES,PRIVATE,Revenue,EXTERNAL RESIDENTIAL CARE,529393,130245330,18-Nov-14,"10,219.46",SALISBURY AUTISTIC CARE,SP0001691
WANDSWORTH COUNCIL,ASC,SOCIAL SERVICES,PRIVATE,Revenue,EXTERNAL RESIDENTIAL CARE,526261,130245330,14-Nov-14,"2,162.32",SANCTUARY CARE LTD,SP0000121
WANDSWORTH COUNCIL,ASC,SOCIAL SERVICES,PRIVATE,Revenue,EXTERNAL RESIDENTIAL CARE,520623,130245330,05-Nov-14,"2,500.07",SAXON COURT,SP0001100
WANDSWORTH COUNCIL,ASC,SOCIAL SERVICES,PRIVATE,Revenue,EXTERNAL RESIDENTIAL CARE,538514,130245330,28-Nov-14,"2,419.41",SAXON COURT,SP0001100
WANDSWORTH COUNCIL,ASC,SOCIAL SERVICES,PRIVATE,Revenue,EXTERNAL RESIDENTIAL CARE,533441,130245330,25-Nov-14,"2,533.90",SCOPE,SP0000852
WANDSWORTH COUNCIL,ASC,SOCIAL SERVICES,PRIVATE,Revenue,EXTERNAL RESIDENTIAL CARE,533442,130245330,25-Nov-14,"2,674.38",SCOPE,SP0000852
WANDSWORTH COUNCIL,ASC,SOCIAL SERVICES,PRIVATE,Revenue,EXTERNAL RESIDENTIAL CARE,520612,130245330,05-Nov-14,"7,534.60",SEEABILITY,SP0000572
WANDSWORTH COUNCIL,ASC,SOCIAL SERVICES,PRIVATE,Revenue,EXTERNAL RESIDENTIAL CARE,539010,130245330,28-Nov-14,"7,291.54",SEEABILITY,SP0000572
WANDSWORTH COUNCIL,ASC,SOCIAL SERVICES,PRIVATE,Revenue,EXTERNAL RESIDENTIAL CARE,533382,130245330,25-Nov-14,"8,720.00",SPRING LAKE,SP0000223
WANDSWORTH COUNCIL,ASC,SOCIAL SERVICES,PRIVATE,Revenue,EXTERNAL RESIDENTIAL CARE,533383,130245330,25-Nov-14,"7,600.00",SPRING LAKE,SP0000223
WANDSWORTH COUNCIL,ASC,SOCIAL SERVICES,PRIVATE,Revenue,EXTERNAL RESIDENTIAL CARE,529396,130245330,18-Nov-14,"2,178.13",ST DAVIDS CARE IN THE COMMUNITY,SP0000379
WANDSWORTH COUNCIL,ASC,SOCIAL SERVICES,PRIVATE,Revenue,EXTERNAL RESIDENTIAL CARE,529397,130245330,18-Nov-14,"2,625.13",ST DAVIDS CARE IN THE COMMUNITY,SP0000379
WANDSWORTH COUNCIL,ASC,SOCIAL SERVICES,PRIVATE,Revenue,EXTERNAL RESIDENTIAL CARE,529398,130245330,18-Nov-14,"2,178.13",ST DAVIDS CARE IN THE COMMUNITY,SP0000379
WANDSWORTH COUNCIL,ASC,SOCIAL SERVICES,PRIVATE,Revenue,EXTERNAL RESIDENTIAL CARE,538515,130245330,28-Nov-14,"2,107.85",ST DAVIDS CARE IN THE COMMUNITY,SP0000379
WANDSWORTH COUNCIL,ASC,SOCIAL SERVICES,PRIVATE,Revenue,EXTERNAL RESIDENTIAL CARE,538516,130245330,28-Nov-14,"2,540.44",ST DAVIDS CARE IN THE COMMUNITY,SP0000379
WANDSWORTH COUNCIL,ASC,SOCIAL SERVICES,PRIVATE,Revenue,EXTERNAL RESIDENTIAL CARE,538517,130245330,28-Nov-14,"2,107.85",ST DAVIDS CARE IN THE COMMUNITY,SP0000379
WANDSWORTH COUNCIL,ASC,SOCIAL SERVICES,PRIVATE,Revenue,EXTERNAL RESIDENTIAL CARE,529399,130245330,18-Nov-14,"5,419.96",ST ELIZABETHS CENTRE,SP0001019
WANDSWORTH COUNCIL,ASC,SOCIAL SERVICES,PRIVATE,Revenue,EXTERNAL RESIDENTIAL CARE,539015,130245330,28-Nov-14,"4,021.25",ST ELIZABETHS CENTRE,SP0001019
WANDSWORTH COUNCIL,ASC,SOCIAL SERVICES,PRIVATE,Revenue,EXTERNAL RESIDENTIAL CARE,539016,130245330,28-Nov-14,"5,245.11",ST ELIZABETHS CENTRE,SP0001019
WANDSWORTH COUNCIL,ASC,SOCIAL SERVICES,PRIVATE,Revenue,EXTERNAL RESIDENTIAL CARE,521336,130245330,07-Nov-14,"3,269.48",ST MARYS RESIDENTIAL HOME,SP0000215
WANDSWORTH COUNCIL,ASC,SOCIAL SERVICES,PRIVATE,Revenue,EXTERNAL RESIDENTIAL CARE,521337,130245330,07-Nov-14,"3,101.12",ST MARYS RESIDENTIAL HOME,SP0000215
WANDSWORTH COUNCIL,ASC,SOCIAL SERVICES,PRIVATE,Revenue,EXTERNAL RESIDENTIAL CARE,521338,130245330,07-Nov-14,"3,723.12",ST MARYS RESIDENTIAL HOME,SP0000215
WANDSWORTH COUNCIL,ASC,SOCIAL SERVICES,PRIVATE,Revenue,EXTERNAL RESIDENTIAL CARE,530312,130245330,21-Nov-14,"3,834.00",ST MARYS RESIDENTIAL HOME,SP0000215
WANDSWORTH COUNCIL,ASC,SOCIAL SERVICES,PRIVATE,Revenue,EXTERNAL RESIDENTIAL CARE,530313,130245330,21-Nov-14,"3,467.14",ST MARYS RESIDENTIAL HOME,SP0000215
WANDSWORTH COUNCIL,ASC,SOCIAL SERVICES,PRIVATE,Revenue,EXTERNAL RESIDENTIAL CARE,530314,130245330,21-Nov-14,"3,772.97",ST MARYS RESIDENTIAL HOME,SP0000215
WANDSWORTH COUNCIL,ASC,SOCIAL SERVICES,PRIVATE,Revenue,EXTERNAL RESIDENTIAL CARE,530315,130245330,21-Nov-14,"4,962.08",ST MARYS RESIDENTIAL HOME,SP0000215
WANDSWORTH COUNCIL,ASC,SOCIAL SERVICES,PRIVATE,Revenue,EXTERNAL RESIDENTIAL CARE,530316,130245330,21-Nov-14,"3,454.67",ST MARYS RESIDENTIAL HOME,SP0000215
WANDSWORTH COUNCIL,ASC,SOCIAL SERVICES,PRIVATE,Revenue,EXTERNAL RESIDENTIAL CARE,530317,130245330,21-Nov-14,"3,591.90",ST MARYS RESIDENTIAL HOME,SP0000215
WANDSWORTH COUNCIL,ASC,SOCIAL SERVICES,PRIVATE,Revenue,EXTERNAL RESIDENTIAL CARE,530318,130245330,21-Nov-14,"3,033.08",ST MARYS RESIDENTIAL HOME,SP0000215
WANDSWORTH COUNCIL,ASC,SOCIAL SERVICES,PRIVATE,Revenue,EXTERNAL RESIDENTIAL CARE,530319,130245330,21-Nov-14,"4,878.72",ST MARYS RESIDENTIAL HOME,SP0000215
WANDSWORTH COUNCIL,ASC,SOCIAL SERVICES,PRIVATE,Revenue,EXTERNAL RESIDENTIAL CARE,530320,130245330,21-Nov-14,"3,503.01",ST MARYS RESIDENTIAL HOME,SP0000215
WANDSWORTH COUNCIL,ASC,SOCIAL SERVICES,PRIVATE,Revenue,EXTERNAL RESIDENTIAL CARE,530321,130245330,21-Nov-14,"3,467.14",ST MARYS RESIDENTIAL HOME,SP0000215
WANDSWORTH COUNCIL,ASC,SOCIAL SERVICES,PRIVATE,Revenue,EXTERNAL RESIDENTIAL CARE,530322,130245330,21-Nov-14,"2,238.85",ST MARYS RESIDENTIAL HOME,SP0000215
WANDSWORTH COUNCIL,ASC,SOCIAL SERVICES,PRIVATE,Revenue,EXTERNAL RESIDENTIAL CARE,530323,130245330,21-Nov-14,"2,238.85",ST MARYS RESIDENTIAL HOME,SP0000215
WANDSWORTH COUNCIL,ASC,SOCIAL SERVICES,PRIVATE,Revenue,EXTERNAL RESIDENTIAL CARE,529402,130245330,18-Nov-14,"3,255.27",STALLCOMBE HOUSE,SP0000843
WANDSWORTH COUNCIL,ASC,SOCIAL SERVICES,PRIVATE,Revenue,EXTERNAL RESIDENTIAL CARE,539028,130245330,28-Nov-14,"3,154.75",STALLCOMBE HOUSE,SP0000843
WANDSWORTH COUNCIL,ASC,SOCIAL SERVICES,PRIVATE,Revenue,EXTERNAL RESIDENTIAL CARE,529404,130245330,18-Nov-14,"8,982.39",SURREY & BORDERS PARTNERSHIP NHS TRUST,SP0000501
WANDSWORTH COUNCIL,ASC,SOCIAL SERVICES,PRIVATE,Revenue,EXTERNAL RESIDENTIAL CARE,529405,130245330,18-Nov-14,"5,622.80",SURREY & BORDERS PARTNERSHIP NHS TRUST,SP0000501
WANDSWORTH COUNCIL,ASC,SOCIAL SERVICES,PRIVATE,Revenue,EXTERNAL RESIDENTIAL CARE,533407,130245330,25-Nov-14,"8,982.40",SURREY & BORDERS PARTNERSHIP NHS TRUST,SP0000501
WANDSWORTH COUNCIL,ASC,SOCIAL SERVICES,PRIVATE,Revenue,EXTERNAL RESIDENTIAL CARE,533408,130245330,25-Nov-14,"5,622.80",SURREY & BORDERS PARTNERSHIP NHS TRUST,SP0000501
WANDSWORTH COUNCIL,ASC,SOCIAL SERVICES,PRIVATE,Revenue,EXTERNAL RESIDENTIAL CARE,533414,130245330,25-Nov-14,"6,234.50",SUSSEX AUTISTIC COMMUNITY TRUST(CARE SER,SP0000652
WANDSWORTH COUNCIL,ASC,SOCIAL SERVICES,PRIVATE,Revenue,EXTERNAL RESIDENTIAL CARE,533415,130245330,25-Nov-14,"6,033.38",SUSSEX AUTISTIC COMMUNITY TRUST(CARE SER,SP0000652
WANDSWORTH COUNCIL,ASC,SOCIAL SERVICES,PRIVATE,Revenue,EXTERNAL RESIDENTIAL CARE,533416,130245330,25-Nov-14,"6,234.51",SUSSEX AUTISTIC COMMUNITY TRUST(CARE SER,SP0000652
WANDSWORTH COUNCIL,ASC,SOCIAL SERVICES,PRIVATE,Revenue,EXTERNAL RESIDENTIAL CARE,533417,130245330,25-Nov-14,"6,033.38",SUSSEX AUTISTIC COMMUNITY TRUST(CARE SER,SP0000652
WANDSWORTH COUNCIL,ASC,SOCIAL SERVICES,PRIVATE,Revenue,EXTERNAL RESIDENTIAL CARE,518781,130245330,03-Nov-14,"7,086.21",SUSSEX HEALTH CARE,SP0001115
WANDSWORTH COUNCIL,ASC,SOCIAL SERVICES,PRIVATE,Revenue,EXTERNAL RESIDENTIAL CARE,533353,130245330,25-Nov-14,"7,008.92",SUSSEX HEALTH CARE,SP0001115
WANDSWORTH COUNCIL,ASC,SOCIAL SERVICES,PRIVATE,Revenue,EXTERNAL RESIDENTIAL CARE,539006,130245330,28-Nov-14,"5,987.05",SUSSEX HEALTH CARE,SP0001115
WANDSWORTH COUNCIL,ASC,SOCIAL SERVICES,PRIVATE,Revenue,EXTERNAL RESIDENTIAL CARE,518812,130245330,03-Nov-14,"9,312.94",TANGLEWOOD CARE HOME,SP0000167
WANDSWORTH COUNCIL,ASC,SOCIAL SERVICES,PRIVATE,Revenue,EXTERNAL RESIDENTIAL CARE,538500,130245330,28-Nov-14,"9,312.93",TANGLEWOOD CARE HOME,SP0000167
WANDSWORTH COUNCIL,ASC,SOCIAL SERVICES,PRIVATE,Revenue,EXTERNAL RESIDENTIAL CARE,528729,130245330,18-Nov-14,"6,408.96",THE BRANDON TRUST,SP0005337
WANDSWORTH COUNCIL,ASC,SOCIAL SERVICES,PRIVATE,Revenue,EXTERNAL RESIDENTIAL CARE,523173,130245330,11-Nov-14,"4,593.96",THE CHESTNUTS,SP0000182
WANDSWORTH COUNCIL,ASC,SOCIAL SERVICES,PRIVATE,Revenue,EXTERNAL RESIDENTIAL CARE,523174,130245330,11-Nov-14,"5,555.16",THE CHESTNUTS,SP0000182
WANDSWORTH COUNCIL,ASC,SOCIAL SERVICES,PRIVATE,Revenue,EXTERNAL RESIDENTIAL CARE,518784,130245330,03-Nov-14,"5,588.42",THE COMMUNITY CARE COMPANY UK LTD,SP0000576
WANDSWORTH COUNCIL,ASC,SOCIAL SERVICES,PRIVATE,Revenue,EXTERNAL RESIDENTIAL CARE,518785,130245330,03-Nov-14,"9,564.13",THE COMMUNITY CARE COMPANY UK LTD,SP0000576
WANDSWORTH COUNCIL,ASC,SOCIAL SERVICES,PRIVATE,Revenue,EXTERNAL RESIDENTIAL CARE,518786,130245330,03-Nov-14,"7,051.54",THE COMMUNITY CARE COMPANY UK LTD,SP0000576
WANDSWORTH COUNCIL,ASC,SOCIAL SERVICES,PRIVATE,Revenue,EXTERNAL RESIDENTIAL CARE,518787,130245330,03-Nov-14,"5,943.29",THE COMMUNITY CARE COMPANY UK LTD,SP0000576
WANDSWORTH COUNCIL,ASC,SOCIAL SERVICES,PRIVATE,Revenue,EXTERNAL RESIDENTIAL CARE,518799,130245330,03-Nov-14,"7,131.87",THE COMMUNITY CARE COMPANY UK LTD,SP0000576
WANDSWORTH COUNCIL,ASC,SOCIAL SERVICES,PRIVATE,Revenue,EXTERNAL RESIDENTIAL CARE,518802,130245330,03-Nov-14,"6,127.38",THE COMMUNITY CARE COMPANY UK LTD,SP0000576
WANDSWORTH COUNCIL,ASC,SOCIAL SERVICES,PRIVATE,Revenue,EXTERNAL RESIDENTIAL CARE,533301,130245330,25-Nov-14,"5,408.14",THE COMMUNITY CARE COMPANY UK LTD,SP0000576
WANDSWORTH COUNCIL,ASC,SOCIAL SERVICES,PRIVATE,Revenue,EXTERNAL RESIDENTIAL CARE,533302,130245330,25-Nov-14,"9,255.60",THE COMMUNITY CARE COMPANY UK LTD,SP0000576
WANDSWORTH COUNCIL,ASC,SOCIAL SERVICES,PRIVATE,Revenue,EXTERNAL RESIDENTIAL CARE,533303,130245330,25-Nov-14,"6,824.06",THE COMMUNITY CARE COMPANY UK LTD,SP0000576
WANDSWORTH COUNCIL,ASC,SOCIAL SERVICES,PRIVATE,Revenue,EXTERNAL RESIDENTIAL CARE,533304,130245330,25-Nov-14,"5,751.56",THE COMMUNITY CARE COMPANY UK LTD,SP0000576
WANDSWORTH COUNCIL,ASC,SOCIAL SERVICES,PRIVATE,Revenue,EXTERNAL RESIDENTIAL CARE,533307,130245330,25-Nov-14,"6,901.80",THE COMMUNITY CARE COMPANY UK LTD,SP0000576
WANDSWORTH COUNCIL,ASC,SOCIAL SERVICES,PRIVATE,Revenue,EXTERNAL RESIDENTIAL CARE,533308,130245330,25-Nov-14,"5,929.71",THE COMMUNITY CARE COMPANY UK LTD,SP0000576
WANDSWORTH COUNCIL,ASC,SOCIAL SERVICES,PRIVATE,Revenue,EXTERNAL RESIDENTIAL CARE,521365,130245330,07-Nov-14,"7,460.27",THE DISABILITIES TRUST,SP0000239
WANDSWORTH COUNCIL,ASC,SOCIAL SERVICES,PRIVATE,Revenue,EXTERNAL RESIDENTIAL CARE,521366,130245330,07-Nov-14,"7,708.95",THE DISABILITIES TRUST,SP0000239
WANDSWORTH COUNCIL,ASC,SOCIAL SERVICES,PRIVATE,Revenue,EXTERNAL RESIDENTIAL CARE,521367,130245330,07-Nov-14,"7,460.27",THE DISABILITIES TRUST,SP0000239
WANDSWORTH COUNCIL,ASC,SOCIAL SERVICES,PRIVATE,Revenue,EXTERNAL RESIDENTIAL CARE,521368,130245330,07-Nov-14,"7,708.95",THE DISABILITIES TRUST,SP0000239
WANDSWORTH COUNCIL,ASC,SOCIAL SERVICES,PRIVATE,Revenue,EXTERNAL RESIDENTIAL CARE,534213,130245330,26-Nov-14,"7,460.27",THE DISABILITIES TRUST,SP0000239
WANDSWORTH COUNCIL,ASC,SOCIAL SERVICES,PRIVATE,Revenue,EXTERNAL RESIDENTIAL CARE,521308,130245330,07-Nov-14,"2,323.00",THE HOME FARM TRUST LTD,SP0001048
WANDSWORTH COUNCIL,ASC,SOCIAL SERVICES,PRIVATE,Revenue,EXTERNAL RESIDENTIAL CARE,521309,130245330,07-Nov-14,"2,743.88",THE HOME FARM TRUST LTD,SP0001048
WANDSWORTH COUNCIL,ASC,SOCIAL SERVICES,PRIVATE,Revenue,EXTERNAL RESIDENTIAL CARE,521310,130245330,07-Nov-14,"2,457.40",THE HOME FARM TRUST LTD,SP0001048
WANDSWORTH COUNCIL,ASC,SOCIAL SERVICES,PRIVATE,Revenue,EXTERNAL RESIDENTIAL CARE,533325,130245330,25-Nov-14,"3,708.20",THE HOME FARM TRUST LTD,SP0001048
WANDSWORTH COUNCIL,ASC,SOCIAL SERVICES,PRIVATE,Revenue,EXTERNAL RESIDENTIAL CARE,521349,130245330,07-Nov-14,"3,957.32",THE LEO TRUST,SP0000908
WANDSWORTH COUNCIL,ASC,SOCIAL SERVICES,PRIVATE,Revenue,EXTERNAL RESIDENTIAL CARE,530374,130245330,21-Nov-14,"3,957.32",THE LEO TRUST,SP0000908
WANDSWORTH COUNCIL,ASC,SOCIAL SERVICES,PRIVATE,Revenue,EXTERNAL RESIDENTIAL CARE,526399,130245330,14-Nov-14,"2,618.36",THE LYLE PARK TRUST,SP0000070
WANDSWORTH COUNCIL,ASC,SOCIAL SERVICES,PRIVATE,Revenue,EXTERNAL RESIDENTIAL CARE,530247,130245330,21-Nov-14,"2,331.89",THE MANOR,SP0000340
WANDSWORTH COUNCIL,ASC,SOCIAL SERVICES,PRIVATE,Revenue,EXTERNAL RESIDENTIAL CARE,530246,130245330,21-Nov-14,"2,999.06",THE MANOR HOUSE,SP0000728
WANDSWORTH COUNCIL,ASC,SOCIAL SERVICES,PRIVATE,Revenue,EXTERNAL RESIDENTIAL CARE,520668,130245330,05-Nov-14,"10,211.71",THE MAPLES,SP0000154
WANDSWORTH COUNCIL,ASC,SOCIAL SERVICES,PRIVATE,Revenue,EXTERNAL RESIDENTIAL CARE,520622,130245330,05-Nov-14,"5,895.16",THE REGARD PARTNERSHIP,SP0000588
WANDSWORTH COUNCIL,ASC,SOCIAL SERVICES,PRIVATE,Revenue,EXTERNAL RESIDENTIAL CARE,529378,130245330,18-Nov-14,"7,409.80",THE REGARD PARTNERSHIP,SP0000588
WANDSWORTH COUNCIL,ASC,SOCIAL SERVICES,PRIVATE,Revenue,EXTERNAL RESIDENTIAL CARE,529379,130245330,18-Nov-14,"7,290.27",THE REGARD PARTNERSHIP,SP0000588
WANDSWORTH COUNCIL,ASC,SOCIAL SERVICES,PRIVATE,Revenue,EXTERNAL RESIDENTIAL CARE,529380,130245330,18-Nov-14,"6,689.58",THE REGARD PARTNERSHIP,SP0000588
WANDSWORTH COUNCIL,ASC,SOCIAL SERVICES,PRIVATE,Revenue,EXTERNAL RESIDENTIAL CARE,529381,130245330,18-Nov-14,"6,974.83",THE REGARD PARTNERSHIP,SP0000588
WANDSWORTH COUNCIL,ASC,SOCIAL SERVICES,PRIVATE,Revenue,EXTERNAL RESIDENTIAL CARE,529382,130245330,18-Nov-14,"7,073.86",THE REGARD PARTNERSHIP,SP0000588
WANDSWORTH COUNCIL,ASC,SOCIAL SERVICES,PRIVATE,Revenue,EXTERNAL RESIDENTIAL CARE,529421,130245330,18-Nov-14,"7,794.29",THE REGARD PARTNERSHIP,SP0000588
WANDSWORTH COUNCIL,ASC,SOCIAL SERVICES,PRIVATE,Revenue,EXTERNAL RESIDENTIAL CARE,533454,130245330,25-Nov-14,"5,895.16",THE REGARD PARTNERSHIP,SP0000588
WANDSWORTH COUNCIL,ASC,SOCIAL SERVICES,PRIVATE,Revenue,EXTERNAL RESIDENTIAL CARE,538506,130245330,28-Nov-14,"7,170.77",THE REGARD PARTNERSHIP,SP0000588
WANDSWORTH COUNCIL,ASC,SOCIAL SERVICES,PRIVATE,Revenue,EXTERNAL RESIDENTIAL CARE,538507,130245330,28-Nov-14,"7,055.10",THE REGARD PARTNERSHIP,SP0000588
WANDSWORTH COUNCIL,ASC,SOCIAL SERVICES,PRIVATE,Revenue,EXTERNAL RESIDENTIAL CARE,538508,130245330,28-Nov-14,"6,473.78",THE REGARD PARTNERSHIP,SP0000588
WANDSWORTH COUNCIL,ASC,SOCIAL SERVICES,PRIVATE,Revenue,EXTERNAL RESIDENTIAL CARE,538509,130245330,28-Nov-14,"6,749.82",THE REGARD PARTNERSHIP,SP0000588
WANDSWORTH COUNCIL,ASC,SOCIAL SERVICES,PRIVATE,Revenue,EXTERNAL RESIDENTIAL CARE,538510,130245330,28-Nov-14,"6,845.65",THE REGARD PARTNERSHIP,SP0000588
WANDSWORTH COUNCIL,ASC,SOCIAL SERVICES,PRIVATE,Revenue,EXTERNAL RESIDENTIAL CARE,538532,130245330,28-Nov-14,"7,542.85",THE REGARD PARTNERSHIP,SP0000588
WANDSWORTH COUNCIL,ASC,SOCIAL SERVICES,PRIVATE,Revenue,EXTERNAL RESIDENTIAL CARE,521323,130245330,07-Nov-14,"4,403.76",THE WELL HOUSE,SP0000448
WANDSWORTH COUNCIL,ASC,SOCIAL SERVICES,PRIVATE,Revenue,EXTERNAL RESIDENTIAL CARE,521324,130245330,07-Nov-14,"4,654.08",THE WELL HOUSE,SP0000448
WANDSWORTH COUNCIL,ASC,SOCIAL SERVICES,PRIVATE,Revenue,EXTERNAL RESIDENTIAL CARE,539019,130245330,28-Nov-14,"4,403.76",THE WELL HOUSE,SP0000448
WANDSWORTH COUNCIL,ASC,SOCIAL SERVICES,PRIVATE,Revenue,EXTERNAL RESIDENTIAL CARE,539020,130245330,28-Nov-14,"4,654.08",THE WELL HOUSE,SP0000448
WANDSWORTH COUNCIL,ASC,SOCIAL SERVICES,PRIVATE,Revenue,EXTERNAL RESIDENTIAL CARE,525984,130245330,14-Nov-14,"7,395.80",TOTTERDOWN,SP0001113
WANDSWORTH COUNCIL,ASC,SOCIAL SERVICES,PRIVATE,Revenue,EXTERNAL RESIDENTIAL CARE,525985,130245330,14-Nov-14,"3,671.24",TOTTERDOWN,SP0001113
WANDSWORTH COUNCIL,ASC,SOCIAL SERVICES,PRIVATE,Revenue,EXTERNAL RESIDENTIAL CARE,520625,130245330,05-Nov-14,"5,204.20",TRACS,SP0000914
WANDSWORTH COUNCIL,ASC,SOCIAL SERVICES,PRIVATE,Revenue,EXTERNAL RESIDENTIAL CARE,538524,130245330,28-Nov-14,"5,036.31",TRACS,SP0000914
WANDSWORTH COUNCIL,ASC,SOCIAL SERVICES,PRIVATE,Revenue,EXTERNAL RESIDENTIAL CARE,521307,130245330,07-Nov-14,"3,140.56",UNITED RESPONSE,SP0000797
WANDSWORTH COUNCIL,ASC,SOCIAL SERVICES,PRIVATE,Revenue,EXTERNAL RESIDENTIAL CARE,520616,130245330,05-Nov-14,"6,127.81",VOYAGE CARE LTD,SP0000366
WANDSWORTH COUNCIL,ASC,SOCIAL SERVICES,PRIVATE,Revenue,EXTERNAL RESIDENTIAL CARE,529377,130245330,18-Nov-14,"5,979.28",VOYAGE CARE LTD,SP0000366
WANDSWORTH COUNCIL,ASC,SOCIAL SERVICES,PRIVATE,Revenue,EXTERNAL RESIDENTIAL CARE,529383,130245330,18-Nov-14,"7,444.36",VOYAGE CARE LTD,SP0000366
WANDSWORTH COUNCIL,ASC,SOCIAL SERVICES,PRIVATE,Revenue,EXTERNAL RESIDENTIAL CARE,529412,130245330,18-Nov-14,"6,091.77",VOYAGE CARE LTD,SP0000366
WANDSWORTH COUNCIL,ASC,SOCIAL SERVICES,PRIVATE,Revenue,EXTERNAL RESIDENTIAL CARE,529413,130245330,18-Nov-14,"6,290.41",VOYAGE CARE LTD,SP0000366
WANDSWORTH COUNCIL,ASC,SOCIAL SERVICES,PRIVATE,Revenue,EXTERNAL RESIDENTIAL CARE,529419,130245330,18-Nov-14,"7,766.72",VOYAGE CARE LTD,SP0000366
WANDSWORTH COUNCIL,ASC,SOCIAL SERVICES,PRIVATE,Revenue,EXTERNAL RESIDENTIAL CARE,529420,130245330,18-Nov-14,"6,441.12",VOYAGE CARE LTD,SP0000366
WANDSWORTH COUNCIL,ASC,SOCIAL SERVICES,PRIVATE,Revenue,EXTERNAL RESIDENTIAL CARE,533449,130245330,25-Nov-14,"5,979.28",VOYAGE CARE LTD,SP0000366
WANDSWORTH COUNCIL,ASC,SOCIAL SERVICES,PRIVATE,Revenue,EXTERNAL RESIDENTIAL CARE,533455,130245330,25-Nov-14,"7,444.36",VOYAGE CARE LTD,SP0000366
WANDSWORTH COUNCIL,ASC,SOCIAL SERVICES,PRIVATE,Revenue,EXTERNAL RESIDENTIAL CARE,533459,130245330,25-Nov-14,"5,895.25",VOYAGE CARE LTD,SP0000366
WANDSWORTH COUNCIL,ASC,SOCIAL SERVICES,PRIVATE,Revenue,EXTERNAL RESIDENTIAL CARE,533460,130245330,25-Nov-14,"5,930.14",VOYAGE CARE LTD,SP0000366
WANDSWORTH COUNCIL,ASC,SOCIAL SERVICES,PRIVATE,Revenue,EXTERNAL RESIDENTIAL CARE,533461,130245330,25-Nov-14,"6,193.59",VOYAGE CARE LTD,SP0000366
WANDSWORTH COUNCIL,ASC,SOCIAL SERVICES,PRIVATE,Revenue,EXTERNAL RESIDENTIAL CARE,533464,130245330,25-Nov-14,"6,441.12",VOYAGE CARE LTD,SP0000366
WANDSWORTH COUNCIL,ASC,SOCIAL SERVICES,PRIVATE,Revenue,EXTERNAL RESIDENTIAL CARE,533465,130245330,25-Nov-14,"7,766.72",VOYAGE CARE LTD,SP0000366
WANDSWORTH COUNCIL,ASC,SOCIAL SERVICES,PRIVATE,Revenue,EXTERNAL RESIDENTIAL CARE,523165,130245330,11-Nov-14,"6,312.45",WESSEX AUTISTIC SOCIETY,SP0000805
WANDSWORTH COUNCIL,ASC,SOCIAL SERVICES,PRIVATE,Revenue,EXTERNAL RESIDENTIAL CARE,521355,130245330,07-Nov-14,"4,831.44",WHITE ROSE CARE,SP0000780
WANDSWORTH COUNCIL,ASC,SOCIAL SERVICES,PRIVATE,Revenue,EXTERNAL RESIDENTIAL CARE,533333,130245330,25-Nov-14,"4,831.44",WHITE ROSE CARE,SP0000780
WANDSWORTH COUNCIL,ASC,SOCIAL SERVICES,PRIVATE,Revenue,EXTERNAL RESIDENTIAL CARE,538529,130245330,28-Nov-14,"16,866.49",WHITMORE VALE HOUSING ASSOCIATION LTD,SP0000694
WANDSWORTH COUNCIL,ASC,SOCIAL SERVICES,PRIVATE,Revenue,EXTERNAL RESI RESPITE CARE,538495,130245340,28-Nov-14,598.36,ST MARYS RESIDENTIAL HOME,SP0000215
WANDSWORTH COUNCIL,ASC,SOCIAL SERVICES,PRIVATE,Revenue,RESPITE CARE AT HOME -VOUCHERS,526027,130245510,14-Nov-14,787.68,RAINBOW MEDICAL SERVICES,SP0000037
WANDSWORTH COUNCIL,ASC,SOCIAL SERVICES,PRIVATE,Revenue,ONE TO ONE CARE,533753,130246220,25-Nov-14,"1,953.00",ACH OF LONDON LLP,SP0001688
WANDSWORTH COUNCIL,ASC,SOCIAL SERVICES,PRIVATE,Revenue,ONE TO ONE CARE,518792,130246220,03-Nov-14,"1,600.44",CORICH COMMUNITY CARE LTD,SP0000915
WANDSWORTH COUNCIL,ASC,SOCIAL SERVICES,PRIVATE,Revenue,ONE TO ONE CARE,530356,130246220,21-Nov-14,"1,600.44",CORICH COMMUNITY CARE LTD,SP0000915
WANDSWORTH COUNCIL,ASC,SOCIAL SERVICES,PRIVATE,Revenue,ONE TO ONE CARE,533797,130246220,25-Nov-14,"3,214.29",CRAEGMOOR OLD RECTORY BREDE PRIORY,SP0001621
WANDSWORTH COUNCIL,ASC,SOCIAL SERVICES,PRIVATE,Revenue,ONE TO ONE CARE,533755,130246220,25-Nov-14,"2,791.71",DOWNING (CHERTSEY ROAD) LTD,SP0000959
WANDSWORTH COUNCIL,ASC,SOCIAL SERVICES,PRIVATE,Revenue,ONE TO ONE CARE,539106,130246220,28-Nov-14,948.09,FRANCES TAYLOR FOUNDATION,SP0000142
WANDSWORTH COUNCIL,ASC,SOCIAL SERVICES,PRIVATE,Revenue,ONE TO ONE CARE,533764,130246220,25-Nov-14,44.25,FRONTIER SUPPORT SERVICES LTD,SP0001132
WANDSWORTH COUNCIL,ASC,SOCIAL SERVICES,PRIVATE,Revenue,ONE TO ONE CARE,533766,130246220,25-Nov-14,716.24,FRONTIER SUPPORT SERVICES LTD,SP0001132
WANDSWORTH COUNCIL,ASC,SOCIAL SERVICES,PRIVATE,Revenue,ONE TO ONE CARE,533777,130246220,25-Nov-14,976.56,HARROW MENCAP,SP0001347
WANDSWORTH COUNCIL,ASC,SOCIAL SERVICES,PRIVATE,Revenue,ONE TO ONE CARE,533756,130246220,25-Nov-14,900.00,HILL PARK AUTISTIC TRUST,SP0000926
WANDSWORTH COUNCIL,ASC,SOCIAL SERVICES,PRIVATE,Revenue,ONE TO ONE CARE,533752,130246220,25-Nov-14,802.08,LARKFIELD HALL LTD T/A PEPENBURY,SP0001378
WANDSWORTH COUNCIL,ASC,SOCIAL SERVICES,PRIVATE,Revenue,ONE TO ONE CARE,521341,130246220,07-Nov-14,358.20,MACINTYRE CARE,SP0000473
WANDSWORTH COUNCIL,ASC,SOCIAL SERVICES,PRIVATE,Revenue,ONE TO ONE CARE,521512,130246220,07-Nov-14,"1,350.52",MACINTYRE CARE,SP0000473
WANDSWORTH COUNCIL,ASC,SOCIAL SERVICES,PRIVATE,Revenue,ONE TO ONE CARE,521513,130246220,07-Nov-14,"1,350.52",MACINTYRE CARE,SP0000473
WANDSWORTH COUNCIL,ASC,SOCIAL SERVICES,PRIVATE,Revenue,ONE TO ONE CARE,521514,130246220,07-Nov-14,"1,910.04",MACINTYRE CARE,SP0000473
WANDSWORTH COUNCIL,ASC,SOCIAL SERVICES,PRIVATE,Revenue,ONE TO ONE CARE,521515,130246220,07-Nov-14,"1,350.52",MACINTYRE CARE,SP0000473
WANDSWORTH COUNCIL,ASC,SOCIAL SERVICES,PRIVATE,Revenue,ONE TO ONE CARE,521516,130246220,07-Nov-14,694.56,MACINTYRE CARE,SP0000473
WANDSWORTH COUNCIL,ASC,SOCIAL SERVICES,PRIVATE,Revenue,ONE TO ONE CARE,525111,130246220,13-Nov-14,"1,350.52",MACINTYRE CARE,SP0000473
WANDSWORTH COUNCIL,ASC,SOCIAL SERVICES,PRIVATE,Revenue,ONE TO ONE CARE,525112,130246220,13-Nov-14,694.56,MACINTYRE CARE,SP0000473
WANDSWORTH COUNCIL,ASC,SOCIAL SERVICES,PRIVATE,Revenue,ONE TO ONE CARE,533749,130246220,25-Nov-14,"1,350.52",MACINTYRE CARE,SP0000473
WANDSWORTH COUNCIL,ASC,SOCIAL SERVICES,PRIVATE,Revenue,ONE TO ONE CARE,533750,130246220,25-Nov-14,"1,910.04",MACINTYRE CARE,SP0000473
WANDSWORTH COUNCIL,ASC,SOCIAL SERVICES,PRIVATE,Revenue,ONE TO ONE CARE,533751,130246220,25-Nov-14,"1,350.52",MACINTYRE CARE,SP0000473
WANDSWORTH COUNCIL,ASC,SOCIAL SERVICES,PRIVATE,Revenue,ONE TO ONE CARE,523260,130246220,11-Nov-14,"2,257.42",METROPOLITAN HOUSING TRUST,SP0000626
WANDSWORTH COUNCIL,ASC,SOCIAL SERVICES,PRIVATE,Revenue,ONE TO ONE CARE,523269,130246220,11-Nov-14,"2,039.04",METROPOLITAN HOUSING TRUST,SP0000626
WANDSWORTH COUNCIL,ASC,SOCIAL SERVICES,PRIVATE,Revenue,ONE TO ONE CARE,523270,130246220,11-Nov-14,"4,587.84",METROPOLITAN HOUSING TRUST,SP0000626
WANDSWORTH COUNCIL,ASC,SOCIAL SERVICES,PRIVATE,Revenue,ONE TO ONE CARE,525130,130246220,13-Nov-14,"2,959.44",METROPOLITAN HOUSING TRUST,SP0000626
WANDSWORTH COUNCIL,ASC,SOCIAL SERVICES,PRIVATE,Revenue,ONE TO ONE CARE,525131,130246220,13-Nov-14,"3,511.68",METROPOLITAN HOUSING TRUST,SP0000626
WANDSWORTH COUNCIL,ASC,SOCIAL SERVICES,PRIVATE,Revenue,ONE TO ONE CARE,525132,130246220,13-Nov-14,"3,171.84",METROPOLITAN HOUSING TRUST,SP0000626
WANDSWORTH COUNCIL,ASC,SOCIAL SERVICES,PRIVATE,Revenue,ONE TO ONE CARE,525133,130246220,13-Nov-14,"3,171.84",METROPOLITAN HOUSING TRUST,SP0000626
WANDSWORTH COUNCIL,ASC,SOCIAL SERVICES,PRIVATE,Revenue,ONE TO ONE CARE,533074,130246220,25-Nov-14,"3,171.84",METROPOLITAN HOUSING TRUST,SP0000626
WANDSWORTH COUNCIL,ASC,SOCIAL SERVICES,PRIVATE,Revenue,ONE TO ONE CARE,533077,130246220,25-Nov-14,"2,039.04",METROPOLITAN HOUSING TRUST,SP0000626
WANDSWORTH COUNCIL,ASC,SOCIAL SERVICES,PRIVATE,Revenue,ONE TO ONE CARE,526142,130246220,14-Nov-14,"1,066.80",RAINBOW MEDICAL SERVICES,SP0000037
WANDSWORTH COUNCIL,ASC,SOCIAL SERVICES,PRIVATE,Revenue,ONE TO ONE CARE,526143,130246220,14-Nov-14,"2,667.00",RAINBOW MEDICAL SERVICES,SP0000037
WANDSWORTH COUNCIL,ASC,SOCIAL SERVICES,PRIVATE,Revenue,ONE TO ONE CARE,526146,130246220,14-Nov-14,"2,570.10",RAINBOW MEDICAL SERVICES,SP0000037
WANDSWORTH COUNCIL,ASC,SOCIAL SERVICES,PRIVATE,Revenue,ONE TO ONE CARE,533739,130246220,25-Nov-14,"1,774.80",RAINBOW MEDICAL SERVICES,SP0000037
WANDSWORTH COUNCIL,ASC,SOCIAL SERVICES,PRIVATE,Revenue,ONE TO ONE CARE,520627,130246220,05-Nov-14,"1,963.85",RESIDENTIAL COMMUNITY CARE,SP0000315
WANDSWORTH COUNCIL,ASC,SOCIAL SERVICES,PRIVATE,Revenue,ONE TO ONE CARE,529410,130246220,18-Nov-14,"1,963.85",RESIDENTIAL COMMUNITY CARE,SP0000315
WANDSWORTH COUNCIL,ASC,SOCIAL SERVICES,PRIVATE,Revenue,ONE TO ONE CARE,529411,130246220,18-Nov-14,"1,963.85",RESIDENTIAL COMMUNITY CARE,SP0000315
WANDSWORTH COUNCIL,ASC,ENVIRONMENT & COMMUNITY,PRIVATE,Revenue,ONE TO ONE CARE,538674,130246220,28-Nov-14,818.22,SOUTHSIDE PARTNERSHIP,SP0000692
WANDSWORTH COUNCIL,ASC,SOCIAL SERVICES,PRIVATE,Revenue,ONE TO ONE CARE,533094,130246220,25-Nov-14,671.40,ST MARYS RESIDENTIAL HOME,SP0000215
WANDSWORTH COUNCIL,ASC,SOCIAL SERVICES,PRIVATE,Revenue,ONE TO ONE CARE,533095,130246220,25-Nov-14,627.90,ST MARYS RESIDENTIAL HOME,SP0000215
WANDSWORTH COUNCIL,ASC,SOCIAL SERVICES,PRIVATE,Revenue,ONE TO ONE CARE,529102,130246220,18-Nov-14,324.00,THE BRANDON TRUST,SP0005337
WANDSWORTH COUNCIL,ASC,SOCIAL SERVICES,PRIVATE,Revenue,ONE TO ONE CARE,529121,130246220,18-Nov-14,"1,987.20",THE BRANDON TRUST,SP0005337
WANDSWORTH COUNCIL,ASC,SOCIAL SERVICES,PRIVATE,Revenue,ONE TO ONE CARE,529138,130246220,18-Nov-14,600.04,THE BRANDON TRUST,SP0005337
WANDSWORTH COUNCIL,ASC,SOCIAL SERVICES,PRIVATE,Revenue,ONE TO ONE CARE,529185,130246220,18-Nov-14,"1,312.00",THE BRANDON TRUST,SP0005337
WANDSWORTH COUNCIL,ASC,SOCIAL SERVICES,PRIVATE,Revenue,ONE TO ONE CARE,529188,130246220,18-Nov-14,"2,450.88",THE BRANDON TRUST,SP0005337
WANDSWORTH COUNCIL,ASC,SOCIAL SERVICES,PRIVATE,Revenue,ONE TO ONE CARE,529230,130246220,18-Nov-14,331.20,THE BRANDON TRUST,SP0005337
WANDSWORTH COUNCIL,ASC,SOCIAL SERVICES,PRIVATE,Revenue,ONE TO ONE CARE,529232,130246220,18-Nov-14,331.20,THE BRANDON TRUST,SP0005337
WANDSWORTH COUNCIL,ASC,SOCIAL SERVICES,PRIVATE,Revenue,ONE TO ONE CARE,523247,130246220,11-Nov-14,720.00,THE CHESTNUTS,SP0000182
WANDSWORTH COUNCIL,ASC,SOCIAL SERVICES,PRIVATE,Revenue,ONE TO ONE CARE,533746,130246220,25-Nov-14,"1,115.70",THE COMMUNITY CARE COMPANY UK LTD,SP0000576
WANDSWORTH COUNCIL,ASC,SOCIAL SERVICES,PRIVATE,Revenue,ONE TO ONE CARE,533747,130246220,25-Nov-14,"1,272.39",THE COMMUNITY CARE COMPANY UK LTD,SP0000576
WANDSWORTH COUNCIL,ASC,SOCIAL SERVICES,PRIVATE,Revenue,ONE TO ONE CARE,526131,130246220,14-Nov-14,"1,597.44",TOTTERDOWN,SP0001113
WANDSWORTH COUNCIL,ASC,SOCIAL SERVICES,PRIVATE,Revenue,ONE TO ONE CARE,520834,130246220,05-Nov-14,"1,062.86",VOYAGE CARE LTD,SP0000366
WANDSWORTH COUNCIL,ASC,SOCIAL SERVICES,PRIVATE,Revenue,ONE TO ONE CARE,539118,130246220,28-Nov-14,"1,028.57",VOYAGE CARE LTD,SP0000366
WANDSWORTH COUNCIL,ASC,SOCIAL SERVICES,VOL ASS,Revenue,SUPPORTED HOUSING PROGRAMME,533154,130248030,25-Nov-14,"2,220.00",ACT TOO LTD,SP0000855
WANDSWORTH COUNCIL,ASC,SOCIAL SERVICES,VOL ASS,Revenue,SUPPORTED HOUSING PROGRAMME,533155,130248030,25-Nov-14,600.00,ACT TOO LTD,SP0000855
WANDSWORTH COUNCIL,ASC,SOCIAL SERVICES,VOL ASS,Revenue,SUPPORTED HOUSING PROGRAMME,533160,130248030,25-Nov-14,600.00,ACT TOO LTD,SP0000855
WANDSWORTH COUNCIL,ASC,SOCIAL SERVICES,VOL ASS,Revenue,SUPPORTED HOUSING PROGRAMME,533161,130248030,25-Nov-14,"1,440.00",ACT TOO LTD,SP0000855
WANDSWORTH COUNCIL,ASC,SOCIAL SERVICES,VOL ASS,Revenue,SUPPORTED HOUSING PROGRAMME,533162,130248030,25-Nov-14,"1,260.00",ACT TOO LTD,SP0000855
WANDSWORTH COUNCIL,ASC,SOCIAL SERVICES,VOL ASS,Revenue,SUPPORTED HOUSING PROGRAMME,533163,130248030,25-Nov-14,"11,760.00",ACT TOO LTD,SP0000855
WANDSWORTH COUNCIL,ASC,SOCIAL SERVICES,VOL ASS,Revenue,SUPPORTED HOUSING PROGRAMME,533164,130248030,25-Nov-14,"1,320.00",ACT TOO LTD,SP0000855
WANDSWORTH COUNCIL,ASC,SOCIAL SERVICES,VOL ASS,Revenue,SUPPORTED HOUSING PROGRAMME,533165,130248030,25-Nov-14,"1,380.00",ACT TOO LTD,SP0000855
WANDSWORTH COUNCIL,ASC,SOCIAL SERVICES,VOL ASS,Revenue,SUPPORTED HOUSING PROGRAMME,533166,130248030,25-Nov-14,"2,220.00",ACT TOO LTD,SP0000855
WANDSWORTH COUNCIL,ASC,SOCIAL SERVICES,VOL ASS,Revenue,SUPPORTED HOUSING PROGRAMME,533167,130248030,25-Nov-14,"1,350.00",ACT TOO LTD,SP0000855
WANDSWORTH COUNCIL,ASC,SOCIAL SERVICES,VOL ASS,Revenue,SUPPORTED HOUSING PROGRAMME,533171,130248030,25-Nov-14,667.50,ACT TOO LTD,SP0000855
WANDSWORTH COUNCIL,ASC,SOCIAL SERVICES,VOL ASS,Revenue,SUPPORTED HOUSING PROGRAMME,533172,130248030,25-Nov-14,712.50,ACT TOO LTD,SP0000855
WANDSWORTH COUNCIL,ASC,SOCIAL SERVICES,VOL ASS,Revenue,SUPPORTED HOUSING PROGRAMME,533178,130248030,25-Nov-14,700.00,ACT TOO LTD,SP0000855
WANDSWORTH COUNCIL,ASC,SOCIAL SERVICES,VOL ASS,Revenue,SUPPORTED HOUSING PROGRAMME,533181,130248030,25-Nov-14,"1,568.00",ACT TOO LTD,SP0000855
WANDSWORTH COUNCIL,ASC,SOCIAL SERVICES,VOL ASS,Revenue,SUPPORTED HOUSING PROGRAMME,533182,130248030,25-Nov-14,602.64,ACT TOO LTD,SP0000855
WANDSWORTH COUNCIL,ASC,SOCIAL SERVICES,VOL ASS,Revenue,SUPPORTED HOUSING PROGRAMME,539107,130248030,28-Nov-14,660.00,ACT TOO LTD,SP0000855
WANDSWORTH COUNCIL,ASC,SOCIAL SERVICES,VOL ASS,Revenue,SUPPORTED HOUSING PROGRAMME,539108,130248030,28-Nov-14,660.00,ACT TOO LTD,SP0000855
WANDSWORTH COUNCIL,ASC,SOCIAL SERVICES,VOL ASS,Revenue,SUPPORTED HOUSING PROGRAMME,539109,130248030,28-Nov-14,750.00,ACT TOO LTD,SP0000855
WANDSWORTH COUNCIL,ASC,SOCIAL SERVICES,VOL ASS,Revenue,SUPPORTED HOUSING PROGRAMME,539110,130248030,28-Nov-14,720.00,ACT TOO LTD,SP0000855
WANDSWORTH COUNCIL,ASC,SOCIAL SERVICES,VOL ASS,Revenue,SUPPORTED HOUSING PROGRAMME,539111,130248030,28-Nov-14,555.00,ACT TOO LTD,SP0000855
WANDSWORTH COUNCIL,ASC,SOCIAL SERVICES,VOL ASS,Revenue,SUPPORTED HOUSING PROGRAMME,539123,130248030,28-Nov-14,600.00,ACT TOO LTD,SP0000855
WANDSWORTH COUNCIL,ASC,SOCIAL SERVICES,VOL ASS,Revenue,SUPPORTED HOUSING PROGRAMME,539124,130248030,28-Nov-14,"1,260.00",ACT TOO LTD,SP0000855
WANDSWORTH COUNCIL,ASC,SOCIAL SERVICES,VOL ASS,Revenue,SUPPORTED HOUSING PROGRAMME,539125,130248030,28-Nov-14,"11,760.00",ACT TOO LTD,SP0000855
WANDSWORTH COUNCIL,ASC,SOCIAL SERVICES,VOL ASS,Revenue,SUPPORTED HOUSING PROGRAMME,539126,130248030,28-Nov-14,"1,320.00",ACT TOO LTD,SP0000855
WANDSWORTH COUNCIL,ASC,SOCIAL SERVICES,VOL ASS,Revenue,SUPPORTED HOUSING PROGRAMME,539127,130248030,28-Nov-14,"2,220.00",ACT TOO LTD,SP0000855
WANDSWORTH COUNCIL,ASC,SOCIAL SERVICES,VOL ASS,Revenue,SUPPORTED HOUSING PROGRAMME,539128,130248030,28-Nov-14,"1,350.00",ACT TOO LTD,SP0000855
WANDSWORTH COUNCIL,ASC,SOCIAL SERVICES,VOL ASS,Revenue,SUPPORTED HOUSING PROGRAMME,539133,130248030,28-Nov-14,"1,440.00",ACT TOO LTD,SP0000855
WANDSWORTH COUNCIL,ASC,SOCIAL SERVICES,VOL ASS,Revenue,SUPPORTED HOUSING PROGRAMME,539134,130248030,28-Nov-14,700.00,ACT TOO LTD,SP0000855
WANDSWORTH COUNCIL,ASC,SOCIAL SERVICES,VOL ASS,Revenue,SUPPORTED HOUSING PROGRAMME,539137,130248030,28-Nov-14,"1,568.00",ACT TOO LTD,SP0000855
WANDSWORTH COUNCIL,ASC,SOCIAL SERVICES,VOL ASS,Revenue,SUPPORTED HOUSING PROGRAMME,539138,130248030,28-Nov-14,602.64,ACT TOO LTD,SP0000855
WANDSWORTH COUNCIL,ASC,SOCIAL SERVICES,VOL ASS,Revenue,SUPPORTED HOUSING PROGRAMME,520915,130248030,06-Nov-14,"1,964.20",C M CARE LTD,SP0000455
WANDSWORTH COUNCIL,ASC,SOCIAL SERVICES,VOL ASS,Revenue,SUPPORTED HOUSING PROGRAMME,539102,130248030,28-Nov-14,"1,964.20",C M CARE LTD,SP0000455
WANDSWORTH COUNCIL,ASC,SOCIAL SERVICES,VOL ASS,Revenue,SUPPORTED HOUSING PROGRAMME,523268,130248030,11-Nov-14,"4,772.00",CARE UNLIMITED DOMCARE LIMITED,SP0005359
WANDSWORTH COUNCIL,ASC,SOCIAL SERVICES,VOL ASS,Revenue,SUPPORTED HOUSING PROGRAMME,520848,130248030,05-Nov-14,"8,080.68",CHOICE SUPPORT,SP0000398
WANDSWORTH COUNCIL,ASC,SOCIAL SERVICES,VOL ASS,Revenue,SUPPORTED HOUSING PROGRAMME,521312,130248030,07-Nov-14,"9,574.36",CHOICE SUPPORT,SP0000398
WANDSWORTH COUNCIL,ASC,SOCIAL SERVICES,VOL ASS,Revenue,SUPPORTED HOUSING PROGRAMME,521313,130248030,07-Nov-14,"7,972.24",CHOICE SUPPORT,SP0000398
WANDSWORTH COUNCIL,ASC,SOCIAL SERVICES,VOL ASS,Revenue,SUPPORTED HOUSING PROGRAMME,520649,130248030,05-Nov-14,"4,120.24",CMG HOMES LTD,SP0000075
WANDSWORTH COUNCIL,ASC,SOCIAL SERVICES,VOL ASS,Revenue,SUPPORTED HOUSING PROGRAMME,533760,130248030,25-Nov-14,"1,097.52",FRONTIER SUPPORT SERVICES LTD,SP0001132
WANDSWORTH COUNCIL,ASC,SOCIAL SERVICES,VOL ASS,Revenue,SUPPORTED HOUSING PROGRAMME,533762,130248030,25-Nov-14,"1,864.88",FRONTIER SUPPORT SERVICES LTD,SP0001132
WANDSWORTH COUNCIL,ASC,SOCIAL SERVICES,VOL ASS,Revenue,SUPPORTED HOUSING PROGRAMME,533763,130248030,25-Nov-14,"1,533.00",FRONTIER SUPPORT SERVICES LTD,SP0001132
WANDSWORTH COUNCIL,ASC,SOCIAL SERVICES,VOL ASS,Revenue,SUPPORTED HOUSING PROGRAMME,533764,130248030,25-Nov-14,"1,491.23",FRONTIER SUPPORT SERVICES LTD,SP0001132
WANDSWORTH COUNCIL,ASC,SOCIAL SERVICES,VOL ASS,Revenue,SUPPORTED HOUSING PROGRAMME,533765,130248030,25-Nov-14,"1,353.32",FRONTIER SUPPORT SERVICES LTD,SP0001132
WANDSWORTH COUNCIL,ASC,SOCIAL SERVICES,VOL ASS,Revenue,SUPPORTED HOUSING PROGRAMME,533766,130248030,25-Nov-14,"1,097.64",FRONTIER SUPPORT SERVICES LTD,SP0001132
WANDSWORTH COUNCIL,ASC,SOCIAL SERVICES,VOL ASS,Revenue,SUPPORTED HOUSING PROGRAMME,533767,130248030,25-Nov-14,"2,509.20",FRONTIER SUPPORT SERVICES LTD,SP0001132
WANDSWORTH COUNCIL,ASC,SOCIAL SERVICES,VOL ASS,Revenue,SUPPORTED HOUSING PROGRAMME,533768,130248030,25-Nov-14,"1,251.12",FRONTIER SUPPORT SERVICES LTD,SP0001132
WANDSWORTH COUNCIL,ASC,SOCIAL SERVICES,VOL ASS,Revenue,SUPPORTED HOUSING PROGRAMME,533769,130248030,25-Nov-14,657.80,FRONTIER SUPPORT SERVICES LTD,SP0001132
WANDSWORTH COUNCIL,ASC,SOCIAL SERVICES,VOL ASS,Revenue,SUPPORTED HOUSING PROGRAMME,533771,130248030,25-Nov-14,"1,097.56",FRONTIER SUPPORT SERVICES LTD,SP0001132
WANDSWORTH COUNCIL,ASC,SOCIAL SERVICES,VOL ASS,Revenue,SUPPORTED HOUSING PROGRAMME,533772,130248030,25-Nov-14,"1,685.92",FRONTIER SUPPORT SERVICES LTD,SP0001132
WANDSWORTH COUNCIL,ASC,SOCIAL SERVICES,VOL ASS,Revenue,SUPPORTED HOUSING PROGRAMME,539072,130248030,28-Nov-14,833.06,HARINGEY ASSOCIATION FOR INDEPENDENT LIV,SP0000222
WANDSWORTH COUNCIL,ASC,SOCIAL SERVICES,VOL ASS,Revenue,SUPPORTED HOUSING PROGRAMME,539074,130248030,28-Nov-14,"3,247.28",HARINGEY ASSOCIATION FOR INDEPENDENT LIV,SP0000222
WANDSWORTH COUNCIL,ASC,SOCIAL SERVICES,VOL ASS,Revenue,SUPPORTED HOUSING PROGRAMME,539075,130248030,28-Nov-14,"1,521.52",HARINGEY ASSOCIATION FOR INDEPENDENT LIV,SP0000222
WANDSWORTH COUNCIL,ASC,SOCIAL SERVICES,VOL ASS,Revenue,SUPPORTED HOUSING PROGRAMME,533195,130248030,25-Nov-14,"5,907.36",INDEPENDENCE HOMES LTD,SP0004378
WANDSWORTH COUNCIL,ASC,SOCIAL SERVICES,VOL ASS,Revenue,SUPPORTED HOUSING PROGRAMME,533196,130248030,25-Nov-14,"5,745.60",INDEPENDENCE HOMES LTD,SP0004378
WANDSWORTH COUNCIL,ASC,SOCIAL SERVICES,VOL ASS,Revenue,SUPPORTED HOUSING PROGRAMME,533794,130248030,25-Nov-14,"6,104.21",INDEPENDENCE HOMES LTD,SP0004378
WANDSWORTH COUNCIL,ASC,SOCIAL SERVICES,VOL ASS,Revenue,SUPPORTED HOUSING PROGRAMME,533795,130248030,25-Nov-14,"5,937.12",INDEPENDENCE HOMES LTD,SP0004378
WANDSWORTH COUNCIL,ASC,SOCIAL SERVICES,VOL ASS,Revenue,SUPPORTED HOUSING PROGRAMME,526211,130248030,14-Nov-14,"2,969.72",LIFEWAYS COMMUNITY CARE LTD,SP0000364
WANDSWORTH COUNCIL,ASC,SOCIAL SERVICES,VOL ASS,Revenue,SUPPORTED HOUSING PROGRAMME,526212,130248030,14-Nov-14,"3,292.68",LIFEWAYS COMMUNITY CARE LTD,SP0000364
WANDSWORTH COUNCIL,ASC,SOCIAL SERVICES,VOL ASS,Revenue,SUPPORTED HOUSING PROGRAMME,526213,130248030,14-Nov-14,"2,210.76",LIFEWAYS COMMUNITY CARE LTD,SP0000364
WANDSWORTH COUNCIL,ASC,SOCIAL SERVICES,VOL ASS,Revenue,SUPPORTED HOUSING PROGRAMME,526214,130248030,14-Nov-14,"1,850.12",LIFEWAYS COMMUNITY CARE LTD,SP0000364
WANDSWORTH COUNCIL,ASC,SOCIAL SERVICES,VOL ASS,Revenue,SUPPORTED HOUSING PROGRAMME,526215,130248030,14-Nov-14,"1,901.64",LIFEWAYS COMMUNITY CARE LTD,SP0000364
WANDSWORTH COUNCIL,ASC,SOCIAL SERVICES,VOL ASS,Revenue,SUPPORTED HOUSING PROGRAMME,526216,130248030,14-Nov-14,"1,695.56",LIFEWAYS COMMUNITY CARE LTD,SP0000364
WANDSWORTH COUNCIL,ASC,SOCIAL SERVICES,VOL ASS,Revenue,SUPPORTED HOUSING PROGRAMME,526217,130248030,14-Nov-14,"2,932.04",LIFEWAYS COMMUNITY CARE LTD,SP0000364
WANDSWORTH COUNCIL,ASC,SOCIAL SERVICES,VOL ASS,Revenue,SUPPORTED HOUSING PROGRAMME,526218,130248030,14-Nov-14,"1,953.16",LIFEWAYS COMMUNITY CARE LTD,SP0000364
WANDSWORTH COUNCIL,ASC,SOCIAL SERVICES,VOL ASS,Revenue,SUPPORTED HOUSING PROGRAMME,526219,130248030,14-Nov-14,"1,695.56",LIFEWAYS COMMUNITY CARE LTD,SP0000364
WANDSWORTH COUNCIL,ASC,SOCIAL SERVICES,VOL ASS,Revenue,SUPPORTED HOUSING PROGRAMME,526220,130248030,14-Nov-14,"1,901.64",LIFEWAYS COMMUNITY CARE LTD,SP0000364
WANDSWORTH COUNCIL,ASC,SOCIAL SERVICES,VOL ASS,Revenue,SUPPORTED HOUSING PROGRAMME,526221,130248030,14-Nov-14,"2,056.20",LIFEWAYS COMMUNITY CARE LTD,SP0000364
WANDSWORTH COUNCIL,ASC,SOCIAL SERVICES,VOL ASS,Revenue,SUPPORTED HOUSING PROGRAMME,526222,130248030,14-Nov-14,"1,489.48",LIFEWAYS COMMUNITY CARE LTD,SP0000364
WANDSWORTH COUNCIL,ASC,SOCIAL SERVICES,VOL ASS,Revenue,SUPPORTED HOUSING PROGRAMME,526223,130248030,14-Nov-14,"1,644.04",LIFEWAYS COMMUNITY CARE LTD,SP0000364
WANDSWORTH COUNCIL,ASC,SOCIAL SERVICES,VOL ASS,Revenue,SUPPORTED HOUSING PROGRAMME,526224,130248030,14-Nov-14,"2,725.96",LIFEWAYS COMMUNITY CARE LTD,SP0000364
WANDSWORTH COUNCIL,ASC,SOCIAL SERVICES,VOL ASS,Revenue,SUPPORTED HOUSING PROGRAMME,526225,130248030,14-Nov-14,"1,015.28",LIFEWAYS COMMUNITY CARE LTD,SP0000364
WANDSWORTH COUNCIL,ASC,SOCIAL SERVICES,VOL ASS,Revenue,SUPPORTED HOUSING PROGRAMME,526228,130248030,14-Nov-14,"3,335.96",LIFEWAYS COMMUNITY CARE LTD,SP0000364
WANDSWORTH COUNCIL,ASC,SOCIAL SERVICES,VOL ASS,Revenue,SUPPORTED HOUSING PROGRAMME,526229,130248030,14-Nov-14,"2,603.48",LIFEWAYS COMMUNITY CARE LTD,SP0000364
WANDSWORTH COUNCIL,ASC,SOCIAL SERVICES,VOL ASS,Revenue,SUPPORTED HOUSING PROGRAMME,526230,130248030,14-Nov-14,"2,551.16",LIFEWAYS COMMUNITY CARE LTD,SP0000364
WANDSWORTH COUNCIL,ASC,SOCIAL SERVICES,VOL ASS,Revenue,SUPPORTED HOUSING PROGRAMME,526231,130248030,14-Nov-14,"3,335.96",LIFEWAYS COMMUNITY CARE LTD,SP0000364
WANDSWORTH COUNCIL,ASC,SOCIAL SERVICES,VOL ASS,Revenue,SUPPORTED HOUSING PROGRAMME,526232,130248030,14-Nov-14,"2,603.48",LIFEWAYS COMMUNITY CARE LTD,SP0000364
WANDSWORTH COUNCIL,ASC,SOCIAL SERVICES,VOL ASS,Revenue,SUPPORTED HOUSING PROGRAMME,526233,130248030,14-Nov-14,"2,341.88",LIFEWAYS COMMUNITY CARE LTD,SP0000364
WANDSWORTH COUNCIL,ASC,SOCIAL SERVICES,VOL ASS,Revenue,SUPPORTED HOUSING PROGRAMME,526234,130248030,14-Nov-14,"1,292.80",LIFEWAYS COMMUNITY CARE LTD,SP0000364
WANDSWORTH COUNCIL,ASC,SOCIAL SERVICES,VOL ASS,Revenue,SUPPORTED HOUSING PROGRAMME,526235,130248030,14-Nov-14,"1,975.56",LIFEWAYS COMMUNITY CARE LTD,SP0000364
WANDSWORTH COUNCIL,ASC,SOCIAL SERVICES,VOL ASS,Revenue,SUPPORTED HOUSING PROGRAMME,526236,130248030,14-Nov-14,"2,025.24",LIFEWAYS COMMUNITY CARE LTD,SP0000364
WANDSWORTH COUNCIL,ASC,SOCIAL SERVICES,VOL ASS,Revenue,SUPPORTED HOUSING PROGRAMME,526237,130248030,14-Nov-14,"2,025.24",LIFEWAYS COMMUNITY CARE LTD,SP0000364
WANDSWORTH COUNCIL,ASC,SOCIAL SERVICES,VOL ASS,Revenue,SUPPORTED HOUSING PROGRAMME,526238,130248030,14-Nov-14,"2,025.24",LIFEWAYS COMMUNITY CARE LTD,SP0000364
WANDSWORTH COUNCIL,ASC,SOCIAL SERVICES,VOL ASS,Revenue,SUPPORTED HOUSING PROGRAMME,526239,130248030,14-Nov-14,"2,244.28",LIFEWAYS COMMUNITY CARE LTD,SP0000364
WANDSWORTH COUNCIL,ASC,SOCIAL SERVICES,VOL ASS,Revenue,SUPPORTED HOUSING PROGRAMME,526240,130248030,14-Nov-14,"2,518.08",LIFEWAYS COMMUNITY CARE LTD,SP0000364
WANDSWORTH COUNCIL,ASC,SOCIAL SERVICES,VOL ASS,Revenue,SUPPORTED HOUSING PROGRAMME,526241,130248030,14-Nov-14,"2,025.24",LIFEWAYS COMMUNITY CARE LTD,SP0000364
WANDSWORTH COUNCIL,ASC,SOCIAL SERVICES,VOL ASS,Revenue,SUPPORTED HOUSING PROGRAMME,526242,130248030,14-Nov-14,"2,244.28",LIFEWAYS COMMUNITY CARE LTD,SP0000364
WANDSWORTH COUNCIL,ASC,SOCIAL SERVICES,VOL ASS,Revenue,SUPPORTED HOUSING PROGRAMME,526243,130248030,14-Nov-14,"2,056.72",LIFEWAYS COMMUNITY CARE LTD,SP0000364
WANDSWORTH COUNCIL,ASC,SOCIAL SERVICES,VOL ASS,Revenue,SUPPORTED HOUSING PROGRAMME,526244,130248030,14-Nov-14,"2,187.52",LIFEWAYS COMMUNITY CARE LTD,SP0000364
WANDSWORTH COUNCIL,ASC,SOCIAL SERVICES,VOL ASS,Revenue,SUPPORTED HOUSING PROGRAMME,526245,130248030,14-Nov-14,"2,501.44",LIFEWAYS COMMUNITY CARE LTD,SP0000364
WANDSWORTH COUNCIL,ASC,SOCIAL SERVICES,VOL ASS,Revenue,SUPPORTED HOUSING PROGRAMME,529095,130248030,18-Nov-14,"2,551.16",LIFEWAYS COMMUNITY CARE LTD,SP0000364
WANDSWORTH COUNCIL,ASC,SOCIAL SERVICES,VOL ASS,Revenue,SUPPORTED HOUSING PROGRAMME,538535,130248030,28-Nov-14,"6,212.52",LIFEWAYS COMMUNITY CARE LTD,SP0000364
WANDSWORTH COUNCIL,ASC,SOCIAL SERVICES,VOL ASS,Revenue,SUPPORTED HOUSING PROGRAMME,538557,130248030,28-Nov-14,798.00,LIFEWAYS COMMUNITY CARE LTD,SP0000364
WANDSWORTH COUNCIL,ASC,SOCIAL SERVICES,VOL ASS,Revenue,SUPPORTED HOUSING PROGRAMME,533065,130248030,25-Nov-14,"4,400.00",MORTON GARDENS,SP0008639
WANDSWORTH COUNCIL,ASC,SOCIAL SERVICES,VOL ASS,Revenue,SUPPORTED HOUSING PROGRAMME,533197,130248030,25-Nov-14,"5,543.72",NORWOOD SCHOOLS LTD,SP0000332
WANDSWORTH COUNCIL,ASC,SOCIAL SERVICES,VOL ASS,Revenue,SUPPORTED HOUSING PROGRAMME,538338,130248030,28-Nov-14,"8,744.83",PRECIOUS HOMES LTD,SP0001459
WANDSWORTH COUNCIL,ASC,SOCIAL SERVICES,VOL ASS,Revenue,SUPPORTED HOUSING PROGRAMME,538339,130248030,28-Nov-14,"3,827.14",PRECIOUS HOMES LTD,SP0001459
WANDSWORTH COUNCIL,ASC,SOCIAL SERVICES,VOL ASS,Revenue,SUPPORTED HOUSING PROGRAMME,526133,130248030,14-Nov-14,"6,120.00",RELIABLE PERSONNEL LTD,SP0005657
WANDSWORTH COUNCIL,ASC,SOCIAL SERVICES,VOL ASS,Revenue,SUPPORTED HOUSING PROGRAMME,529097,130248030,18-Nov-14,"1,551.32",THE BRANDON TRUST,SP0005337
WANDSWORTH COUNCIL,ASC,SOCIAL SERVICES,VOL ASS,Revenue,SUPPORTED HOUSING PROGRAMME,529098,130248030,18-Nov-14,"1,504.84",THE BRANDON TRUST,SP0005337
WANDSWORTH COUNCIL,ASC,SOCIAL SERVICES,VOL ASS,Revenue,SUPPORTED HOUSING PROGRAMME,529099,130248030,18-Nov-14,"1,504.84",THE BRANDON TRUST,SP0005337
WANDSWORTH COUNCIL,ASC,SOCIAL SERVICES,VOL ASS,Revenue,SUPPORTED HOUSING PROGRAMME,529100,130248030,18-Nov-14,"1,936.52",THE BRANDON TRUST,SP0005337
WANDSWORTH COUNCIL,ASC,SOCIAL SERVICES,VOL ASS,Revenue,SUPPORTED HOUSING PROGRAMME,529101,130248030,18-Nov-14,"7,764.16",THE BRANDON TRUST,SP0005337
WANDSWORTH COUNCIL,ASC,SOCIAL SERVICES,VOL ASS,Revenue,SUPPORTED HOUSING PROGRAMME,529102,130248030,18-Nov-14,"2,327.04",THE BRANDON TRUST,SP0005337
WANDSWORTH COUNCIL,ASC,SOCIAL SERVICES,VOL ASS,Revenue,SUPPORTED HOUSING PROGRAMME,529103,130248030,18-Nov-14,"2,980.32",THE BRANDON TRUST,SP0005337
WANDSWORTH COUNCIL,ASC,SOCIAL SERVICES,VOL ASS,Revenue,SUPPORTED HOUSING PROGRAMME,529104,130248030,18-Nov-14,"2,969.16",THE BRANDON TRUST,SP0005337
WANDSWORTH COUNCIL,ASC,SOCIAL SERVICES,VOL ASS,Revenue,SUPPORTED HOUSING PROGRAMME,529105,130248030,18-Nov-14,"2,979.92",THE BRANDON TRUST,SP0005337
WANDSWORTH COUNCIL,ASC,SOCIAL SERVICES,VOL ASS,Revenue,SUPPORTED HOUSING PROGRAMME,529106,130248030,18-Nov-14,"1,125.08",THE BRANDON TRUST,SP0005337
WANDSWORTH COUNCIL,ASC,SOCIAL SERVICES,VOL ASS,Revenue,SUPPORTED HOUSING PROGRAMME,529107,130248030,18-Nov-14,"1,155.88",THE BRANDON TRUST,SP0005337
WANDSWORTH COUNCIL,ASC,SOCIAL SERVICES,VOL ASS,Revenue,SUPPORTED HOUSING PROGRAMME,529108,130248030,18-Nov-14,"1,854.72",THE BRANDON TRUST,SP0005337
WANDSWORTH COUNCIL,ASC,SOCIAL SERVICES,VOL ASS,Revenue,SUPPORTED HOUSING PROGRAMME,529109,130248030,18-Nov-14,"1,380.64",THE BRANDON TRUST,SP0005337
WANDSWORTH COUNCIL,ASC,SOCIAL SERVICES,VOL ASS,Revenue,SUPPORTED HOUSING PROGRAMME,529110,130248030,18-Nov-14,"1,466.16",THE BRANDON TRUST,SP0005337
WANDSWORTH COUNCIL,ASC,SOCIAL SERVICES,VOL ASS,Revenue,SUPPORTED HOUSING PROGRAMME,529111,130248030,18-Nov-14,"1,513.68",THE BRANDON TRUST,SP0005337
WANDSWORTH COUNCIL,ASC,SOCIAL SERVICES,VOL ASS,Revenue,SUPPORTED HOUSING PROGRAMME,529112,130248030,18-Nov-14,"1,513.68",THE BRANDON TRUST,SP0005337
WANDSWORTH COUNCIL,ASC,SOCIAL SERVICES,VOL ASS,Revenue,SUPPORTED HOUSING PROGRAMME,529113,130248030,18-Nov-14,"2,856.96",THE BRANDON TRUST,SP0005337
WANDSWORTH COUNCIL,ASC,SOCIAL SERVICES,VOL ASS,Revenue,SUPPORTED HOUSING PROGRAMME,529114,130248030,18-Nov-14,"2,260.80",THE BRANDON TRUST,SP0005337
WANDSWORTH COUNCIL,ASC,SOCIAL SERVICES,VOL ASS,Revenue,SUPPORTED HOUSING PROGRAMME,529115,130248030,18-Nov-14,"3,453.12",THE BRANDON TRUST,SP0005337
WANDSWORTH COUNCIL,ASC,SOCIAL SERVICES,VOL ASS,Revenue,SUPPORTED HOUSING PROGRAMME,529116,130248030,18-Nov-14,"2,790.72",THE BRANDON TRUST,SP0005337
WANDSWORTH COUNCIL,ASC,SOCIAL SERVICES,VOL ASS,Revenue,SUPPORTED HOUSING PROGRAMME,529118,130248030,18-Nov-14,"1,886.40",THE BRANDON TRUST,SP0005337
WANDSWORTH COUNCIL,ASC,SOCIAL SERVICES,VOL ASS,Revenue,SUPPORTED HOUSING PROGRAMME,529119,130248030,18-Nov-14,"1,797.12",THE BRANDON TRUST,SP0005337
WANDSWORTH COUNCIL,ASC,SOCIAL SERVICES,VOL ASS,Revenue,SUPPORTED HOUSING PROGRAMME,529120,130248030,18-Nov-14,"2,062.08",THE BRANDON TRUST,SP0005337
WANDSWORTH COUNCIL,ASC,SOCIAL SERVICES,VOL ASS,Revenue,SUPPORTED HOUSING PROGRAMME,529121,130248030,18-Nov-14,"5,688.08",THE BRANDON TRUST,SP0005337
WANDSWORTH COUNCIL,ASC,SOCIAL SERVICES,VOL ASS,Revenue,SUPPORTED HOUSING PROGRAMME,529122,130248030,18-Nov-14,"2,565.36",THE BRANDON TRUST,SP0005337
WANDSWORTH COUNCIL,ASC,SOCIAL SERVICES,VOL ASS,Revenue,SUPPORTED HOUSING PROGRAMME,529123,130248030,18-Nov-14,"2,186.04",THE BRANDON TRUST,SP0005337
WANDSWORTH COUNCIL,ASC,SOCIAL SERVICES,VOL ASS,Revenue,SUPPORTED HOUSING PROGRAMME,529125,130248030,18-Nov-14,"1,034.48",THE BRANDON TRUST,SP0005337
WANDSWORTH COUNCIL,ASC,SOCIAL SERVICES,VOL ASS,Revenue,SUPPORTED HOUSING PROGRAMME,529144,130248030,18-Nov-14,"1,674.84",THE BRANDON TRUST,SP0005337
WANDSWORTH COUNCIL,ASC,SOCIAL SERVICES,VOL ASS,Revenue,SUPPORTED HOUSING PROGRAMME,529145,130248030,18-Nov-14,"2,658.24",THE BRANDON TRUST,SP0005337
WANDSWORTH COUNCIL,ASC,SOCIAL SERVICES,VOL ASS,Revenue,SUPPORTED HOUSING PROGRAMME,529146,130248030,18-Nov-14,"2,405.96",THE BRANDON TRUST,SP0005337
WANDSWORTH COUNCIL,ASC,SOCIAL SERVICES,VOL ASS,Revenue,SUPPORTED HOUSING PROGRAMME,529173,130248030,18-Nov-14,"3,520.16",THE BRANDON TRUST,SP0005337
WANDSWORTH COUNCIL,ASC,SOCIAL SERVICES,VOL ASS,Revenue,SUPPORTED HOUSING PROGRAMME,529174,130248030,18-Nov-14,"2,525.76",THE BRANDON TRUST,SP0005337
WANDSWORTH COUNCIL,ASC,SOCIAL SERVICES,VOL ASS,Revenue,SUPPORTED HOUSING PROGRAMME,529175,130248030,18-Nov-14,"3,453.92",THE BRANDON TRUST,SP0005337
WANDSWORTH COUNCIL,ASC,SOCIAL SERVICES,VOL ASS,Revenue,SUPPORTED HOUSING PROGRAMME,529176,130248030,18-Nov-14,"1,929.60",THE BRANDON TRUST,SP0005337
WANDSWORTH COUNCIL,ASC,SOCIAL SERVICES,VOL ASS,Revenue,SUPPORTED HOUSING PROGRAMME,529177,130248030,18-Nov-14,"2,923.88",THE BRANDON TRUST,SP0005337
WANDSWORTH COUNCIL,ASC,SOCIAL SERVICES,VOL ASS,Revenue,SUPPORTED HOUSING PROGRAMME,529178,130248030,18-Nov-14,"4,687.20",THE BRANDON TRUST,SP0005337
WANDSWORTH COUNCIL,ASC,SOCIAL SERVICES,VOL ASS,Revenue,SUPPORTED HOUSING PROGRAMME,529179,130248030,18-Nov-14,"4,688.56",THE BRANDON TRUST,SP0005337
WANDSWORTH COUNCIL,ASC,SOCIAL SERVICES,VOL ASS,Revenue,SUPPORTED HOUSING PROGRAMME,529180,130248030,18-Nov-14,"3,320.64",THE BRANDON TRUST,SP0005337
WANDSWORTH COUNCIL,ASC,SOCIAL SERVICES,VOL ASS,Revenue,SUPPORTED HOUSING PROGRAMME,529181,130248030,18-Nov-14,"3,702.20",THE BRANDON TRUST,SP0005337
WANDSWORTH COUNCIL,ASC,SOCIAL SERVICES,VOL ASS,Revenue,SUPPORTED HOUSING PROGRAMME,529182,130248030,18-Nov-14,"1,465.92",THE BRANDON TRUST,SP0005337
WANDSWORTH COUNCIL,ASC,SOCIAL SERVICES,VOL ASS,Revenue,SUPPORTED HOUSING PROGRAMME,529183,130248030,18-Nov-14,"3,718.08",THE BRANDON TRUST,SP0005337
WANDSWORTH COUNCIL,ASC,SOCIAL SERVICES,VOL ASS,Revenue,SUPPORTED HOUSING PROGRAMME,529184,130248030,18-Nov-14,"3,121.92",THE BRANDON TRUST,SP0005337
WANDSWORTH COUNCIL,ASC,SOCIAL SERVICES,VOL ASS,Revenue,SUPPORTED HOUSING PROGRAMME,529185,130248030,18-Nov-14,"5,983.44",THE BRANDON TRUST,SP0005337
WANDSWORTH COUNCIL,ASC,SOCIAL SERVICES,VOL ASS,Revenue,SUPPORTED HOUSING PROGRAMME,529186,130248030,18-Nov-14,"4,827.60",THE BRANDON TRUST,SP0005337
WANDSWORTH COUNCIL,ASC,SOCIAL SERVICES,VOL ASS,Revenue,SUPPORTED HOUSING PROGRAMME,529187,130248030,18-Nov-14,"6,346.04",THE BRANDON TRUST,SP0005337
WANDSWORTH COUNCIL,ASC,SOCIAL SERVICES,VOL ASS,Revenue,SUPPORTED HOUSING PROGRAMME,529188,130248030,18-Nov-14,"3,324.96",THE BRANDON TRUST,SP0005337
WANDSWORTH COUNCIL,ASC,SOCIAL SERVICES,VOL ASS,Revenue,SUPPORTED HOUSING PROGRAMME,529189,130248030,18-Nov-14,"2,886.04",THE BRANDON TRUST,SP0005337
WANDSWORTH COUNCIL,ASC,SOCIAL SERVICES,VOL ASS,Revenue,SUPPORTED HOUSING PROGRAMME,529190,130248030,18-Nov-14,"2,856.96",THE BRANDON TRUST,SP0005337
WANDSWORTH COUNCIL,ASC,SOCIAL SERVICES,VOL ASS,Revenue,SUPPORTED HOUSING PROGRAMME,529191,130248030,18-Nov-14,"3,088.80",THE BRANDON TRUST,SP0005337
WANDSWORTH COUNCIL,ASC,SOCIAL SERVICES,VOL ASS,Revenue,SUPPORTED HOUSING PROGRAMME,529192,130248030,18-Nov-14,"2,758.28",THE BRANDON TRUST,SP0005337
WANDSWORTH COUNCIL,ASC,SOCIAL SERVICES,VOL ASS,Revenue,SUPPORTED HOUSING PROGRAMME,529193,130248030,18-Nov-14,"2,128.32",THE BRANDON TRUST,SP0005337
WANDSWORTH COUNCIL,ASC,SOCIAL SERVICES,VOL ASS,Revenue,SUPPORTED HOUSING PROGRAMME,529194,130248030,18-Nov-14,"6,198.76",THE BRANDON TRUST,SP0005337
WANDSWORTH COUNCIL,ASC,SOCIAL SERVICES,VOL ASS,Revenue,SUPPORTED HOUSING PROGRAMME,529195,130248030,18-Nov-14,"1,465.92",THE BRANDON TRUST,SP0005337
WANDSWORTH COUNCIL,ASC,SOCIAL SERVICES,VOL ASS,Revenue,SUPPORTED HOUSING PROGRAMME,529196,130248030,18-Nov-14,"1,548.72",THE BRANDON TRUST,SP0005337
WANDSWORTH COUNCIL,ASC,SOCIAL SERVICES,VOL ASS,Revenue,SUPPORTED HOUSING PROGRAMME,529197,130248030,18-Nov-14,"2,658.24",THE BRANDON TRUST,SP0005337
WANDSWORTH COUNCIL,ASC,SOCIAL SERVICES,VOL ASS,Revenue,SUPPORTED HOUSING PROGRAMME,529198,130248030,18-Nov-14,"2,592.60",THE BRANDON TRUST,SP0005337
WANDSWORTH COUNCIL,ASC,SOCIAL SERVICES,VOL ASS,Revenue,SUPPORTED HOUSING PROGRAMME,529199,130248030,18-Nov-14,"2,724.48",THE BRANDON TRUST,SP0005337
WANDSWORTH COUNCIL,ASC,SOCIAL SERVICES,VOL ASS,Revenue,SUPPORTED HOUSING PROGRAMME,529200,130248030,18-Nov-14,"3,564.56",THE BRANDON TRUST,SP0005337
WANDSWORTH COUNCIL,ASC,SOCIAL SERVICES,VOL ASS,Revenue,SUPPORTED HOUSING PROGRAMME,529203,130248030,18-Nov-14,"3,416.80",THE BRANDON TRUST,SP0005337
WANDSWORTH COUNCIL,ASC,SOCIAL SERVICES,VOL ASS,Revenue,SUPPORTED HOUSING PROGRAMME,529204,130248030,18-Nov-14,"2,848.72",THE BRANDON TRUST,SP0005337
WANDSWORTH COUNCIL,ASC,SOCIAL SERVICES,VOL ASS,Revenue,SUPPORTED HOUSING PROGRAMME,529205,130248030,18-Nov-14,"2,327.24",THE BRANDON TRUST,SP0005337
WANDSWORTH COUNCIL,ASC,SOCIAL SERVICES,VOL ASS,Revenue,SUPPORTED HOUSING PROGRAMME,529206,130248030,18-Nov-14,"2,327.24",THE BRANDON TRUST,SP0005337
WANDSWORTH COUNCIL,ASC,SOCIAL SERVICES,VOL ASS,Revenue,SUPPORTED HOUSING PROGRAMME,529207,130248030,18-Nov-14,"2,065.12",THE BRANDON TRUST,SP0005337
WANDSWORTH COUNCIL,ASC,SOCIAL SERVICES,VOL ASS,Revenue,SUPPORTED HOUSING PROGRAMME,529221,130248030,18-Nov-14,"1,499.04",THE BRANDON TRUST,SP0005337
WANDSWORTH COUNCIL,ASC,SOCIAL SERVICES,VOL ASS,Revenue,SUPPORTED HOUSING PROGRAMME,529230,130248030,18-Nov-14,"2,459.52",THE BRANDON TRUST,SP0005337
WANDSWORTH COUNCIL,ASC,SOCIAL SERVICES,VOL ASS,Revenue,SUPPORTED HOUSING PROGRAMME,529231,130248030,18-Nov-14,"3,883.68",THE BRANDON TRUST,SP0005337
WANDSWORTH COUNCIL,ASC,SOCIAL SERVICES,VOL ASS,Revenue,SUPPORTED HOUSING PROGRAMME,529232,130248030,18-Nov-14,"2,618.48",THE BRANDON TRUST,SP0005337
WANDSWORTH COUNCIL,ASC,SOCIAL SERVICES,VOL ASS,Revenue,SUPPORTED HOUSING PROGRAMME,529233,130248030,18-Nov-14,"1,730.88",THE BRANDON TRUST,SP0005337
WANDSWORTH COUNCIL,ASC,ENVIRONMENT & COMMUNITY,VOL ASS,Revenue,SUPPORTED HOUSING PROGRAMME,538448,130248030,28-Nov-14,"10,557.40",THE BRANDON TRUST,SP0005337
WANDSWORTH COUNCIL,ASC,SOCIAL SERVICES,VOL ASS,Revenue,SUPPORTED HOUSING PROGRAMME,521508,130248030,07-Nov-14,"1,603.03",THE HOME FARM TRUST LTD,SP0001048
WANDSWORTH COUNCIL,ASC,SOCIAL SERVICES,VOL ASS,Revenue,SUPPORTED HOUSING PROGRAMME,526137,130248030,14-Nov-14,"6,798.41",WELMEDE HOUSING ASSOCIATION LTD,SP0001717
WANDSWORTH COUNCIL,ASC,SOCIAL SERVICES,VOL ASS,Revenue,SUPPORTED HOUSING PROGRAMME,539116,130248030,28-Nov-14,"6,579.11",WELMEDE HOUSING ASSOCIATION LTD,SP0001717
WANDSWORTH COUNCIL,ASC,SOCIAL SERVICES,DIRECT,Revenue,DIRECT PAYMENTS,525532,130250380,13-Nov-14,838.12,VIBRANCE,SP0005489
WANDSWORTH COUNCIL,ASC,SOCIAL SERVICES,CUSTOMER & CLIENT RECPTS - EXT,Revenue,CL CONT EXT RESIDEN S28A 100%,533350,130280680,25-Nov-14,-495.80,ASHTON CARE,SP0000695
WANDSWORTH COUNCIL,ASC,SOCIAL SERVICES,CUSTOMER & CLIENT RECPTS - EXT,Revenue,CL CONT EXT RESIDEN S28A 100%,530290,130280680,21-Nov-14,-495.80,ELEANOR NURSING & SOCIAL CARE,SP0000110
WANDSWORTH COUNCIL,ASC,SOCIAL SERVICES,CUSTOMER & CLIENT RECPTS - EXT,Revenue,CL CONT EXT RESIDEN S28A 100%,533451,130280680,25-Nov-14,-531.21,RALEIGH HOUSE LTD,SP0000760
WANDSWORTH COUNCIL,ASC,SOCIAL SERVICES,CUSTOMER & CLIENT RECPTS - EXT,Revenue,CL CONT EXT RESIDEN S28A 100%,530322,130280680,21-Nov-14,-531.21,ST MARYS RESIDENTIAL HOME,SP0000215
WANDSWORTH COUNCIL,ASC,SOCIAL SERVICES,CUSTOMER & CLIENT RECPTS - EXT,Revenue,CL CONT EXT RESIDEN S28A 100%,530323,130280680,21-Nov-14,-531.21,ST MARYS RESIDENTIAL HOME,SP0000215
WANDSWORTH COUNCIL,ASC,SOCIAL SERVICES,CUSTOMER & CLIENT RECPTS - EXT,Revenue,CL CONT EXT RESIDEN S28A 100%,529372,130280680,18-Nov-14,-548.93,VOYAGE CARE LTD,SP0000366
WANDSWORTH COUNCIL,ASC,SOCIAL SERVICES,CUSTOMER & CLIENT RECPTS - EXT,Revenue,CL CONT EXT RESIDEN S28A 100%,529373,130280680,18-Nov-14,-353.63,VOYAGE CARE LTD,SP0000366
WANDSWORTH COUNCIL,ASC,SOCIAL SERVICES,CUSTOMER & CLIENT RECPTS - EXT,Revenue,CL CONT EXT RESIDEN S28A 100%,529418,130280680,18-Nov-14,-353.63,VOYAGE CARE LTD,SP0000366
WANDSWORTH COUNCIL,ASC,SOCIAL SERVICES,CUSTOMER & CLIENT RECPTS - EXT,Revenue,CL CONT EXT RESIDEN S28A 100%,533445,130280680,25-Nov-14,-531.21,VOYAGE CARE LTD,SP0000366
WANDSWORTH COUNCIL,ASC,SOCIAL SERVICES,CUSTOMER & CLIENT RECPTS - EXT,Revenue,CL CONT EXT RESIDEN S28A 100%,533446,130280680,25-Nov-14,-342.21,VOYAGE CARE LTD,SP0000366
WANDSWORTH COUNCIL,ASC,SOCIAL SERVICES,CUSTOMER & CLIENT RECPTS - EXT,Revenue,CL CONT EXT RESIDEN S28A 100%,533462,130280680,25-Nov-14,-342.21,VOYAGE CARE LTD,SP0000366
WANDSWORTH COUNCIL,ASC,SOCIAL SERVICES,CUSTOMER & CLIENT RECPTS - EXT,Revenue,CL CONT EXTERNAL RESIDENT S28A,520643,130280710,05-Nov-14,-397.20,CMG HOMES LTD,SP0000075
WANDSWORTH COUNCIL,ASC,SOCIAL SERVICES,CUSTOMER & CLIENT RECPTS - EXT,Revenue,CL CONT EXTERNAL RESIDENT S28A,521343,130280710,07-Nov-14,-319.40,MACINTYRE CARE,SP0000473
WANDSWORTH COUNCIL,ASC,SOCIAL SERVICES,CUSTOMER & CLIENT RECPTS - EXT,Revenue,CL CONT EXTERNAL RESIDENT S28A,521358,130280710,07-Nov-14,-511.80,MACINTYRE CARE,SP0000473
WANDSWORTH COUNCIL,ASC,SOCIAL SERVICES,CUSTOMER & CLIENT RECPTS - EXT,Revenue,CL CONT EXTERNAL RESIDENT S28A,521360,130280710,07-Nov-14,-319.40,MACINTYRE CARE,SP0000473
WANDSWORTH COUNCIL,ASC,SOCIAL SERVICES,CUSTOMER & CLIENT RECPTS - EXT,Revenue,CL CONT EXTERNAL RESIDENT S28A,523931,130280710,12-Nov-14,-319.40,MACINTYRE CARE,SP0000473
WANDSWORTH COUNCIL,ASC,SOCIAL SERVICES,CUSTOMER & CLIENT RECPTS - EXT,Revenue,CL CONT EXTERNAL RESIDENT S28A,533319,130280710,25-Nov-14,-511.80,MACINTYRE CARE,SP0000473
WANDSWORTH COUNCIL,ASC,SOCIAL SERVICES,CUSTOMER & CLIENT RECPTS - EXT,Revenue,CL CONT EXTERNAL RESIDENT S28A,533322,130280710,25-Nov-14,-319.40,MACINTYRE CARE,SP0000473
WANDSWORTH COUNCIL,ASC,SOCIAL SERVICES,CUSTOMER & CLIENT RECPTS - EXT,Revenue,CL CONT EXTERNAL RESIDENT S28A,523194,130280710,11-Nov-14,-319.40,METROPOLITAN HOUSING TRUST,SP0000626
WANDSWORTH COUNCIL,ASC,SOCIAL SERVICES,CUSTOMER & CLIENT RECPTS - EXT,Revenue,CL CONT EXTERNAL RESIDENT S28A,523203,130280710,11-Nov-14,-319.40,METROPOLITAN HOUSING TRUST,SP0000626
WANDSWORTH COUNCIL,ASC,SOCIAL SERVICES,CUSTOMER & CLIENT RECPTS - EXT,Revenue,CL CONT EXTERNAL RESIDENT S28A,523211,130280710,11-Nov-14,-319.40,METROPOLITAN HOUSING TRUST,SP0000626
WANDSWORTH COUNCIL,ASC,SOCIAL SERVICES,CUSTOMER & CLIENT RECPTS - EXT,Revenue,CL CONT EXTERNAL RESIDENT S28A,523978,130280710,12-Nov-14,-486.00,METROPOLITAN HOUSING TRUST,SP0000626
WANDSWORTH COUNCIL,ASC,SOCIAL SERVICES,CUSTOMER & CLIENT RECPTS - EXT,Revenue,CL CONT EXTERNAL RESIDENT S28A,523979,130280710,12-Nov-14,-486.00,METROPOLITAN HOUSING TRUST,SP0000626
WANDSWORTH COUNCIL,ASC,SOCIAL SERVICES,CUSTOMER & CLIENT RECPTS - EXT,Revenue,CL CONT EXTERNAL RESIDENT S28A,523989,130280710,12-Nov-14,-319.40,METROPOLITAN HOUSING TRUST,SP0000626
WANDSWORTH COUNCIL,ASC,SOCIAL SERVICES,CUSTOMER & CLIENT RECPTS - EXT,Revenue,CL CONT EXTERNAL RESIDENT S28A,533334,130280710,25-Nov-14,-342.21,PARKGATE MANOR,SP0000521
WANDSWORTH COUNCIL,ASC,SOCIAL SERVICES,CUSTOMER & CLIENT RECPTS - EXT,Revenue,CL CONT EXTERNAL RESIDENT S28A,529404,130280710,18-Nov-14,-319.40,SURREY & BORDERS PARTNERSHIP NHS TRUST,SP0000501
WANDSWORTH COUNCIL,ASC,SOCIAL SERVICES,CUSTOMER & CLIENT RECPTS - EXT,Revenue,CL CONT EXTERNAL RESIDENT S28A,533407,130280710,25-Nov-14,-319.41,SURREY & BORDERS PARTNERSHIP NHS TRUST,SP0000501
WANDSWORTH COUNCIL,ASC,SOCIAL SERVICES,CUSTOMER & CLIENT RECPTS - EXT,Revenue,CL CONT EXTERNAL RESIDENT S28A,518778,130280710,03-Nov-14,-548.93,THE COMMUNITY CARE COMPANY UK LTD,SP0000576
WANDSWORTH COUNCIL,ASC,SOCIAL SERVICES,CUSTOMER & CLIENT RECPTS - EXT,Revenue,CL CONT EXTERNAL RESIDENT S28A,533300,130280710,25-Nov-14,-531.21,THE COMMUNITY CARE COMPANY UK LTD,SP0000576
WANDSWORTH COUNCIL,ASC,SOCIAL SERVICES,CUSTOMER & CLIENT RECPTS - EXT,Revenue,CL CONT EXTERNAL RESIDENTIAL,526007,130280720,14-Nov-14,-353.63,229 MITCHAM LANE LTD,SP0000884
WANDSWORTH COUNCIL,ASC,SOCIAL SERVICES,CUSTOMER & CLIENT RECPTS - EXT,Revenue,CL CONT EXTERNAL RESIDENTIAL,526008,130280720,14-Nov-14,-353.63,229 MITCHAM LANE LTD,SP0000884
WANDSWORTH COUNCIL,ASC,SOCIAL SERVICES,CUSTOMER & CLIENT RECPTS - EXT,Revenue,CL CONT EXTERNAL RESIDENTIAL,526009,130280720,14-Nov-14,-353.63,229 MITCHAM LANE LTD,SP0000884
WANDSWORTH COUNCIL,ASC,SOCIAL SERVICES,CUSTOMER & CLIENT RECPTS - EXT,Revenue,CL CONT EXTERNAL RESIDENTIAL,538479,130280720,28-Nov-14,-342.21,229 MITCHAM LANE LTD,SP0000884
WANDSWORTH COUNCIL,ASC,SOCIAL SERVICES,CUSTOMER & CLIENT RECPTS - EXT,Revenue,CL CONT EXTERNAL RESIDENTIAL,538480,130280720,28-Nov-14,-342.21,229 MITCHAM LANE LTD,SP0000884
WANDSWORTH COUNCIL,ASC,SOCIAL SERVICES,CUSTOMER & CLIENT RECPTS - EXT,Revenue,CL CONT EXTERNAL RESIDENTIAL,538482,130280720,28-Nov-14,-342.21,229 MITCHAM LANE LTD,SP0000884
WANDSWORTH COUNCIL,ASC,SOCIAL SERVICES,CUSTOMER & CLIENT RECPTS - EXT,Revenue,CL CONT EXTERNAL RESIDENTIAL,538483,130280720,28-Nov-14,-342.21,229 MITCHAM LANE LTD,SP0000884
WANDSWORTH COUNCIL,ASC,SOCIAL SERVICES,CUSTOMER & CLIENT RECPTS - EXT,Revenue,CL CONT EXTERNAL RESIDENTIAL,538484,130280720,28-Nov-14,-342.21,229 MITCHAM LANE LTD,SP0000884
WANDSWORTH COUNCIL,ASC,SOCIAL SERVICES,CUSTOMER & CLIENT RECPTS - EXT,Revenue,CL CONT EXTERNAL RESIDENTIAL,533345,130280720,25-Nov-14,-425.57,ACH OF LONDON LLP,SP0001688
WANDSWORTH COUNCIL,ASC,SOCIAL SERVICES,CUSTOMER & CLIENT RECPTS - EXT,Revenue,CL CONT EXTERNAL RESIDENTIAL,520624,130280720,05-Nov-14,-353.63,AIMS CARE PARTNERSHIP,SP0000561
WANDSWORTH COUNCIL,ASC,SOCIAL SERVICES,CUSTOMER & CLIENT RECPTS - EXT,Revenue,CL CONT EXTERNAL RESIDENTIAL,530342,130280720,21-Nov-14,-268.33,ALLIED CARE (MHS) LTD,SP0001069
WANDSWORTH COUNCIL,ASC,SOCIAL SERVICES,CUSTOMER & CLIENT RECPTS - EXT,Revenue,CL CONT EXTERNAL RESIDENTIAL,533413,130280720,25-Nov-14,-259.67,ALLIED CARE (MHS) LTD,SP0001069
WANDSWORTH COUNCIL,ASC,SOCIAL SERVICES,CUSTOMER & CLIENT RECPTS - EXT,Revenue,CL CONT EXTERNAL RESIDENTIAL,518779,130280720,03-Nov-14,-353.63,ASHCROFT CARE SERVICES,SP0000872
WANDSWORTH COUNCIL,ASC,SOCIAL SERVICES,CUSTOMER & CLIENT RECPTS - EXT,Revenue,CL CONT EXTERNAL RESIDENTIAL,533351,130280720,25-Nov-14,-342.21,ASHCROFT CARE SERVICES,SP0000872
WANDSWORTH COUNCIL,ASC,SOCIAL SERVICES,CUSTOMER & CLIENT RECPTS - EXT,Revenue,CL CONT EXTERNAL RESIDENTIAL,530343,130280720,21-Nov-14,-353.63,BEECH LODGE,SP0000807
WANDSWORTH COUNCIL,ASC,SOCIAL SERVICES,CUSTOMER & CLIENT RECPTS - EXT,Revenue,CL CONT EXTERNAL RESIDENTIAL,530344,130280720,21-Nov-14,-342.21,BEECH LODGE,SP0000807
WANDSWORTH COUNCIL,ASC,SOCIAL SERVICES,CUSTOMER & CLIENT RECPTS - EXT,Revenue,CL CONT EXTERNAL RESIDENTIAL,530345,130280720,21-Nov-14,-353.63,BEECH LODGE,SP0000807
WANDSWORTH COUNCIL,ASC,SOCIAL SERVICES,CUSTOMER & CLIENT RECPTS - EXT,Revenue,CL CONT EXTERNAL RESIDENTIAL,530346,130280720,21-Nov-14,-342.21,BEECH LODGE,SP0000807
WANDSWORTH COUNCIL,ASC,SOCIAL SERVICES,CUSTOMER & CLIENT RECPTS - EXT,Revenue,CL CONT EXTERNAL RESIDENTIAL,530347,130280720,21-Nov-14,-353.63,BEECH LODGE,SP0000807
WANDSWORTH COUNCIL,ASC,SOCIAL SERVICES,CUSTOMER & CLIENT RECPTS - EXT,Revenue,CL CONT EXTERNAL RESIDENTIAL,530348,130280720,21-Nov-14,-342.21,BEECH LODGE,SP0000807
WANDSWORTH COUNCIL,ASC,SOCIAL SERVICES,CUSTOMER & CLIENT RECPTS - EXT,Revenue,CL CONT EXTERNAL RESIDENTIAL,520669,130280720,05-Nov-14,-353.63,BIRCC,SP0000584
WANDSWORTH COUNCIL,ASC,SOCIAL SERVICES,CUSTOMER & CLIENT RECPTS - EXT,Revenue,CL CONT EXTERNAL RESIDENTIAL,530368,130280720,21-Nov-14,-336.49,BIRCC,SP0000584
WANDSWORTH COUNCIL,ASC,SOCIAL SERVICES,CUSTOMER & CLIENT RECPTS - EXT,Revenue,CL CONT EXTERNAL RESIDENTIAL,530369,130280720,21-Nov-14,-342.22,BIRCC,SP0000584
WANDSWORTH COUNCIL,ASC,SOCIAL SERVICES,CUSTOMER & CLIENT RECPTS - EXT,Revenue,CL CONT EXTERNAL RESIDENTIAL,530370,130280720,21-Nov-14,-342.21,BIRCC,SP0000584
WANDSWORTH COUNCIL,ASC,SOCIAL SERVICES,CUSTOMER & CLIENT RECPTS - EXT,Revenue,CL CONT EXTERNAL RESIDENTIAL,530371,130280720,21-Nov-14,-342.21,BIRCC,SP0000584
WANDSWORTH COUNCIL,ASC,SOCIAL SERVICES,CUSTOMER & CLIENT RECPTS - EXT,Revenue,CL CONT EXTERNAL RESIDENTIAL,530350,130280720,21-Nov-14,-622.48,CAMERON LODGE LIMITED,SP0000271
WANDSWORTH COUNCIL,ASC,SOCIAL SERVICES,CUSTOMER & CLIENT RECPTS - EXT,Revenue,CL CONT EXTERNAL RESIDENTIAL,538487,130280720,28-Nov-14,-622.48,CAMERON LODGE LIMITED,SP0000271
WANDSWORTH COUNCIL,ASC,SOCIAL SERVICES,CUSTOMER & CLIENT RECPTS - EXT,Revenue,CL CONT EXTERNAL RESIDENTIAL,530351,130280720,21-Nov-14,-548.93,CARE UNLIMITED GROUP LTD,SP0001575
WANDSWORTH COUNCIL,ASC,SOCIAL SERVICES,CUSTOMER & CLIENT RECPTS - EXT,Revenue,CL CONT EXTERNAL RESIDENTIAL,533433,130280720,25-Nov-14,-342.21,CENTRUST CARE HOMES LTD,SP0000141
WANDSWORTH COUNCIL,ASC,SOCIAL SERVICES,CUSTOMER & CLIENT RECPTS - EXT,Revenue,CL CONT EXTERNAL RESIDENTIAL,520629,130280720,05-Nov-14,-401.68,CHATSWORTH CARE,SP0000831
WANDSWORTH COUNCIL,ASC,SOCIAL SERVICES,CUSTOMER & CLIENT RECPTS - EXT,Revenue,CL CONT EXTERNAL RESIDENTIAL,538528,130280720,28-Nov-14,-388.71,CHATSWORTH CARE,SP0000831
WANDSWORTH COUNCIL,ASC,SOCIAL SERVICES,CUSTOMER & CLIENT RECPTS - EXT,Revenue,CL CONT EXTERNAL RESIDENTIAL,530353,130280720,21-Nov-14,-353.63,CHERRY LODGE,SP0000965
WANDSWORTH COUNCIL,ASC,SOCIAL SERVICES,CUSTOMER & CLIENT RECPTS - EXT,Revenue,CL CONT EXTERNAL RESIDENTIAL,530354,130280720,21-Nov-14,-342.21,CHERRY LODGE,SP0000965
WANDSWORTH COUNCIL,ASC,SOCIAL SERVICES,CUSTOMER & CLIENT RECPTS - EXT,Revenue,CL CONT EXTERNAL RESIDENTIAL,520640,130280720,05-Nov-14,-319.40,CMG HOMES LTD,SP0000075
WANDSWORTH COUNCIL,ASC,SOCIAL SERVICES,CUSTOMER & CLIENT RECPTS - EXT,Revenue,CL CONT EXTERNAL RESIDENTIAL,520641,130280720,05-Nov-14,-335.00,CMG HOMES LTD,SP0000075
WANDSWORTH COUNCIL,ASC,SOCIAL SERVICES,CUSTOMER & CLIENT RECPTS - EXT,Revenue,CL CONT EXTERNAL RESIDENTIAL,520645,130280720,05-Nov-14,-259.20,CMG HOMES LTD,SP0000075
WANDSWORTH COUNCIL,ASC,SOCIAL SERVICES,CUSTOMER & CLIENT RECPTS - EXT,Revenue,CL CONT EXTERNAL RESIDENTIAL,520646,130280720,05-Nov-14,-319.40,CMG HOMES LTD,SP0000075
WANDSWORTH COUNCIL,ASC,SOCIAL SERVICES,CUSTOMER & CLIENT RECPTS - EXT,Revenue,CL CONT EXTERNAL RESIDENTIAL,520647,130280720,05-Nov-14,-319.40,CMG HOMES LTD,SP0000075
WANDSWORTH COUNCIL,ASC,SOCIAL SERVICES,CUSTOMER & CLIENT RECPTS - EXT,Revenue,CL CONT EXTERNAL RESIDENTIAL,520648,130280720,05-Nov-14,-495.80,CMG HOMES LTD,SP0000075
WANDSWORTH COUNCIL,ASC,SOCIAL SERVICES,CUSTOMER & CLIENT RECPTS - EXT,Revenue,CL CONT EXTERNAL RESIDENTIAL,520663,130280720,05-Nov-14,-319.40,CMG HOMES LTD,SP0000075
WANDSWORTH COUNCIL,ASC,SOCIAL SERVICES,CUSTOMER & CLIENT RECPTS - EXT,Revenue,CL CONT EXTERNAL RESIDENTIAL,530291,130280720,21-Nov-14,-362.80,CMG HOMES LTD,SP0000075
